Workbook

Sheet Read Me
A1: NCHRP BMP Evaluation Tool V.1.0 for Windows
A2: Readme Notes
A3: 1 | B3: Tool inputs are intended to be populated sequentially (i.e., Project Location, Project Options, then Project Design).Inputs on previous tabs can later be modified by skipping backward and forward, however skipping forward as part of the initial tool parameterization will result in an undesirable user experience and potentially introduce errors.
A4: 2 | B4: Either the navigation buttons or the tabs can be used to navigate through this workbook.
A5: 3 | B5: The user is responsible for ensuring that input parameters are reasonable. Negative numbers are never reasonable for populating the Tool and will not return valid results.
A6: 4 | B6: The user should review default assumptions and confirm that they are valid for the intended site and BMP design.
A7: 5 | B7: Where dropdown boxes are available for input parameters, values must be selected from the dropdown menu. The Tool cannot accept custom inputs for these fields.
A8: 6 | B8: The Tool allows flexibility for the user to enter a wide range of input parameters representing a wide range of BMP designs and treatment options. In some cases, guidance is provided within the Tool regarding acceptable ranges of parameters. Additionally, the Guidance Manual provides some conceptual design schematics and associated typical parameters to accompany this Tool. The user is responsible for selecting reasonable input parameters.
A9: 7 | B9: It is possible to enter inputs that are outside of acceptable ranges. Please observe error messages and see the key to error messages below.
A10: 8 | B10: The Tool requires macros to be enabled. If macros are not enabled, the Tool will not function.
A11: 9 | B11: The Tool is intended to be operated with Excel set to "Auto Calculate" mode; not "Manual Calculate" mode. To change this setting, go to the "Formulas" ribbon and select "Calculation Options".
A12: 10 | B12: Please read the User's Guide before using the Tool.
A13: 11 | B13: Any changes to the structure of this workbook (tab names, inserting or deleting columns or rows, etc.) will render the Tool non-functional. Several precautions were taken to prevent this kind of action, but it is ultimately the user's responsibility to maintain a functional workbook. The user may create new worksheets for the purpose of calculations and notes, but any other structural changes must be avoided.
A14: 12 | B14: THE PASSWORD TO UNLOCK SHEETS IN THIS WORKBOOK IS "NCHRP"
A15: Key to Warning Messages
B17: The Tool produces warning messages in certain circumstances.
B19: Example Warning Message | G19: Explanation
B20: Hiding these parameters will reset all concentrations to their default values. Do you wish to continue? | G20: The tool provides the user with the ability to modify some of the default parameters. Some of these parameters should only be modified based on supporting data or best professional judgment, such as influent concentrations. In many of these cases, in addition to supplemental parameters, the user inputs are hidden. Showing the parameters opens them up to modification, while hiding resets them back to their defaults.
B21: You have selected to use the default influent concentration. Please change your selection to override this value. | G21: Once the water quality constituent influent concentrations are unhidden, the user must select each constituent that they want to modify from the default value.
A22: Key to Error Messages
B24: The Tool produces error messages in certain circumstances.
B26: Example Error Message | G26: Explanation
B27: The Impervious Area (%) can not be greater than 100% | G27: All impervious area is assumed to be directly connected within the BMP tributary area. Thus, an impervious area greater than 100% suggests an area greater than the tributary area.
B28: The Planting Media Filtration Rate is restricting the flow. Update the additional parameters if not intended. | G28: For some combinations of input parameters, the planting media filtration rate can control the performance of a bioretention BMP rather than the underlying soil infiltration rate. This warning is intended to let you know when this occurs. This is not an invalid design scenario if that is what the user intends.
B29: The Design Drawdown Time can not be less than 24 hours. | G29: Certain tools require a parameters to be within a specific range for normal functionality.
B30: Warning: Infiltration rate is too low to use this BMP. RESULTS ARE NOT ACCURATE. Reduce depth of infiltration storage or select other BMP that has a lower depth of infiltration storage; use underdrains if applicable. | G30: The Tool does not provide valid estimates when infiltration storage drawdown times are greater than 360 hours. In general, when you see this warning, the BMP design is not suitable for the soil conditions (i.e., too great of a water depth and/or too low of an infiltration rate).

Sheet Project Location
A1: NCHRP Swale Evaluation Tool | X1: Section | Y1: State | AA1: =VLOOKUP(C11,Y2:Z51,2,FALSE) ->  | AB1: Section | AC1: 1
A2: Project Title | C2: Test Run | X2: 7 | Y2: Alabama | Z2: AL
A3: Project Location | C3: Portland , OR | X3: X | Y3: Alaska | Z3: AK | AB3: Row Labels
A4: Company | C4: Geosyntec Consultants | X4: 2 | Y4: Arizona | Z4: AZ | AB4: Idaho
X5: 6 | Y5: Arkansas | Z5: AR | AB5: Montana
A6: Project Location and Climate Selection | X6: 2 | Y6: California | Z6: CA | AB6: Oregon
X7: 4 | Y7: Colorado | Z7: CO | AB7: Washington
A8: Step 1: Select the Region your Project is Located | O8: Step 2: Select the State your project is located and the rain gage closest to the project | X8: 10 | Y8: Connecticut | Z8: CT | AB8: Wyoming
X9: 9 | Y9: Delaware | Z9: DE | AB9: Grand Total
O10: States within Selected Region | P10: Rain Gages Available in State | X10: 7 | Y10: Florida | Z10: FL
O11: Oregon | P11: [2] WILLAMETTE VALLEY - PORTLAND INTL AP | X11: 7 | Y11: Georgia | Z11: GA
X12: X | Y12: Hawaii | Z12: HI
X13: 1 | Y13: Idaho | Z13: ID
O14: COOP ID | P14: =IF(P11="","Select Rain Gage",VLOOKUP(P11,'Rain Gage Summary'!B2:J348,9,FALSE)) -> 356751 | X14: 5 | Y14: Illinois | Z14: IL
O15: Elevation , feet | P15: =IF(P11="","Select Rain Gage",VLOOKUP(P11,'Rain Gage Summary'!B2:J348,5,FALSE)) -> 19 | X15: 5 | Y15: Indiana | Z15: IN | AB15: # states
O16: 85th Percentile, 24-Hour Storm Depth, inches | P16: =IF(P11="","Select Rain Gage",VLOOKUP(P11,'Rain Gage Summary'!B2:J348,6,FALSE)) -> 0.63 | X16: 3 | Y16: Iowa | Z16: IA | AB16: =COUNTA(AB4:AB14)-1 -> 5
O17: 95th Percentile, 24-Hour Storm Depth, inches | P17: =IF(P11="","Select Rain Gage",VLOOKUP(P11,'Rain Gage Summary'!B2:J348,7,FALSE)) -> 0.98 | X17: 4 | Y17: Kansas | Z17: KS
O18: Average Annual Precipitation Depth, inches | P18: =IF(P11="","Select Rain Gage",VLOOKUP(P11,'Rain Gage Summary'!B2:J348,8,FALSE)) -> 36.668365 | X18: 8 | Y18: Kentucky | Z18: KY
X19: 7 | Y19: Louisiana | Z19: LA
O20: Step 3: If available, override the existing data and provide project specific rain data | X20: 10 | Y20: Maine | Z20: ME
X21: 8 | Y21: Maryland | Z21: MD
O22: Project Location 85th Percentile, 24-Hour Storm Depth (in) | P22: 0.63 | X22: 10 | Y22: Massachusetts | Z22: MA
O23: Project Location Average Annual Precipitation Depth (in) | P23: 36.668365 | X23: 5 | Y23: Michigan | Z23: MI
X24: 3 | Y24: Minnesota | Z24: MN
O25: Note: Default precipitation statistics and the project-specific precipitation statistics are for reference and scaling purposes only; they do not imply a BMP size used for performance analysis. The user enters the BMP sizing parameters to be analyzed on the Project Design tab. | X25: 7 | Y25: Mississippi | Z25: MS
X26: 5 | Y26: Missouri | Z26: MO
X27: 1 | Y27: Montana | Z27: MT
X28: 3 | Y28: Nebraska | Z28: NE
X29: 2 | Y29: Nevada | Z29: NV
X30: 10 | Y30: New Hampshire | Z30: NH
O31: Key | X31: 9 | Y31: New Jersey | Z31: NJ
O32: User Steps | X32: 4 | Y32: New Mexico | Z32: NM
O33: Headings and Descriptions | X33: 9 | Y33: New York | Z33: NY
O34: User Entered Data | X34: 6 | Y34: North Carolina | Z34: NC
O35: Reference Data; do not edit cells | X35: 3 | Y35: North Dakota | Z35: ND
O36: Default data; editing allowed with rationale | X36: 8 | Y36: Ohio | Z36: OH
X37: 4 | Y37: Oklahoma | Z37: OK
X38: 1 | Y38: Oregon | Z38: OR
P39: `` | X39: 9 | Y39: Pennsylvania | Z39: PA
X40: 10 | Y40: Rhode Island | Z40: RI
X41: 6 | Y41: South Carolina | Z41: SC
X42: 3 | Y42: South Dakota | Z42: SD
X43: 6 | Y43: Tennessee | Z43: TN
X44: 4 | Y44: Texas | Z44: TX
X45: 2 | Y45: Utah | Z45: UT
X46: 10 | Y46: Vermont | Z46: VT
X47: 8 | Y47: Virginia | Z47: VA
X48: 1 | Y48: Washington | Z48: WA
X49: 8 | Y49: West Virginia | Z49: WV
X50: 5 | Y50: Wisconsin | Z50: WI
X51: 1 | Y51: Wyoming | Z51: WY

Sheet Project Options
A1: ='Project Location'!A1 -> NCHRP Swale Evaluation Tool | T1: Maintenance Options | V1: Use Default/View/edit
A2: Project Title | C2: ='Project Location'!C2:N2 -> Test Run | T2: H | V2: yes
A3: Project Location | C3: ='Project Location'!C3:N3 -> Portland , OR | T3: M | V3: no
A4: Company | C4: ='Project Location'!C4:N4 -> Geosyntec Consultants | T4: L
A6: Project Options
A8: Key
A9: User Steps | B9: Default Data (editable)
A10: Headings and Descriptions | B10: Guidance
A11: User Entered Data
A13: Step 1: View/Edit Highway Runoff Concentrations
A14: Pollutant Loads
A15: Would you like to view/edit the highway runoff concentrations for the project? | B15: no
A17: Pollutant of Concern | B17: Use Default? | C17: Influent Concentration | D17: Guidance
A18: Total Suspended Solids (mg/L) | B18: yes | C18: 138.84 | D18: Provide influent concentrations known or select "yes" to use the default influent concentrations
A19: Total Zinc (ug/L) | B19: yes | C19: 189.93
A20: Total Lead (ug/L) | B20: yes | C20: 44.08
A21: Total Copper (ug/L) | B21: yes | C21: 41.76
A22: Total Nitrogen (mg/L) | B22: TN = TKN + NO3 | C22: 3.38
A23: Total Phosphorus (mg/L) | B23: yes | C23: 0.4420194995
A24: Nitrate [NO3] (mg/L) | B24: yes | C24: 1.06
A25: Total Kjeldahl Nitrogen [TKN] (mg/L) | B25: yes | C25: 2.32
A26: Dissolved Phosphorus (mg/L) | B26: yes | C26: 0.25
A27: Fecal Coliform (col/100mL) | B27: yes | C27: 8699.89
A28: Escherichia Coli [E. Coli] (col/100mL) | B28: yes | C28: 6025.22
A31: Step 2: Select Primary Cost Inputs
A32: Cost Inputs | B32: Value | C32: Guidance
A33: Location Adjustment Factor (100 = nationwide average) | B33: 100 | C33: Enter the location scaling factor from RSMeans or other reference to adjust for local costs as a percentage of nationwide average; if not known, enter 100 | D33: http://www.rsmeansonline.com/
A34: Expected Level of Maintenance (H = High, M = Medium, L = Low) | B34: M | C34: Enter the level of maintenance expected to be provided.
A35: Design Life (years) | B35: 25 | C35: Enter the design life of the BMP in years.
A36: Discount Rate (%) | B36: 5 | C36: Enter the discount rate to be used in whole lifecycle cost analysis.
A37: Inflation Rate for labor and materials (%) | B37: 3 | C37: Enter the inflation rate to be used in whole lifecycle cost analysis.
A38: Local Sales Tax (%) | B38: 9.25 | C38: Enter the local sales tax, including state and local taxes.
A40: Would you like to view/edit the capital cost inputs? | B40: no | C40: Selecting Yes will expose the Capital Cost input tab for optional user override of default parameters.
A41: Would you like to view/edit the maintenance cost inputs? | B41: no | C41: Selecting Yes will expose the Maintenance Cost input tab for optional user override of default parameters.

Sheet Capital Costs (hidden)
A1: ='Project Location'!A1 -> NCHRP Swale Evaluation Tool | S1: Key
A2: Project Title | C2: ='Project Location'!C2:N2 -> Test Run | S2: User Steps | T2: Default Data (editable) | U2: Reference Data; do not edit cells
A3: Project Location | C3: ='Project Location'!C3:N3 -> Portland , OR | S3: Headings and Descriptions | T3: Default Data (not editable)
A4: Company | C4: ='Project Location'!C4:N4 -> Geosyntec Consultants | S4: User Entered Data | T4: Guidance
A6: Capital Costs | AC6: Location Factor | AD6: =RSMeans -> 100 | AE6: California - Santa Ana (926-927)
AC7: Tax | AD7: ='Project Options'!B38 -> 9.25 | AE7: California
A8: Total Facility Cost | B8: =H43 -> 13335.73901
A12: User-Entered Engineer's Estimate Costs | B12: Unit | C12: Default Baseline Unit Cost | D12: User-Entered Baseline Unit Cost | E12: Baseline Unit Cost used in Calculations | F12: Adjusted Unit Cost | G12: Default Quantity | H12: User-Entered Quantity | I12: Quantity used in Calculations | J12: Cost | K12: Guidance | M12: page | N12: Source RSMeans Building Construction Cost Data 2013
A13: Mobilization | B13: LS | C13: =0.1*SUM(J14:J25) -> 412.9164472 | E13: =IF(D13="",C13,D13) -> 412.9164472 | F13: =E13*$AD$6/100 -> 412.9164472 | G13: 1 | I13: =IF(H13="",G13,H13) -> 1 | J13: =F13*I13 -> 412.9164472 | K13: Enter project-specific values in the blue "User Entered Data" cells if applicable and the calculations will automatically update to override the default value. If a value is not provided, the default value will be used in the cost calculations.
A14: Clearing & Grubbing | B14: SY | C14: 1 | E14: =IF(D14="",C14,D14) -> 1 | F14: 1 | G14: =('Project Design'!B49+2*('Project Design'!B47+'Project Design'!B48)*'Project Design'!B45)*'Project Design'!B32/9 -> 10.72167462 | I14: =IF(H14="",G14,H14) -> 10.72167462 | J14: =F14*I14 -> 10.72167462 | M14: 587 | N14: Cut & Chip light trees 6" diameter (31 11 10.10 - 0020) {convert unit cost per ac to per SY)
A15: Excavation/Grading | B15: CY | C15: 69 | E15: 69 | F15: 69 | G15: ='Project Design'!B32*('Project Design'!B49+('Project Design'!B49+2*('Project Design'!B47+'Project Design'!B48)*'Project Design'!B45)*('Project Design'!B47+'Project Design'!B48)/2)/27 -> 4.925560857 | I15: 4.925560857 | J15: 339.8636991 | M15: 639 | N15: Landscape Grading - Topsoil Placement and Grading, Furnish and place,truck dumped, screened, 4" deep (32 91 19.13 0700) {convert SY to CY based on assumption of 4" deep}
A16: Dewatering | B16: DAY | C16: 1200 | E16: 1200 | F16: 1200 | G16: 0 | I16: 0 | J16: 0 | M16: 638 | N16: Soil Preparation - Mulching: Stone mulch, pea gravel (32 91 13.16 - 1600)
A17: Haul/Dispose of Excavated Material | B17: CY | C17: 10.3 | E17: 10.3 | F17: 10.3 | G17: =G15 -> 4.925560857 | I17: 4.925560857 | J17: 50.73327682 | M17: 601 | N17: Fill by Borrow, Utility bedding, crushed or screened bank run gravel (31 23 23.16 0050)
A18: Inflow Structure(s) | B18: LS | C18: 2200 | E18: =IF(D18="",C18,D18) -> 2200 | F18: =E18*$AD$6/100 -> 2200 | G18: 1 | I18: =IF(H18="",G18,H18) -> 1 | J18: =F18*I18 -> 2200 | M18: 639 | N18: Soil Preparation - Mulching: Wood Chips, 2" deep, hand spread (32 91 13.16 - 1900) {convert SY to CY based on assumption of 2" deep}
A19: Overflow Structure (concrete or rock riprap) | B19: CY | C19: 125 | E19: =IF(D19="",C19,D19) -> 125 | F19: =E19*$AD$6/100 -> 125 | G19: 7 | I19: 7 | J19: 875 | M19: 649 | N19: Public Sanitary Utility Sewerage Piping - Sewage Collection PVC: 20' length, S.D.R. 35, B&S, 6" diameter (33 31 13.25 - 2040)
A20: Hydroseed / Erosion Control: | B20: SF | C20: 0.07888888889 | E20: =IF(D20="",C20,D20) -> 0.07888888889 | F20: =E20*$AD$6/100 -> 0.07888888889 | G20: =G14 -> 10.72167462 | I20: 10.72167462 | J20: 0.8458209977 | M20: 590 | N20: Common earth with no sheeting or dewatering included, 1' to 4' deep, 3/8 CY excavator (32 23 16.13 0050)
A21: Metal Beam Guard Rail | B21: LF | C21: 57.5 | E21: =IF(D21="",C21,D21) -> 57.5 | F21: =E21*$AD$6/100 -> 57.5 | G21: ='Project Design'!B32*2 -> 10 | I21: 10 | J21: 575 | M21: 602 | N21: 8 CY truck, 15 MPH ave, cycle 6 miles, 20 minute wait/Ld/Uld (31 23 23.20 - 0222)
A22: Signage, Public Education Materials, etc. | B22: EA | C22: 77 | E22: =IF(D22="",C22,D22) -> 77 | F22: =E22*$AD$6/100 -> 77 | G22: 1 | I22: 1 | J22: 77 | M22: 590 | N22: Finish Grading Hand grading (31 22 16.10 1150)
A23: Other | E23: =IF(D23="",C23,D23) -> 0 | F23: =E23*$AD$6/100 -> 0 | I23: 0 | J23: 0 | M23: 641 | N23: Shrubs - broadleaf evergreen, Rhododendrom (32 93 33.2 1100) {price is EA, assumed planting 6 ft on center}
A24: Other | E24: 0 | F24: 0 | I24: 0 | J24: =F24*I24 -> 0 | M24: 639 | N24: Seeding - Mechanical Seeding, Hydro or air seeding for large areas, incl. seed and fertilizer (32 92 19.13 1000) {convert unit cost SY to SF}
A25: Other | E25: 0 | F25: 0 | I25: 0 | J25: 0 | M25: 590 | N25: Excavating, Trench Common earth with no sheeting, 1' to 4' deep, 3/8 CY excavator (31 23 16.13 0050) {price is BCY, assumed 18" wide, 18" deep trench)
A26: Total Facility Base Cost | J26: =SUM(J13:J25) -> 4542.080919 | M26: 599 | N26: Dewatering Systems - 8 hr attended, 6" centrifugal pump (31 23 19.20 - 1100)
M27: 654 | N27: Storm Drainage Manholes, Frames & Covers - Concrete, cast-in-place, 4' x 4', 8" thick, 4' deep (33 49 13.10 - 0800)
A29: Associated Capital Costs | B29: Default Baseline Unit Cost | D29: Baseline Unit Cost used in Calculations | E29: Default Quantity | F29: User-Entered Quantity | G29: Quantity used in Calculations | H29: Cost | I29: Guidance
A30: Project Management | B30: =J26*0.05 -> 227.1040459 | D30: =IF(C30="",B30,C30) -> 227.1040459 | E30: 1 | G30: =IF(F30="",E30,F30) -> 1 | H30: =D30*G30 -> 227.1040459 | I30: Enter project-specific values in the blue "User Entered Data" cells if applicable and the calculations will automatically update to override the default value. If a value is not provided, the default value will be used in the cost calculations.
A31: Engineering: Preliminary | B31: =J26*0.1 -> 454.2080919 | D31: =IF(C31="",B31,C31) -> 454.2080919 | E31: 1 | G31: =IF(F31="",E31,F31) -> 1 | H31: =D31*G31 -> 454.2080919
A32: Engineering: Final Design | B32: =J26*0.05 -> 227.1040459 | D32: 227.1040459 | E32: 1 | G32: 1 | H32: 227.1040459
A33: Topographic Survey | B33: 4025 | D33: 4025 | E33: 1 | G33: 1 | H33: 4025
A34: Geotechnical | B34: 2350 | D34: 2350 | E34: 1 | G34: 1 | H34: 2350
A35: Landscape Design | B35: =J26*0.02 -> 90.84161837 | D35: 90.84161837 | E35: 1 | G35: 1 | H35: 90.84161837
A36: Land Acquisition (site, easements, etc.) | D36: 0 | E36: 0.5 | G36: 0.5 | H36: 0
A37: Utility Relocation | D37: 0 | E37: 1 | G37: 1 | H37: 0
A38: Legal Services | B38: =J26*0.01 -> 45.42080919 | D38: 45.42080919 | E38: 1 | G38: 1 | H38: 45.42080919
A39: Permitting & Construction Inspection | B39: =J26*0.01 -> 45.42080919 | D39: 45.42080919 | E39: 1 | G39: 1 | H39: 45.42080919
A40: Sales Tax | B40: =AD7/100*J26 -> 420.142485 | D40: 420.142485 | E40: 1 | G40: 1 | H40: 420.142485
A41: Contingency (e.g., 20%) | B41: =0.2*J26 -> 908.4161837 | D41: 908.4161837 | E41: 1 | G41: 1 | H41: 908.4161837
A42: Total Associated Capital Costs | H42: =SUM(H30:H41) -> 8793.658089
A43: Total Facility Cost | H43: =J26+H42 -> 13335.73901

Sheet Maintenance Costs (hidden)
B1: ='Project Location'!A1 -> NCHRP Swale Evaluation Tool | X1: Key
B2: Project Title | D2: ='Project Location'!C2 -> Test Run | X2: User Steps | Y2: Default Data (editable) | Z2: Reference Data; do not edit cells
B3: Project Location | D3: ='Project Location'!C3 -> Portland , OR | X3: Headings and Descriptions | Y3: Default Data (not editable)
B4: Company | D4: ='Project Location'!C4 -> Geosyntec Consultants | X4: User Entered Data | Y4: Guidance
B6: Maintenance Costs
B10: Maintenance Level | D10: Guidance
B11: ="User entered "&IF(MaintLevel="H","HIGH",IF(MaintLevel="M","MEDIUM","LOW/MINIMUM"))&" maintenance level in Project Options." -> User entered MEDIUM maintenance level in Project Options. | C11: =MaintLevel -> M | D11: Change this parameter in the in "Project Options" tab if desired/applicable
A13: Lookup ID | B13: ROUTINE MAINTENANCE ACTIVITIES (Frequent, scheduled events)
B14: Cost Item | C14: Frequency (months betw. maint. events) | F14: Hours per Event | I14: Average Labor Crew Size | L14: Avg. (Pro-Rated) Labor Rate/Hr. ($) | O14: Machinery Cost/Hour ($) | R14: Materials & Inciden-tals Cost/Event ($) | U14: Total cost per visit ($)
C15: Model | D15: User | E15: Input | F15: Model | G15: User | H15: Input | I15: Model | J15: User | K15: Input | L15: Model | M15: User | N15: Input | O15: Model | P15: User | Q15: Input | R15: Model | S15: User | T15: Input | U15: Default Total | V15: User | W15: Total with User Overrides where entered | X15: Guidance
A16: 1.1 | B16: Inspection, Reporting & Information Management | C16: =VLOOKUP($A16,MaintCostTable,IF(MaintLevel="H",5,IF(MaintLevel="M",4,3))) -> 12 | E16: =IF(D16="",C16,D16) -> 12 | F16: =VLOOKUP($A16,MaintCostTable,IF(MaintLevel="H",8,IF(MaintLevel="M",7,6))) -> 1 | H16: =IF(G16="",F16,G16) -> 1 | I16: =VLOOKUP($A16,MaintCostTable,IF(MaintLevel="H",11,IF(MaintLevel="M",10,9))) -> 2 | K16: =IF(J16="",I16,J16) -> 2 | L16: =VLOOKUP($A16,MaintCostTable,IF(MaintLevel="H",14,IF(MaintLevel="M",13,12))) -> 50 | N16: =IF(M16="",L16,M16) -> 50 | O16: =VLOOKUP($A16,MaintCostTable,IF(MaintLevel="H",17,IF(MaintLevel="M",16,15))) -> 30 | Q16: =IF(P16="",O16,P16) -> 30 | R16: =VLOOKUP($A16,MaintCostTable,IF(MaintLevel="H",20,IF(MaintLevel="M",19,18))) -> 0 | T16: =IF(S16="",R16,S16) -> 0 | U16: =H16*K16*N16+H16*Q16+T16 -> 130 | W16: =IF(V16="",U16,V16) -> 130 | X16: If the model-predicted results do not match expected project maintenance requirements, edit the blue "User Entered Data" column with the appropriate values
A17: 1.2 | B17: Vegetation Management with Trash & Minor Debris Removal | C17: =VLOOKUP($A17,MaintCostTable,IF(MaintLevel="H",5,IF(MaintLevel="M",4,3))) -> 6 | E17: =IF(D17="",C17,D17) -> 6 | F17: =VLOOKUP($A17,MaintCostTable,IF(MaintLevel="H",8,IF(MaintLevel="M",7,6))) -> 4 | H17: =IF(G17="",F17,G17) -> 4 | I17: =VLOOKUP($A17,MaintCostTable,IF(MaintLevel="H",11,IF(MaintLevel="M",10,9))) -> 2 | K17: =IF(J17="",I17,J17) -> 2 | L17: =VLOOKUP($A17,MaintCostTable,IF(MaintLevel="H",14,IF(MaintLevel="M",13,12))) -> 50 | N17: =IF(M17="",L17,M17) -> 50 | O17: =VLOOKUP($A17,MaintCostTable,IF(MaintLevel="H",17,IF(MaintLevel="M",16,15))) -> 60 | Q17: =IF(P17="",O17,P17) -> 60 | R17: =VLOOKUP($A17,MaintCostTable,IF(MaintLevel="H",20,IF(MaintLevel="M",19,18))) -> 0 | T17: =IF(S17="",R17,S17) -> 0 | U17: =H17*K17*N17+H17*Q17+T17 -> 640 | W17: =IF(V17="",U17,V17) -> 640
A18: 1.3 | B18: add additional activities if necessary | C18: =VLOOKUP($A18,MaintCostTable,IF(MaintLevel="H",5,IF(MaintLevel="M",4,3))) -> 0 | E18: =IF(D18="",C18,D18) -> 0 | F18: =VLOOKUP($A18,MaintCostTable,IF(MaintLevel="H",8,IF(MaintLevel="M",7,6))) -> 0 | H18: =IF(G18="",F18,G18) -> 0 | I18: =VLOOKUP($A18,MaintCostTable,IF(MaintLevel="H",11,IF(MaintLevel="M",10,9))) -> 0 | K18: =IF(J18="",I18,J18) -> 0 | L18: =VLOOKUP($A18,MaintCostTable,IF(MaintLevel="H",14,IF(MaintLevel="M",13,12))) -> 0 | N18: =IF(M18="",L18,M18) -> 0 | O18: =VLOOKUP($A18,MaintCostTable,IF(MaintLevel="H",17,IF(MaintLevel="M",16,15))) -> 0 | Q18: =IF(P18="",O18,P18) -> 0 | R18: =VLOOKUP($A18,MaintCostTable,IF(MaintLevel="H",20,IF(MaintLevel="M",19,18))) -> 0 | T18: =IF(S18="",R18,S18) -> 0 | U18: 0 | W18: =IF(V18="",U18,V18) -> 0
A19: 1.4 | B19: add additional activities if necessary | C19: =VLOOKUP($A19,MaintCostTable,IF(MaintLevel="H",5,IF(MaintLevel="M",4,3))) -> 0 | E19: =IF(D19="",C19,D19) -> 0 | F19: =VLOOKUP($A19,MaintCostTable,IF(MaintLevel="H",8,IF(MaintLevel="M",7,6))) -> 0 | H19: =IF(G19="",F19,G19) -> 0 | I19: =VLOOKUP($A19,MaintCostTable,IF(MaintLevel="H",11,IF(MaintLevel="M",10,9))) -> 0 | K19: =IF(J19="",I19,J19) -> 0 | L19: =VLOOKUP($A19,MaintCostTable,IF(MaintLevel="H",14,IF(MaintLevel="M",13,12))) -> 0 | N19: =IF(M19="",L19,M19) -> 0 | O19: =VLOOKUP($A19,MaintCostTable,IF(MaintLevel="H",17,IF(MaintLevel="M",16,15))) -> 0 | Q19: =IF(P19="",O19,P19) -> 0 | R19: =VLOOKUP($A19,MaintCostTable,IF(MaintLevel="H",20,IF(MaintLevel="M",19,18))) -> 0 | T19: =IF(S19="",R19,S19) -> 0 | U19: 0 | W19: =IF(V19="",U19,V19) -> 0
A22: Lookup ID | B22: CORRECTIVE AND INFREQUENT MAINTENANCE ACTIVITIES (Unplanned and/or > 3 yrs. betw. events)
B23: Cost Item | C23: Frequency (months betw. maint. events) | F23: Hours per Event | I23: Average Labor Crew Size | L23: Avg. (Pro-Rated) Labor Rate/Hr. ($) | O23: Machinery Cost/Hour ($) | R23: Materials & Inciden-tals Cost/Event ($) | U23: Total cost per visit ($)
C24: Model | D24: User | E24: Input | F24: Model | G24: User | H24: Input | I24: Model | J24: User | K24: Input | L24: Model | M24: User | N24: Input | O24: Model | P24: User | Q24: Input | R24: Model | S24: User | T24: Input | U24: Default Total | V24: User | W24: Total with User Overrides where entered | X24: Guidance
A25: 2.1 | B25: Corrective Maintenance | C25: =VLOOKUP($A25,MaintCostTable,IF(MaintLevel="H",5,IF(MaintLevel="M",4,3))) -> 60 | E25: =IF(D25="",C25,D25) -> 60 | F25: =VLOOKUP($A25,MaintCostTable,IF(MaintLevel="H",8,IF(MaintLevel="M",7,6))) -> 8 | H25: =IF(G25="",F25,G25) -> 8 | I25: =VLOOKUP($A25,MaintCostTable,IF(MaintLevel="H",11,IF(MaintLevel="M",10,9))) -> 2 | K25: =IF(J25="",I25,J25) -> 2 | L25: =VLOOKUP($A25,MaintCostTable,IF(MaintLevel="H",14,IF(MaintLevel="M",13,12))) -> 50 | N25: =IF(M25="",L25,M25) -> 50 | O25: =VLOOKUP($A25,MaintCostTable,IF(MaintLevel="H",17,IF(MaintLevel="M",16,15))) -> 60 | Q25: =IF(P25="",O25,P25) -> 60 | R25: =VLOOKUP($A25,MaintCostTable,IF(MaintLevel="H",20,IF(MaintLevel="M",19,18))) -> 0 | T25: =IF(S25="",R25,S25) -> 0 | U25: =H25*K25*N25+H25*Q25+T25 -> 1280 | W25: =IF(V25="",U25,V25) -> 1280 | X25: If the model-predicted results do not match expected project maintenance requirements, edit the "User" column with the appropriate values
A26: 2.2 | B26: add additional activities if necessary | C26: =VLOOKUP($A26,MaintCostTable,IF(MaintLevel="H",5,IF(MaintLevel="M",4,3))) -> 0 | E26: =IF(D26="",C26,D26) -> 0 | F26: =VLOOKUP($A26,MaintCostTable,IF(MaintLevel="H",8,IF(MaintLevel="M",7,6))) -> 0 | H26: =IF(G26="",F26,G26) -> 0 | I26: =VLOOKUP($A26,MaintCostTable,IF(MaintLevel="H",11,IF(MaintLevel="M",10,9))) -> 0 | K26: =IF(J26="",I26,J26) -> 0 | L26: =VLOOKUP($A26,MaintCostTable,IF(MaintLevel="H",14,IF(MaintLevel="M",13,12))) -> 0 | N26: =IF(M26="",L26,M26) -> 0 | O26: =VLOOKUP($A26,MaintCostTable,IF(MaintLevel="H",17,IF(MaintLevel="M",16,15))) -> 0 | Q26: =IF(P26="",O26,P26) -> 0 | R26: =VLOOKUP($A26,MaintCostTable,IF(MaintLevel="H",20,IF(MaintLevel="M",19,18))) -> 0 | T26: =IF(S26="",R26,S26) -> 0 | U26: =H26*K26*N26+H26*Q26+T26 -> 0 | W26: =IF(V26="",U26,V26) -> 0
A27: 2.3 | B27: add additional activities if necessary | C27: =VLOOKUP($A27,MaintCostTable,IF(MaintLevel="H",5,IF(MaintLevel="M",4,3))) -> 0 | E27: =IF(D27="",C27,D27) -> 0 | F27: =VLOOKUP($A27,MaintCostTable,IF(MaintLevel="H",8,IF(MaintLevel="M",7,6))) -> 0 | H27: =IF(G27="",F27,G27) -> 0 | I27: =VLOOKUP($A27,MaintCostTable,IF(MaintLevel="H",11,IF(MaintLevel="M",10,9))) -> 0 | K27: =IF(J27="",I27,J27) -> 0 | L27: =VLOOKUP($A27,MaintCostTable,IF(MaintLevel="H",14,IF(MaintLevel="M",13,12))) -> 0 | N27: =IF(M27="",L27,M27) -> 0 | O27: =VLOOKUP($A27,MaintCostTable,IF(MaintLevel="H",17,IF(MaintLevel="M",16,15))) -> 0 | Q27: =IF(P27="",O27,P27) -> 0 | R27: =VLOOKUP($A27,MaintCostTable,IF(MaintLevel="H",20,IF(MaintLevel="M",19,18))) -> 0 | T27: =IF(S27="",R27,S27) -> 0 | U27: 0 | W27: =IF(V27="",U27,V27) -> 0
B31: Guidance
B32: Note: For facilities judged to require larger or smaller amounts of maintenance (due to land area, etc.), consider multiplying the Model output in Column U by a multiplier (e.g., 120%) in Column V.
B33: Another quick means of adjustment would be to multiply the number of Hours per Event by a multiplier in the User Input field.
A35: Lookup ID | B35: HIGH, MEDIUM, AND LOW (MINIMUM) MAINTENANCE COST TABLES
B36: Cost Item | C36: Frequency (months betw. maint. events) | F36: Hours per Event | I36: Average Labor Crew Size | L36: Avg. (Pro-Rated) Labor Rate/Hr. ($) | O36: Machinery Cost/Hour ($) | R36: Materials & Incidentals Cost/Event ($) | U36: Total cost per visit ($)
C37: Low | D37: Med | E37: High | F37: Low | G37: Med | H37: High | I37: Low | J37: Med | K37: High | L37: Low | M37: Med | N37: High | O37: Low | P37: Med | Q37: High | R37: Low | S37: Med | T37: High | U37: Low | V37: Med | W37: High
A38: 1 | B38: ROUTINE MAINTENANCE ACTIVITIES (Frequent, scheduled)
A39: 1.1 | B39: Inspection, Reporting & Information Management | C39: 12 | D39: 12 | E39: 12 | F39: 1 | G39: 1 | H39: 1 | I39: 2 | J39: 2 | K39: 2 | L39: 50 | M39: 50 | N39: 50 | O39: 30 | P39: 30 | Q39: 30 | R39: 0 | S39: 0 | T39: 0 | U39: =F39*I39*L39+F39*O39+R39 -> 130 | V39: 130 | W39: =H39*K39*N39+H39*Q39+T39 -> 130
A40: 1.2 | B40: Vegetation Management with Trash & Minor Debris Removal | C40: 12 | D40: 6 | E40: 4 | F40: 4 | G40: 4 | H40: 4 | I40: 2 | J40: 2 | K40: 2 | L40: 50 | M40: 50 | N40: 50 | O40: 60 | P40: 60 | Q40: 60 | R40: 0 | S40: 0 | T40: 0 | U40: 640 | V40: 640 | W40: =H40*K40*N40+H40*Q40+T40 -> 640
A41: 1.3 | B41: =B18 -> add additional activities if necessary
A42: 1.4 | B42: =B19 -> add additional activities if necessary
A43: 2 | B43: CORRECTIVE AND INFREQUENT MAINTENANCE ACTIVITIES (Unplanned and/or >2 yrs. betw. events) | R43: Cost per Cubic Yard Disposal
A44: 2.1 | B44: Corrective Maintenance | C44: =10*12 -> 120 | D44: 60 | E44: 24 | F44: 8 | G44: 8 | H44: 8 | I44: 2 | J44: 2 | K44: 2 | L44: 50 | M44: 50 | N44: 50 | O44: 60 | P44: 60 | Q44: 60 | R44: 0 | S44: 0 | T44: 0 | U44: =F44*I44*L44+F44*O44+R44 -> 1280 | V44: =G44*J44*M44+G44*P44+S44 -> 1280 | W44: =H44*K44*N44+H44*Q44+T44 -> 1280
A45: 2.2 | B45: =B26 -> add additional activities if necessary
A46: 2.3 | B46: =B27 -> add additional activities if necessary

Sheet Project Design
A1: ='Project Location'!A1 -> NCHRP Swale Evaluation Tool | D1: Key
A2: Project Title | B2: ='Project Location'!$C$2 -> Test Run | D2: User Steps | F2: Default data; editing allowed with rationale
A3: Project Location | B3: ='Project Location'!$C$3 -> Portland , OR | D3: User Entered Data | F3: Guidance
A4: Company | B4: ='Project Location'!$C$4 -> Geosyntec Consultants | D4: Lookup Data; do not edit cells | F4: Warnings
A7: Tributary Area Attributes
A9: Step 1: Provide data describing the tributary area of the project | AD9: Tc values | AI9: Second Treatment Train?
G10: = | AC10: Bioretention
A11: Tributary Area Input Parameters | C11: Guidance | S11: Design Event | T11: Long Term | Y11: Underlying Soil Design Infiltration Rate (in/hr) | AC11: Vegetated Conveyance | AD11: 5 | AI11: yes
A12: Tributary Area (acres) | B12: 3 | C12: Enter the total area tributary to the VRA treatment train including permeable pavement area, but excluding any VRA area outside of the roadway footprint. | P12: Soil Types | Q12: m | R12: b | S12: Cu | T12: Cu | V12: Infiltration Rate (in/hr) | Y12: =VLOOKUP(B14,P13:V16,7,FALSE) -> 0.06 | AC12: Dispersion (natural-engineered) | AD12: 10 | AI12: no
A13: Impervious Area (%) | B13: 60 | C13: All impervious area is assumed to be directly connected within the VRA tributary area; adjust imperviousness to account for disconnection if present (Value entered as an integer [e.g. 80 for 80%]) | P13: Loamy Sand (A) | Q13: 0.9 | R13: 0 | S13: 0.2 | T13: 0.05 | V13: 0.8 | AC13: Media Filter Drain | AD13: 15
A14: Tributary Area Soil Type (Hydrologic Soil Group) | B14: Clay (D) | C14: Select the soil type that is most representative of the tributary area to the VRAs | P14: Silt Loam (B) | Q14: 0.86 | R14: 0.04 | S14: 0.25 | T14: 0.1 | V14: 0.3 | AC14: Permeable Pavement Shoulders | AD14: 20
A15: Calculated Runoff Coefficient | B15: =IF((B13/100)<0.55, 0.225*(B13/100)+0.129, 1.14*(B13/100)-0.371) -> 0.313 | C15: This runoff coefficient is calculated based on a Two-line regression model of the volumetric runoff coefficient (Rv) (Granato, 2006), where Rv(%<55) = imperviousness (%) × 0.225 + 0.05, Rv(%>55) = imperviousness (%) × 1.14 - 0.371 | P15: Sandy Clay Loam (C) | Q15: 0.37 | R15: 0.53 | S15: 0.3 | T15: 0.15 | V15: 0.2 | AC15: Infiltration Trenches | AD15: 30
A16: User-Provided Runoff Coefficient | C16: Enter a site-specific runoff coefficient if available. If no value is entered here, the Simple Method will be used. | P16: Clay (D) | Q16: 0.15 | R16: 0.75 | S16: 0.35 | T16: 0.2 | V16: 0.06 | AC16: Infiltration Basins | AD16: 60
P17: Runoff Coefficient for Percent Capture Estimate | Q17: =VLOOKUP(B14,P13:R16,2,FALSE)*B13/100+VLOOKUP(B14,P13:R16,3,FALSE) -> 0.84 | R17: This is the runoff coefficient used for VRA volume normalization for the VRA sizing event. | W17: ` | AC17: Underground Infiltration System
A18: Tributary Area Runoff Reference Values | C18: Guidance | P18: Equivalent Area | Q18: =(Q17/0.9)*B12 -> 2.8
A19: Reference 85th Percentile Storm, 24-Hour Storm Depth, inches | B19: ='Project Location'!$P$22 -> 0.63 | C19: Per project-specific user input; for reference purposes only.
A20: Reference Runoff from 85th Percentile Storm Event, cu-ft | B20: =IF(B16="",ROUND((B15*B12*B19*43560/12),-1),ROUND((B16*B12*B19*43560/12),-1)) -> 2150 | C20: Volume is based on the Simple Method volumetric runoff coefficient or the user-entered runoff coefficient, if entered. For refereence only.
A21: Reference Average Annual Precipitation Depth, inches | B21: ='Project Location'!$P$23 -> 36.668365 | C21: Per project-specific user input; for reference purposes only.
A22: Reference Average Annual Runoff Volume, cu-ft | B22: =IF(B16="",ROUND((B15*B12*B21*43560/12),-3),ROUND((B16*B12*B21*43560/12),-3)) -> 125000 | C22: Volume is based on the Simple Method volumetric runoff coefficient or the user-entered runoff coefficient, if entered. For refereence only.
A24: Swale Conceptual Design Parameters
A26: Step 2: Provide data describing the BMP design
A30: Primary Swale Design Parameters | C30: Guidance | D30: Default Values | H30: Validation | I30: =IF(OR(B51+I41<I33,B51+I41>I34,B34<I35,B34>I36),1,"") -> 1 | J30: =IF(OR(J40+J41<J33,J40+J41>J34,J43<J35,J43>J36),1,"") -> 1 | K30: =IF(OR(K46<K33,K46>K34,K42<K35,K42>K36),"The design parameters provided are outside the range of lookup data provided","") -> The design parameters provided are outside the range of lookup data provided
A31: Water Quality Design Flow (cfs) | B31: 0.455 | C31: The flow through the swale required to achieve the desired water quality performance | D31: User input
A32: Bottom Length (ft) | B32: 5 | C32: The length of the conveyance/swale feature in the direction of flow. | D32: User input | H32: Look-ups Validation | P32: Bottom Width (ft)
A33: Effective Amended Soil Depth (inches) | B33: 12 | C33: Select from available options. Represents depth of soil and/or gravel sump that is actively available for soil soaking and drying. This tool is intended for vegetated conveyances/swales without a significant retention sump (i.e. ponding below outlet). Vegetated conveyance with significant sump can be evaluated using the "Bioretention Evaluation Tool" . | D33: 6 inches Dropdown user input selection | H33: Min x | I33: 0.02 | J33: 0.02 | P33: Bottom Length (ft)
A34: Underlying Soil Design Infiltration Rate (in/hr) | B34: 0.06 | C34: A default infiltration rate has been provided based on the soil type selected for the tributary. If a localized site infiltration rate is available, it should override this default data. | D34: By tributary soil type; recommend user override with site data | H34: Max x | I34: 4 | J34: 4 | P34: Effective Amended Soil Depth (inches)
A35: ="Swale Volume Reduction: "&ROUND((I44+J44)*100,0)&"%" -> Swale Volume Reduction: 13% | H35: Min y | I35: 1e-06 | J35: 1e-06 | P35: Underlying Soil Design Infiltration Rate (in/hr)
H36: Max y | I36: 1.9999 | J36: 1.9999 | P36: Longitudinal Slope (ft/ft)
P37: Horizontal/vertical side slope ratio (H:1V)
I38: ET | J38: Infiltration | K38: Capture | P38: Water Quality Flow Depth (in)
A39: Additional Swale Design and Reference Parameters | C39: Guidance | D39: Default Values | H39: Amendment Depth (in) | I39: =B33 -> 12 | J39: =I39 -> 12 | K39: -
A40: Fraction of runoff as lateral inflow (%) | B40: 20 | C40: The fraction of runoff that enters the swale laterally (from the sides). | D40: User input | H40: Pervious to Impervious Ratio | I40: =B51 -> 0.0004919323101 | J40: =I40 -> 0.0004919323101 | K40: -
A41: Longitudinal Slope (ft/ft) | B41: 0.01 | C41: The average slope in the direction of flow. | D41: User input | H41: Upstream Compartment Equivalent Pervious to Impervious Ratio | I41: =IFERROR(IF(OR(CELL("address",H38)="$H$38",CELL("address",H38)="$H$41"),0,IF(I43=0,0,adjusted_Perv_Imp_VRA2_Total(I40,$H$57))),I34) -> 0 | J41: 0 | K41: - | V41: Lateral Flow Impervious Calcs
A42: On-line vs. Off-line | B42: Online | C42: User specified, for purposes of water quality estimation only. | D42: Online | H42: Adjusted P:I for Percent Capture | I42: =IF(I41+I40<I33,I33,IF(I41+I40>I34,I34,I41+I40)) -> 0.02 | J42: =IF(J41+J40<J33,J33,IF(J41+J40>J34,J34,J41+J40)) -> 0.02 | K42: - | R42: Default Parameters? | S42: Amendment Depths | V42: WQ Depth (bottom Length) | W42: Freeboard Depth (Top Length) | X42: Horizontal | Y42: Diagonal | Z42: Total Surface Area (ft2)
A43: Time of concentration (min) | B43: 15 | C43: User specified, time of concentration based on the water quality design flow | D43: User input | H43: Infiltration Rate (in/hr) | I43: =IF(B34<I35,I35,IF(B34>I36,I36,B34)) -> 0.06 | J43: =I43 -> 0.06 | K43: - | R43: yes | S43: 0 | V43: =B32+2*B45*B46/12 -> 7 | W43: =V43+2*B45*B48 -> 13 | X43: =B45*B48 -> 3 | Y43: =SQRT(X43^2+B48^2) -> 3.16227766 | Z43: =2*(V43+W43)*Y43/2 -> 63.2455532
A44: Manning's friction coefficient (n) | B44: 0.4 | C44: User specified, manning's friction coefficient based on vegetation and surface of swale | D44: 0.4 | H44: % Volume Reduction from Dispersion | I44: =capture_Dispersion_VRA1_ET(I42,I43) -> 0.004496259446 | J44: =IF(B42="Online",capture_Dispersion_VRA1_Infil(J42,J43),IF(capture_Dispersion_VRA1_Infil(J42,J43)>K44,K44-I44,capture_Dispersion_VRA1_Infil(J42,J43))) -> 0.1285915012 | K44: =IF(B42="online",IF(J44+I44>'Capture-Flow'!AJ7,J44+I44,'Capture-Flow'!AJ7),'Capture-Flow'!AJ7) -> 0.8014055122 | R44: no | S44: 3
A45: Horizontal/vertical side slope ratio (H:1V) | B45: 3 | C45: For example: For a side slope of 4 horizontal feet per 1 vertical foot, enter 4 | D45: 3 | S45: 6
A46: Water Quality Flow Depth (in) | B46: 4 | C46: The design depth, below which the majority of flow is assumed to be conveyed and above which treatment processes begin to decline. | D46: 4 | H46: Notes | S46: 12
A47: Maximum Depth (ft) | B47: 1 | C47: The maximum depth represents the depth from the bottom of the swale up to the freeboard | D47: User Input | R47: Online | S47: 24
A48: Freeboard Depth (ft) | B48: 1 | C48: The storage above the water quality volume. This storage is neglected when estimating treatment volumes because overflow/bypass is assumed to begin when the water quality storage volume has been exhausted. However, it is included in cost calculations. | D48: 1 | R48: Offline
A49: Bottom Width (ft) | B49: 7.299014313 | C49: The width of the approximately flat section at the bottom of the conveyance/swale feature. | D49: Calculated
A50: Calculated Pervious Area (ft2) | B50: =ROUND((B49+2*B45*B46/12)*B32+Z43*B40/100,-1) -> 60 | C50: Estimate footprint area based on water quality depth. | D50: Calculated
A51: Ratio of Pervious Area to Impervious Area | B51: =B50/($Q$18*43560) -> 0.0004919323101 | C51: Calculated based on user inputs; fundamental indicator of volume reduction performance. | D51: Calculated
A52: Wetted Area (ft2) | B52: =(B49+B45*(B46/12))*(B46/12) -> 2.766338104 | C52: Calculated based on previous inputs for water quality estimation only | D52: Calculated | BB52: Or "B40" Or "B44" Or "B45"
A53: Wetted Perimeter (ft) | B53: =B49+(2*(SQRT(((B45*B46/12)^2)+((B46/12)^2)))) -> 9.407199419 | C53: Calculated based on previous inputs for water quality estimation only | D53: Calculated
A54: Hydraulic Radius (ft) | B54: =B52/B53 -> 0.2940660638 | C54: Calculated based on previous inputs for water quality estimation only | D54: Calculated | P54: =COUNTA(P32:P49) -> 7
A55: Calculated Design Intensity (in/hr) | B55: =B62*12*60*60/(Q17*B12*43560) -> 0.1787772143 | C55: Calculated based on previous inputs for water quality estimation only | D55: Calculated
A56: Hydraulic Residence Time (min) | B56: =(B52*B32)/B31/60 -> 0.5066553304 | C56: Calculated based on the water quality flow and the swale bottom length | D56: Calculated | H56: % Volume Reduction for Second VRA Adjustment | I56: Cumulative % Capture | J56: Individual ET | K56: Individual Infiltration | L56: Individual Dispersion | M56: Individual Capture
H57: =I44+J44 -> 0.1330877606 | I57: =K44 -> 0.8014055122 | J57: =MAX(IF(CELL("address",H38)="$H$38",I44,I44-$H$57),0) -> 0.004496259446 | K57: =MAX(IF(CELL("address",H38)="$H$38",J44,J44-$H$57),0) -> 0.1285915012 | L57: 0 | M57: =IF(K44-H57<0,0,K44-H57) -> 0.6683177516
A62: Water Quality Flow (cfs) | B62: =(B54^0.667*B41^0.5)*B52*1.486/B44 -> 0.4542729014 | C62: Calculated based on previous inputs for water quality estimation only | D62: Calculated

Sheet Results Summary Report
A1: ='Project Location'!A1 -> NCHRP Swale Evaluation Tool
A2: Project Title | B2: ='Project Location'!$C$2 -> Test Run
A3: Project Location | B3: ='Project Location'!$C$3 -> Portland , OR
A4: Company | B4: ='Project Location'!$C$4 -> Geosyntec Consultants
A7: Results Summary Report
A10: Summary of Modeled Scenario
A12: ="The modeled scenario consists of a tributary area of "&'Project Design'!B12&" acres at "&'Project Design'!B13&"% impervious, draining to a Swale BMP." -> The modeled scenario consists of a tributary area of 3 acres at 60% impervious, draining to a Swale BMP.
A13: ="Analysis is based on the "&'Project Location'!P11&" gage, in "&'Project Location'!O11&", with Project Location 85th percentile, 24-hour storm depth of "&FIXED('Project Location'!P22,2)&" inches, and Project Location average annual precipitation depth of "&ROUND('Project Location'!P23,1)&" inches." -> Analysis is based on the [2] WILLAMETTE VALLEY - PORTLAND INTL AP gage, in Oregon, with Project Location 85th percentile, 24-hour storm depth of 0.63 inches, and Project Location average annual precipitation depth of 36.7 inches.
A16: Summary of Primary Conceptual Design Parameters
A18: Swale
A19: =IF('Project Design'!P32=0,"",'Project Design'!P32) -> Bottom Width (ft) | B19: =IF(A19="","",VLOOKUP(A19,'Project Design'!A32:B57,2,FALSE)) -> 7.299014313
A20: =IF('Project Design'!P33=0,"",'Project Design'!P33) -> Bottom Length (ft) | B20: =IF(A20="","",VLOOKUP(A20,'Project Design'!A32:B57,2,FALSE)) -> 5
A21: =IF('Project Design'!P34=0,"",'Project Design'!P34) -> Effective Amended Soil Depth (inches) | B21: =IF(A21="","",VLOOKUP(A21,'Project Design'!A32:B57,2,FALSE)) -> 12
A22: =IF('Project Design'!P35=0,"",'Project Design'!P35) -> Underlying Soil Design Infiltration Rate (in/hr) | B22: =IF(A22="","",VLOOKUP(A22,'Project Design'!A32:B57,2,FALSE)) -> 0.06
A23: =IF('Project Design'!P36=0,"",'Project Design'!P36) -> Longitudinal Slope (ft/ft) | B23: =IF(A23="","",VLOOKUP(A23,'Project Design'!A32:B57,2,FALSE)) -> 0.01
A24: See "Project Design" tab for detailed inputs
A26: Summary of Whole Lifecycle Cost Results
A28: Capital Costing Method | B28: Line Item Engineer's Estimate
A29: Assumed Level of Maintenance | B29: ='Project Options'!B34 -> M
A30: Estimated Capital Cost, $ (2013) | B30: ='Whole Life Costs Summary'!B14 -> 13335.73901
A31: Estimated NPV of Design Life Maintenance Costs, $ (2013) | B31: ='Whole Life Costs'!L3 -> 32557.93995
A32: Estimated NPV of Design Life Whole Life Cycle Cost, $ (2013) | B32: =SUM(B30:C31) -> 45893.67896
A33: Estimated Annualized Whole Life Cycle Cost, $/yr (2013) | B33: =B32/'Project Options'!B35 -> 1835.747158
A34: Costs are based on design life with routine and major maintenance.
A36: Summary of Volume and Pollutant Load Performance
B38: Average Annual Volume, cf/yr | C38: Percent of Baseline Runoff Volume, % | D38: Average Annual Pollutant Loads | S38: Average Annual Volume, cf/yr | T38: Percent of Baseline Runoff Volume, % | U38: Average Annual Pollutant Loads
A39: Volume and Pollutant Load Performance | D39: Pathogens (CFU/yr) | F39: Metals (lb/yr) | I39: Nutrients (lb/yr) | N39: Sediment (lb/yr) | U39: Pathogens (CFU) | W39: Metals (lb) | Z39: Nutrients (lb) | AE39: Sediment (lb)
D40: E. Coli | E40: Fecal Coliform | F40: Total Copper | G40: Total Lead | H40: Total Zinc | I40: Nitrate [NO3] | J40: Total Kjeldahl Nitrogen [TKN] | K40: Total Nitrogen | L40: Dissolved Phosphorus | M40: Total Phosphorus | N40: Total Suspended Solids [TSS] | U40: E. Coli | V40: Fecal Coliform | W40: Total Copper | X40: Total Lead | Y40: Total Zinc | Z40: Nitrate [NO3] | AA40: Total Kjeldahl Nitrogen [TKN] | AB40: Total Nitrogen | AC40: Dissolved Phosphorus | AD40: Total Phosphorus | AE40: Total Suspended Solids [TSS]
A41: Baseline Average Annual Runoff Volume | B41: =IF(S41=0,0,IFERROR(ROUND(S41,3-1-INT(LOG(ABS(S41)))),"N/A")) -> 125000 | C41: - | D41: =IF(U41=0,0,IFERROR(ROUND(U41,3-1-INT(LOG(ABS(U41)))),"N/A")) -> 2130000000000000 | E41: =IF(V41=0,0,IFERROR(ROUND(V41,3-1-INT(LOG(ABS(V41)))),"N/A")) -> 3080000000000000 | F41: 0.326 | G41: 0.344 | H41: 1.48 | I41: 8.27 | J41: 18.1 | K41: 26.4 | L41: 1.95 | M41: 3.45 | N41: 1080 | S41: ='Project Design'!B22 -> 125000 | T41: -- | U41: =$S41*28316.8*100*'Pollutant Concentrations'!$I$26 -> 2132686871200000 | V41: =$S41*28316.8*100*'Pollutant Concentrations'!$I$25 -> 3079413064400000 | W41: =$S41*28.3168*'Pollutant Concentrations'!$I$19*10^-6*0.00220462 -> 0.3258730305 | X41: =$S41*28.3168*'Pollutant Concentrations'!$I$18*10^-6*0.00220462 -> 0.3439770877 | Y41: =$S41*28.3168*'Pollutant Concentrations'!$I$17*10^-6*0.00220462 -> 1.482113618 | Z41: =$S41*28.3168*'Pollutant Concentrations'!$I$22*10^-3*0.00220462 -> 8.271681329 | AA41: =$S41*28.3168*'Pollutant Concentrations'!$I$23*10^-3*0.00220462 -> 18.10405725 | AB41: =$S41*28.3168*'Pollutant Concentrations'!$I$20*10^-3*0.00220462 -> 26.37573858 | AC41: =$S41*28.3168*'Pollutant Concentrations'!$I$24*10^-3*0.00220462 -> 1.950868238 | AD41: =$S41*28.3168*'Pollutant Concentrations'!$I$21*10^-3*0.00220462 -> 3.449287208 | AE41: =$S41*28.3168*'Pollutant Concentrations'!$I$16*10^-3*0.00220462 -> 1083.434185
A42: Runoff Bypassed | B42: =IF(S42=0,0,IFERROR(ROUND(S42,3-1-INT(LOG(ABS(S42)))),"N/A")) -> 24800 | C42: =IF(T42=0,0,IFERROR(ROUND(T42,3-1-INT(LOG(ABS(T42)))),"N/A")) -> 0.199 | D42: =IF(U42=0,0,IFERROR(ROUND(U42,3-1-INT(LOG(ABS(U42)))),"N/A")) -> 424000000000000 | E42: =IF(V42=0,0,IFERROR(ROUND(V42,3-1-INT(LOG(ABS(V42)))),"N/A")) -> 612000000000000 | F42: =IF(W42=0,0,IFERROR(ROUND(W42,3-1-INT(LOG(ABS(W42)))),"N/A")) -> 0.0647 | G42: =IF(X42=0,0,IFERROR(ROUND(X42,3-1-INT(LOG(ABS(X42)))),"N/A")) -> 0.0683 | H42: =IF(Y42=0,0,IFERROR(ROUND(Y42,3-1-INT(LOG(ABS(Y42)))),"N/A")) -> 0.294 | I42: =IF(Z42=0,0,IFERROR(ROUND(Z42,3-1-INT(LOG(ABS(Z42)))),"N/A")) -> 1.64 | J42: =IF(AA42=0,0,IFERROR(ROUND(AA42,3-1-INT(LOG(ABS(AA42)))),"N/A")) -> 3.6 | K42: =IF(AB42=0,0,IFERROR(ROUND(AB42,3-1-INT(LOG(ABS(AB42)))),"N/A")) -> 5.24 | L42: =IF(AC42=0,0,IFERROR(ROUND(AC42,3-1-INT(LOG(ABS(AC42)))),"N/A")) -> 0.387 | M42: =IF(AD42=0,0,IFERROR(ROUND(AD42,3-1-INT(LOG(ABS(AD42)))),"N/A")) -> 0.685 | N42: =IF(AE42=0,0,IFERROR(ROUND(AE42,3-1-INT(LOG(ABS(AE42)))),"N/A")) -> 215 | S42: =S41-S43 -> 24824.31098 | T42: =S42/$S$41 -> 0.1985944878 | U42: =S42*28316.8*100*'Pollutant Concentrations'!$I$26 -> 4.235398569e+14 | V42: =$S42*28316.8*100*'Pollutant Concentrations'!$I$25 -> 6.115544603e+14 | W42: =$S42*28.3168*'Pollutant Concentrations'!$I$19*10^-6*0.00220462 -> 0.06471658758 | X42: =$S42*28.3168*'Pollutant Concentrations'!$I$18*10^-6*0.00220462 -> 0.06831195356 | Y42: =$S42*28.3168*'Pollutant Concentrations'!$I$17*10^-6*0.00220462 -> 0.2943395948 | Z42: =$S42*28.3168*'Pollutant Concentrations'!$I$22*10^-3*0.00220462 -> 1.642710317 | AA42: =$S42*28.3168*'Pollutant Concentrations'!$I$23*10^-3*0.00220462 -> 3.595365977 | AB42: =$S42*28.3168*'Pollutant Concentrations'!$I$20*10^-3*0.00220462 -> 5.238076294 | AC42: =$S42*28.3168*'Pollutant Concentrations'!$I$24*10^-3*0.00220462 -> 0.3874316785 | AD42: =$S42*28.3168*'Pollutant Concentrations'!$I$21*10^-3*0.00220462 -> 0.6850094265 | AE42: =$S42*28.3168*'Pollutant Concentrations'!$I$16*10^-3*0.00220462 -> 215.164057
A43: BMP Captured | B43: 100000 | C43: 0.801 | D43: 1710000000000000 | E43: 2470000000000000 | F43: 0.261 | G43: 0.276 | H43: 1.19 | I43: 6.63 | J43: 14.5 | K43: 21.1 | L43: 1.56 | M43: 2.76 | N43: 868 | S43: ='Project Design'!I57*'Results Summary Report'!S41 -> 100175.689 | T43: =S43/$S$41 -> 0.8014055122 | U43: =$T$43*U41 -> 1.709147014e+15 | V43: =$T$43*V41 -> 2.467858604e+15 | W43: 0.2611564429 | X43: 0.2756651342 | Y43: 1.187774023 | Z43: 6.628971012 | AA43: 14.50869127 | AB43: 21.13766228 | AC43: 1.563436559 | AD43: 2.764277782 | AE43: 868.2701277
A44: Total Volume Reduction | B44: 16600 | C44: 0.133 | D44: 284000000000000 | E44: 410000000000000 | F44: 0.0434 | G44: 0.0458 | H44: 0.197 | I44: 1.1 | J44: 2.41 | K44: 3.51 | L44: 0.26 | M44: 0.459 | N44: 144 | S44: =SUM(S45:S46) -> 16635.97008 | T44: =S44/$S$41 -> 0.1330877606 | U44: =$T$44*U41 -> 2.838345198e+14 | V44: =$T$44*V41 -> 4.098321887e+14 | W44: 0.04336971187 | X44: 0.0457791403 | Y44: 0.1972511824 | Z44: 1.100859545 | AA44: 2.409428437 | AB44: 3.510287982 | AC44: 0.259636685 | AD44: 0.4590579102 | AE44: 144.1918294
A45: ET Reduction | B45: 562 | C45: 0.0045 | D45: - | E45: - | F45: - | G45: - | H45: - | I45: - | J45: - | K45: - | L45: - | M45: - | N45: - | S45: ='Project Design'!J57*'Results Summary Report'!S41 -> 562.0324308 | T45: 0.004496259446 | U45: - | V45: - | W45: - | X45: - | Y45: - | Z45: - | AA45: - | AB45: - | AC45: - | AD45: - | AE45: -
A46: Infiltration Reduction | B46: 16100 | C46: 0.129 | D46: - | E46: - | F46: - | G46: - | H46: - | I46: - | J46: - | K46: - | L46: - | M46: - | N46: - | S46: ='Project Design'!K57*'Results Summary Report'!S41 -> 16073.93764 | T46: 0.1285915012 | U46: - | V46: - | W46: - | X46: - | Y46: - | Z46: - | AA46: - | AB46: - | AC46: - | AD46: - | AE46: -
A47: Treatment Reduction | B47: - | C47: - | D47: 0 | E47: 0 | F47: 0.0933 | G47: 0.112 | H47: 0.692 | I47: 0 | J47: 0 | K47: 0 | L47: 0 | M47: 0.509 | N47: 444 | S47: - | T47: - | U47: =IF(U43-U44<=U48,0,U43-U44-U48) -> 0 | V47: =IF(V43-V44<=V48,0,V43-V44-V48) -> 0 | W47: 0.09325632543 | X47: 0.1118852559 | Y47: 0.6917212494 | Z47: 0 | AA47: 0 | AB47: 0 | AC47: 0 | AD47: 0.5092705909 | AE47: 443.6395355
A48: BMP Effluent | B48: 83500 | C48: 0.668 | D48: 1430000000000000 | E48: 2060000000000000 | F48: 0.125 | G48: 0.118 | H48: 0.299 | I48: 5.53 | J48: 12.1 | K48: 17.6 | L48: 1.3 | M48: 1.8 | N48: 280 | S48: =S41-S42-S44 -> 83539.71895 | T48: =S48/S41 -> 0.6683177516 | U48: =S48*28316.8*100*'Pollutant Concentrations'!K26 -> 1425312494575755 | V48: =$S48*28316.8*100*'Pollutant Concentrations'!$K$25 -> 2.058026415e+15 | W48: =$S48*28.3168*'Pollutant Concentrations'!$K$19*10^-6*0.00220462 -> 0.1245304056 | X48: =$S48*28.3168*'Pollutant Concentrations'!$K$18*10^-6*0.00220462 -> 0.118000738 | Y48: =$S48*28.3168*'Pollutant Concentrations'!$K$17*10^-6*0.00220462 -> 0.2988015912 | Z48: =$S48*28.3168*'Pollutant Concentrations'!$K$22*10^-3*0.00220462 -> 5.528111468 | AA48: =$S48*28.3168*'Pollutant Concentrations'!$K$23*10^-3*0.00220462 -> 12.09926283 | AB48: =$S48*28.3168*'Pollutant Concentrations'!$K$20*10^-3*0.00220462 -> 17.6273743 | AC48: =$S48*28.3168*'Pollutant Concentrations'!$K$24*10^-3*0.00220462 -> 1.303799874 | AD48: =$S48*28.3168*'Pollutant Concentrations'!$K$21*10^-3*0.00220462 -> 1.795949281 | AE48: =$S48*28.3168*'Pollutant Concentrations'!$K$16*10^-3*0.00220462 -> 280.4387628
A49: Total Discharge | B49: 108000 | C49: 0.867 | D49: 1850000000000000 | E49: 2670000000000000 | F49: 0.189 | G49: 0.186 | H49: 0.593 | I49: 7.17 | J49: 15.7 | K49: 22.9 | L49: 1.69 | M49: 2.48 | N49: 496 | S49: =S48+S42 -> 108364.0299 | T49: =S49/S41 -> 0.8669122394 | U49: =U48+U42 -> 1.848852351e+15 | V49: =V48+V42 -> 2669580875682564 | W49: 0.1892469932 | X49: 0.1863126915 | Y49: 0.593141186 | Z49: 7.170821785 | AA49: 15.69462881 | AB49: 22.8654506 | AC49: 1.691231553 | AD49: 2.480958707 | AE49: 495.6028198
A50: BMP Load Reduction | B50: - | C50: - | D50: 284000000000000 | E50: 410000000000000 | F50: 0.137 | G50: 0.158 | H50: 0.889 | I50: 1.1 | J50: 2.41 | K50: 3.51 | L50: 0.26 | M50: 0.968 | N50: 588 | S50: - | U50: =U43-U48 -> 2.838345198e+14 | V50: =V43-V48 -> 4.098321887e+14 | W50: 0.1366260373 | X50: 0.1576643962 | Y50: 0.8889724318 | Z50: 1.100859545 | AA50: 2.409428437 | AB50: 3.510287982 | AC50: 0.259636685 | AD50: 0.9683285011 | AE50: 587.8313649
A51: % Annual BMP Load Reduction | B51: - | C51: - | D51: 0.133 | E51: 0.133 | F51: 0.419 | G51: 0.458 | H51: 0.6 | I51: 0.133 | J51: 0.133 | K51: 0.133 | L51: 0.133 | M51: 0.281 | N51: 0.543 | U51: =U50/U41 -> 0.1330877606 | V51: =V50/V41 -> 0.1330877606 | W51: 0.4192615667 | X51: 0.4583572622 | Y51: 0.5998004614 | Z51: 0.1330877606 | AA51: 0.1330877606 | AB51: 0.1330877606 | AC51: 0.1330877606 | AD51: 0.2807329291 | AE51: 0.5425630585
A53: Annualized Cost Per Unit of Performance | B53: Hydrologic Performance | D53: Pathogens ($$/10^12 CFU) | F53: Metals ($$/lb) | I53: Nutrients ($$/lb) | N53: Sediment ($$/lb)
B54: Volume Reduction ($/cu-ft removed) | C54: Volume Capture ($/ cu-ft captured) | D54: E. Coli | E54: Fecal Coliform | F54: Total Copper | G54: Total Lead | H54: Total Zinc | I54: Nitrate [NO3] | J54: Total Kjeldahl Nitrogen [TKN] | K54: Total Nitrogen | L54: Dissolved Phosphorus | M54: Total Phosphorus | N54: Total Suspended Solids [TSS]
A55: Whole Lifecycle Cost per Unit, annualized (2013 dollars) | B55: =B33/B44 -> 0.1105871782 | C55: =B33/B43 -> 0.01835747158 | D55: =$B$33/(D50/10^12) -> 6.463898445 | E55: =$B$33/(E50/10^12) -> 4.477432094 | F55: =$B$33/(F50) -> 13399.61429 | G55: 11618.6529 | H55: 2064.957434 | I55: 1668.861053 | J55: 761.7208126 | K55: 523.0048884 | L55: 7060.565994 | M55: 1896.433015 | N55: 3.122018977
A80: Summary of Average Water Quality Concentrations
A82: Average Influent and Effluent Quality Summary Table | D82: Average Annual Concentration
D83: Pathogens (CFU/100ml) | F83: Metals (mg/L) | I83: Nutrients (mg/L) | N83: Sediment (mg/L)
D84: E. Coli | E84: Fecal Coliform | F84: Total Copper | G84: Total Lead | H84: Total Zinc | I84: Nitrate [NO3] | J84: Total Kjeldahl Nitrogen [TKN] | K84: Total Nitrogen | L84: Dissolved Phosphorus | M84: Total Phosphorus | N84: Total Suspended Solids [TSS]
A85: Influent Concentration | D85: =VLOOKUP(D$91,'Pollutant Concentrations'!$A$16:$K$26,9,FALSE) -> 6025.22 | E85: =VLOOKUP(E$91,'Pollutant Concentrations'!$A$16:$K$26,9,FALSE) -> 8699.89 | F85: =VLOOKUP(F$91,'Pollutant Concentrations'!$A$16:$K$26,9,FALSE) -> 41.76 | G85: =VLOOKUP(G$91,'Pollutant Concentrations'!$A$16:$K$26,9,FALSE) -> 44.08 | H85: =VLOOKUP(H$91,'Pollutant Concentrations'!$A$16:$K$26,9,FALSE) -> 189.93 | I85: =VLOOKUP(I$91,'Pollutant Concentrations'!$A$16:$K$26,9,FALSE) -> 1.06 | J85: =VLOOKUP(J$91,'Pollutant Concentrations'!$A$16:$K$26,9,FALSE) -> 2.32 | K85: =VLOOKUP(K$91,'Pollutant Concentrations'!$A$16:$K$26,9,FALSE) -> 3.38 | L85: =VLOOKUP(L$91,'Pollutant Concentrations'!$A$16:$K$26,9,FALSE) -> 0.25 | M85: =VLOOKUP(M$91,'Pollutant Concentrations'!$A$16:$K$26,9,FALSE) -> 0.4420194995 | N85: =VLOOKUP(N$91,'Pollutant Concentrations'!$A$16:$K$26,9,FALSE) -> 138.84
A86: Treated Effluent Concentration | D86: =VLOOKUP(D$91,'Pollutant Concentrations'!$A$16:$K$26,11,FALSE) -> 6025.22 | E86: =VLOOKUP(E$91,'Pollutant Concentrations'!$A$16:$K$26,11,FALSE) -> 8699.89 | F86: =VLOOKUP(F$91,'Pollutant Concentrations'!$A$16:$K$26,11,FALSE) -> 23.87835895 | G86: =VLOOKUP(G$91,'Pollutant Concentrations'!$A$16:$K$26,11,FALSE) -> 22.62631334 | H86: =VLOOKUP(H$91,'Pollutant Concentrations'!$A$16:$K$26,11,FALSE) -> 57.29437413 | I86: =VLOOKUP(I$91,'Pollutant Concentrations'!$A$16:$K$26,11,FALSE) -> 1.06 | J86: =VLOOKUP(J$91,'Pollutant Concentrations'!$A$16:$K$26,11,FALSE) -> 2.32 | K86: =VLOOKUP(K$91,'Pollutant Concentrations'!$A$16:$K$26,11,FALSE) -> 3.38 | L86: =VLOOKUP(L$91,'Pollutant Concentrations'!$A$16:$K$26,11,FALSE) -> 0.25 | M86: =VLOOKUP(M$91,'Pollutant Concentrations'!$A$16:$K$26,11,FALSE) -> 0.34436828 | N86: =VLOOKUP(N$91,'Pollutant Concentrations'!$A$16:$K$26,11,FALSE) -> 53.77335285
A87: Whole Effluent Concentration* | D87: =U49/($S$49*28316.8*100) -> 6025.22 | E87: =V49/($S$49*28316.8*100) -> 8699.89 | F87: =W49*453592370/($S$49*28.3168) -> 27.97469805 | G87: =X49*453592370/($S$49*28.3168) -> 27.54094637 | H87: 87.67878053 | I87: =Z49*453592/($S$49*28.3168) -> 1.059997875 | J87: =AA49*453592/($S$49*28.3168) -> 2.319995348 | K87: 3.379993223 | L87: 0.2499994988 | M87: 0.3667377375 | N87: =AE49*453592/($S$49*28.3168) -> 73.26049251
A88: * Accounting for treated effluent quality, bypass effluent quality, capture efficiency and volume reduction
D91: Escherichia Coli [E. Coli] (col/100mL) | E91: Fecal Coliform (col/100mL) | F91: Total Copper (ug/L) | G91: Total Lead (ug/L) | H91: Total Zinc (ug/L) | I91: Nitrate [NO3] (mg/L) | J91: Total Kjeldahl Nitrogen [TKN] (mg/L) | K91: Total Nitrogen (mg/L) | L91: Dissolved Phosphorus (mg/L) | M91: Total Phosphorus (mg/L) | N91: Total Suspended Solids (mg/L)

Sheet Whole Life Costs Summary
A1: ='Project Location'!A1 -> NCHRP Swale Evaluation Tool
A2: Project Title | B2: ='Project Location'!$C$2 -> Test Run
A3: Project Location | B3: ='Project Location'!$C$3 -> Portland , OR
A4: Company | B4: ='Project Location'!$C$4 -> Geosyntec Consultants
AM7: Y
A8: Whole Life Cycle Costs Summary | AM8: N
A10: CAPITAL COSTS | B10: Total Cost
A12: Total Facility Base Cost | B12: ='Capital Costs'!J26 -> 4542.080919
A13: Total Associated Capital Costs (e.g., Engineering, Land, etc.) | B13: ='Capital Costs'!H42 -> 8793.658089
A14: Capital Costs | B14: ='Capital Costs'!B8 -> 13335.73901
A16: REGULAR MAINTENANCE ACTIVITIES | B16: Years between Events | C16: Total Cost per Visit | D16: Total Cost per Year
A19: ='Maintenance Costs'!B16 -> Inspection, Reporting & Information Management | B19: ='Maintenance Costs'!E16/12 -> 1 | C19: ='Maintenance Costs'!W16 -> 130 | D19: =IF(B19=0,0,C19/B19) -> 130
A20: ='Maintenance Costs'!B17 -> Vegetation Management with Trash & Minor Debris Removal | B20: ='Maintenance Costs'!E17/12 -> 0.5 | C20: ='Maintenance Costs'!W17 -> 640 | D20: =IF(B20=0,0,C20/B20) -> 1280
A21: ='Maintenance Costs'!B18 -> add additional activities if necessary | B21: ='Maintenance Costs'!E18/12 -> 0 | C21: ='Maintenance Costs'!W18 -> 0 | D21: =IF(B21=0,0,C21/B21) -> 0
A22: ='Maintenance Costs'!B19 -> add additional activities if necessary | B22: ='Maintenance Costs'!E19/12 -> 0 | C22: ='Maintenance Costs'!W19 -> 0 | D22: =IF(B22=0,0,C22/B22) -> 0
A23: Totals, Regular Maintenance Activities | D23: =SUM(D19:D22) -> 1410
A25: CORRECTIVE AND INFREQUENT MAINTENANCE ACTIVITIES (Unplanned and/or >3yrs. betw. events) | B25: Years between Events | C25: Total Cost per Visit | D25: Total Cost per Year
A27: ='Maintenance Costs'!B25 -> Corrective Maintenance | B27: ='Maintenance Costs'!E25/12 -> 5 | C27: ='Maintenance Costs'!W25 -> 1280 | D27: =IF(B27=0,0,C27/B27) -> 256
A28: ='Maintenance Costs'!B26 -> add additional activities if necessary | B28: ='Maintenance Costs'!E26/12 -> 0 | C28: ='Maintenance Costs'!W26 -> 0 | D28: =IF(B28=0,0,C28/B28) -> 0
A29: ='Maintenance Costs'!B27 -> add additional activities if necessary | B29: ='Maintenance Costs'!E27/12 -> 0 | C29: ='Maintenance Costs'!W27 -> 0 | D29: =IF(B29=0,0,C29/B29) -> 0
A30: Totals, Corrective & Infrequent Maintenance Activities | D30: =SUM(D27:D29) -> 256
A33: Capital Costing Method | B33: ='Results Summary Report'!B28:C28 -> Line Item Engineer's Estimate
A34: Assumed Level of Maintenance | B34: ='Results Summary Report'!B29:C29 -> M
A35: Estimated Capital Cost, $ (2013) | B35: ='Results Summary Report'!B30:C30 -> 13335.73901
A36: Estimated NPV of Design Life Maintenance Costs, $ (2013) | B36: ='Results Summary Report'!B31:C31 -> 32557.93995
A37: Estimated NPV of Design Life Whole Life Cycle Cost, $ (2013) | B37: ='Results Summary Report'!B32:C32 -> 45893.67896
A38: Estimated Annualized Whole Life Cycle Cost, $/yr (2013) | B38: ='Results Summary Report'!B33:C33 -> 1835.747158
A39: Totals are based on design life with routine and major maintenance.

Sheet Supporting Data
A1: ='Project Location'!A1 -> NCHRP Swale Evaluation Tool
A2: Project Title | B2: ='Project Location'!C2 -> Test Run
A3: Project Location | B3: ='Project Location'!C3 -> Portland , OR
A4: Company | B4: ='Project Location'!C4 -> Geosyntec Consultants
A6: Supporting Data from Continuous Simulation Lookup Database
B9: Rain Gage Used for Nomograph Development | F9: Project Data Used to Localize Model Results
B10: Rain Gage ID | C10: ='Project Location'!P14 -> 356751 | F10: Project Location 85th Percentile - 24 hour storm depth (in) | G10: ='Project Location'!P22 -> 0.63
B11: State | C11: ='Project Location'!O11 -> Oregon | F11: Project Location Annual Average Precipitation Depth (in) | G11: ='Project Location'!P23 -> 36.668365
B12: Climate Division and Name | C12: ='Project Location'!P11 -> [2] WILLAMETTE VALLEY - PORTLAND INTL AP
B13: Elevation, feet | C13: ='Project Location'!P15 -> 19
B14: 85th Percentile, 24-hour Storm Depth, inches | C14: ='Project Location'!P16 -> 0.63
B15: 95th Percentile, 24-hour Storm Depth, inches | C15: ='Project Location'!P17 -> 0.98
B16: Average Annual Precipitation, inches | C16: ='Project Location'!P18 -> 36.668365
B18: Supporting Drawdown Nomograph, from SWMM Continuous Simulation | F18: Supporting ET Nomograph, from SWMM Continuous Simulation | N18: Supporting Flow-based Capture Nomograph, from SWMM Continuous Simulation
N19: ="Time of concentration = "&'Capture-Flow'!AG2&" minutes and configuration = "&'Capture-Flow'!AG1 -> Time of concentration = 15 minutes and configuration = Online
A54: These charts represent graphical depictions of the long term continuous simulation model results used in the Tool calculations

Sheet Rain Gage Summary (hidden)
A1: Station ID | B1: Climate Division - Rain Gage | C1: State | D1: County | E1: Climate Division | F1: Elevation | G1: 85th Percentile | H1: 95th Percentile | I1: Average Annual | J1: Station ID | K1: Climate Division - Rain Gage
A2: 15550 | B2: [6] PRAIRIE - MONTGOMERY AP ASOS | C2: AL | D2: MONTGOMERY | E2: 6 | F2: 202 | G2: 1.25 | H2: 2.01 | I2: 50.95872655 | J2: 15550 | K2: [6] PRAIRIE - MONTGOMERY AP ASOS
A3: 26481 | B3: [6] SOUTH CENTRAL - PHOENIX AP | C3: AZ | D3: MARICOPA | E3: 6 | F3: 1107 | G3: 0.67 | H3: 1.02 | I3: 7.205657841 | J3: 26481 | K3: [6] SOUTH CENTRAL - PHOENIX AP
A4: 47769 | B4: [4] CENTRAL COAST DRNG. - SAN FRANCISCO WSO AP | C4: CA | D4: SAN MATEO | E4: 4 | F4: 8 | G4: 0.89 | H4: 1.39 | I4: 20.18097096 | J4: 47769 | K4: [4] CENTRAL COAST DRNG. - SAN FRANCISCO WSO AP
A5: 45114 | B5: [6] SOUTH COAST DRNG. - LOS ANGELES INTL AP | C5: CA | D5: LOS ANGELES | E5: 6 | F5: 97 | G5: 1.02 | H5: 1.6 | I5: 12.30515024 | J5: 45114 | K5: [6] SOUTH COAST DRNG. - LOS ANGELES INTL AP
A6: 47740 | B6: [6] SOUTH COAST DRNG. - SAN DIEGO WSO AP | C6: CA | D6: SAN DIEGO | E6: 6 | F6: 15 | G6: 0.78 | H6: 1.25 | I6: 9.795418779 | J6: 47740 | K6: [6] SOUTH COAST DRNG. - SAN DIEGO WSO AP
A7: 85663 | B7: [6] LOWER EAST COAST - MIAMI INTL AP | C7: FL | D7: MIAMI-DADE | E7: 6 | F7: 29 | G7: 1.28 | H7: 2.2 | I7: 58.88374163 | J7: 85663 | K7: [6] LOWER EAST COAST - MIAMI INTL AP
A8: 90451 | B8: [2] NORTH CENTRAL - ATLANTA/MUN., GA. | C8: GA | D8: FULTON | E8: 2 | F8: 1010 | G8: 1.14 | H8: 1.8 | I8: 48.99960863 | J8: 90451 | K8: [2] NORTH CENTRAL - ATLANTA/MUN., GA.
A9: 101022 | B9: [5] SOUTHWESTERN VALLEYS - BOISE AIR TERMINAL | C9: ID | D9: ADA | E9: 5 | F9: 2814 | G9: 0.42 | H9: 0.61 | I9: 11.50454198 | J9: 101022 | K9: [5] SOUTHWESTERN VALLEYS - BOISE AIR TERMINAL
A10: 124259 | B10: [5] CENTRAL - INDIANAPOLIS INTL AP | C10: IN | D10: MARION | E10: 5 | F10: 790 | G10: 0.91 | H10: 1.47 | I10: 40.42782488 | J10: 124259 | K10: [5] CENTRAL - INDIANAPOLIS INTL AP
A11: 132203 | B11: [5] CENTRAL - DES MOINES AP | C11: IA | D11: POLK | E11: 5 | F11: 957 | G11: 0.91 | H11: 1.5 | I11: 32.2614027 | J11: 132203 | K11: [5] CENTRAL - DES MOINES AP
A12: 160549 | B12: [6] EAST CENTRAL - BATON ROUGE METRO AP | C12: LA | D12: EAST BATON ROUGE | E12: 6 | F12: 64 | G12: 1.36 | H12: 2.3 | I12: 57.72441731 | J12: 160549 | K12: [6] EAST CENTRAL - BATON ROUGE METRO AP
A13: 215435 | B13: [6] EAST CENTRAL - MINNEAPOLIS/ST PAUL AP | C13: MN | D13: HENNEPIN | E13: 6 | F13: 872 | G13: 0.8 | H13: 1.33 | I13: 27.72970927 | J13: 215435 | K13: [6] EAST CENTRAL - MINNEAPOLIS/ST PAUL AP
A14: 244055 | B14: [4] CENTRAL - HELENA AP ASOS | C14: MT | D14: LEWIS AND CLARK | E14: 4 | F14: 3828 | G14: 0.45 | H14: 0.73 | I14: 11.03471274 | J14: 244055 | K14: [4] CENTRAL - HELENA AP ASOS
A15: 305811 | B15: [4] COASTAL - NEW YORK LA GUARDIA AP | C15: NY | D15: QUEENS | E15: 4 | F15: 11 | G15: 1 | H15: 1.68 | I15: 43.14266383 | J15: 305811 | K15: [4] COASTAL - NEW YORK LA GUARDIA AP
A16: 300042 | B16: [5] HUDSON VALLEY - ALBANY INTL AP | C16: NY | D16: ALBANY | E16: 5 | F16: 275 | G16: 0.8 | H16: 1.27 | I16: 36.67489814 | J16: 300042 | K16: [5] HUDSON VALLEY - ALBANY INTL AP
A17: 317069 | B17: [4] CENTRAL PIEDMONT - RALEIGH AP | C17: NC | D17: WAKE | E17: 4 | F17: 416 | G17: 0.99 | H17: 1.57 | I17: 42.23054327 | J17: 317069 | K17: [4] CENTRAL PIEDMONT - RALEIGH AP
A18: 320819 | B18: [8] SOUTH CENTRAL - BISMARCK MUNI AP | C18: ND | D18: BURLEIGH | E18: 8 | F18: 1651 | G18: 0.66 | H18: 1.12 | I18: 15.89312939 | J18: 320819 | K18: [8] SOUTH CENTRAL - BISMARCK MUNI AP
A19: 346661 | B19: [5] CENTRAL - OKLAHOMA CITY WILL ROGERS AP | C19: OK | D19: OKLAHOMA | E19: 5 | F19: 1285 | G19: 1.17 | H19: 1.87 | I19: 33.15470281 | J19: 346661 | K19: [5] CENTRAL - OKLAHOMA CITY WILL ROGERS AP
A20: 356751 | B20: [2] WILLAMETTE VALLEY - PORTLAND INTL AP | C20: OR | D20: MULTNOMAH | E20: 2 | F20: 19 | G20: 0.63 | H20: 0.98 | I20: 36.668365 | J20: 356751 | K20: [2] WILLAMETTE VALLEY - PORTLAND INTL AP
A21: 381939 | B21: [6] CENTRAL - COLUMBIA METRO AP | C21: SC | D21: LEXINGTON | E21: 6 | F21: 225 | G21: 1.19 | H21: 1.92 | I21: 45.14910788 | J21: 381939 | K21: [6] CENTRAL - COLUMBIA METRO AP
A22: 406402 | B22: [3] MIDDLE - NASHVILLE ASOS | C22: TN | D22: DAVIDSON | E22: 3 | F22: 600 | G22: 1.05 | H22: 1.75 | I22: 47.79930179 | J22: 406402 | K22: [3] MIDDLE - NASHVILLE ASOS
A23: 412797 | B23: [5] TRANS PECOS - EL PASO AP | C23: TX | D23: EL PASO | E23: 5 | F23: 3918 | G23: 0.6 | H23: 1.04 | I23: 8.472925584 | J23: 412797 | K23: [5] TRANS PECOS - EL PASO AP
A24: 427598 | B24: [3] NORTH CENTRAL - SALT LAKE CITY INTL AP | C24: UT | D24: SALT LAKE | E24: 3 | F24: 4225 | G24: 0.51 | H24: 0.8 | I24: 15.32014541 | J24: 427598 | K24: [3] NORTH CENTRAL - SALT LAKE CITY INTL AP | N24: State | O24: OR
A25: 448906 | B25: [4] NORTHERN - WASHINGTON/NAT., VA. | C25: VA | D25: ARLINGTON | E25: 4 | F25: 10 | G25: 0.94 | H25: 1.5 | I25: 39.59703338 | J25: 448906 | K25: [4] NORTHERN - WASHINGTON/NAT., VA. | L25: Climate Division Filter
A26: 14064 | B26: [1] NORTHERN VALLEY - HUNTSVILLE INTL AP | C26: AL | D26: MADISON | E26: 1 | F26: 624 | G26: 1.24 | H26: 2 | I26: 54.91995799 | J26: 14064 | K26: [1] NORTHERN VALLEY - HUNTSVILLE INTL AP | L26: =VLOOKUP('Project Location'!O11,'Project Location'!Y2:Z51,2,FALSE) -> OR | N26: Row Labels
A27: 10831 | B27: [2] APPALACHIAN MOUNTAIN - BIRMINGHAM AP ASOS | C27: AL | D27: JEFFERSON | E27: 2 | F27: 615 | G27: 1.2 | H27: 1.93 | I27: 45.10310427 | J27: 10831 | K27: [2] APPALACHIAN MOUNTAIN - BIRMINGHAM AP ASOS | N27: [1] COASTAL AREA - ASTORIA AP PORT OF
A28: 10063 | B28: [3] UPPER PLAINS - ADDISON | C28: AL | D28: WINSTON | E28: 3 | F28: 818 | G28: 1.3 | H28: 2.1 | I28: 51.2197769 | J28: 10063 | K28: [3] UPPER PLAINS - ADDISON | N28: [2] WILLAMETTE VALLEY - PORTLAND INTL AP
A29: 14209 | B29: [4] EASTERN VALLEY - JACKSONVILLE | C29: AL | D29: CALHOUN | E29: 4 | F29: 688 | G29: 1.2 | H29: 1.92 | I29: 45.63857443 | J29: 14209 | K29: [4] EASTERN VALLEY - JACKSONVILLE | N29: [3] SOUTHWESTERN VALLEYS - MEDFORD INTL AP
A30: 12124 | B30: [5] PIEDMONT PLATEAU - DADEVILLE 2 | C30: AL | D30: TALLAPOOSA | E30: 5 | F30: 733 | G30: 1.3 | H30: 2 | I30: 51.70142252 | J30: 12124 | K30: [5] PIEDMONT PLATEAU - DADEVILLE 2 | N30: [4] NORTHERN CASCADES - ESTACADA 24 SE
A31: 10140 | B31: [7] COASTAL PLAIN - ALBERTA | C31: AL | D31: WILCOX | E31: 7 | F31: 175 | G31: 1.4 | H31: 2.2 | I31: 55.1672221 | J31: 10140 | K31: [7] COASTAL PLAIN - ALBERTA | N31: [5] HIGH PLATEAU - GERBER DAM
A32: 15478 | B32: [8] GULF - MOBILE REGIONAL AP | C32: AL | D32: MOBILE | E32: 8 | F32: 215 | G32: 1.45 | H32: 2.42 | I32: 58.61608158 | J32: 15478 | K32: [8] GULF - MOBILE REGIONAL AP | N32: [6] NORTH CENTRAL - PENDLETON E OR RGNL AP
A33: 24645 | B33: [1] NORTHWEST - KINGMAN #2 | C33: AZ | D33: MOHAVE | E33: 1 | F33: 3539 | G33: 0.8 | H33: 1.2 | I33: 8.999298068 | J33: 24645 | K33: [1] NORTHWEST - KINGMAN #2 | N33: [7] SOUTH CENTRAL - LAKEVIEW 2 NNW
A34: 29439 | B34: [2] NORTHEAST - WINSLOW AP | C34: AZ | D34: NAVAJO | E34: 2 | F34: 4886 | G34: 0.48 | H34: 0.75 | I34: 7.281790759 | J34: 29439 | K34: [2] NORTHEAST - WINSLOW AP | N34: [8] NORTHEAST - PRAIRIE CITY RS
A35: 20487 | B35: [3] NORTH CENTRAL - ASH FORK 3 | C35: AZ | D35: YAVAPAI | E35: 3 | F35: 5075 | G35: 0.69 | H35: 1.1 | I35: 12.25519081 | J35: 20487 | K35: [3] NORTH CENTRAL - ASH FORK 3 | N35: [9] SOUTHEAST - JORDAN VALLEY
A36: 26323 | B36: [4] EAST CENTRAL - PAYSON | C36: AZ | D36: GILA | E36: 4 | F36: 4850 | G36: 0.9 | H36: 1.5 | I36: 19.30496698 | J36: 26323 | K36: [4] EAST CENTRAL - PAYSON | N36: Grand Total
A37: 29660 | B37: [5] SOUTHWEST - YUMA WSO AP | C37: AZ | D37: YUMA | E37: 5 | F37: 206 | G37: 0.58 | H37: 1.11 | I37: 2.913379797 | J37: 29660 | K37: [5] SOUTHWEST - YUMA WSO AP
A38: 28820 | B38: [7] SOUTHEAST - TUCSON INTL AP | C38: AZ | D38: PIMA | E38: 7 | F38: 2549 | G38: 0.66 | H38: 1.1 | I38: 11.26192333 | J38: 28820 | K38: [7] SOUTHEAST - TUCSON INTL AP
A39: 32356 | B39: [1] NORTHWEST - EUREKA SPRINGS 3 WNW | C39: AR | D39: CARROLL | E39: 1 | F39: 1420 | G39: 1.2 | H39: 1.91 | I39: 43.16009973 | J39: 32356 | K39: [1] NORTHWEST - EUREKA SPRINGS 3 WNW
A40: 32794 | B40: [2] NORTH CENTRAL - GILBERT | C40: AR | D40: SEARCY | E40: 2 | F40: 620 | G40: 1.18 | H40: 1.95 | I40: 42.91275229 | J40: 32794 | K40: [2] NORTH CENTRAL - GILBERT
A41: 30458 | B41: [3] NORTHEAST - BATESVILLE LVSTK | C41: AR | D41: INDEPENDENCE | E41: 3 | F41: 571 | G41: 1.3 | H41: 2.1 | I41: 45.94652335 | J41: 30458 | K41: [3] NORTHEAST - BATESVILLE LVSTK
A42: 32574 | B42: [4] WEST CENTRAL - FT SMITH RGNL AP | C42: AR | D42: SEBASTIAN | E42: 4 | F42: 449 | G42: 1.2 | H42: 1.92 | I42: 42.34891559 | J42: 32574 | K42: [4] WEST CENTRAL - FT SMITH RGNL AP
A43: 34248 | B43: [5] CENTRAL - LITTLE ROCK ADAMS FLD | C43: AR | D43: PULASKI | E43: 5 | F43: 258 | G43: 1.28 | H43: 2.1 | I43: 29.29232074 | J43: 34248 | K43: [5] CENTRAL - LITTLE ROCK ADAMS FLD
A44: 36920 | B44: [6] EAST CENTRAL - STUTTGART 9 ESE | C44: AR | D44: ARKANSAS | E44: 6 | F44: 198 | G44: 1.3 | H44: 2.2 | I44: 47.83296568 | J44: 36920 | K44: [6] EAST CENTRAL - STUTTGART 9 ESE
A45: 32810 | B45: [7] SOUTHWEST - GILLHAM DAM | C45: AR | D45: POLK | E45: 7 | F45: 520 | G45: 1.5 | H45: 2.4 | I45: 54.29450227 | J45: 32810 | K45: [7] SOUTHWEST - GILLHAM DAM
A46: 30220 | B46: [8] SOUTH CENTRAL - ARKADELPHIA 2 N | C46: AR | D46: CLARK | E46: 8 | F46: 196 | G46: 1.44 | H46: 2.3 | I46: 52.46184763 | J46: 30220 | K46: [8] SOUTH CENTRAL - ARKADELPHIA 2 N
A47: 35754 | B47: [9] SOUTHEAST - PINE BLUFF | C47: AR | D47: JEFFERSON | E47: 9 | F47: 215 | G47: 1.4 | H47: 2.2 | I47: 49.28084792 | J47: 35754 | K47: [9] SOUTHEAST - PINE BLUFF
A48: 42910 | B48: [1] NORTH COAST DRAINAGE - EUREKA WFO WOODLEY IS | C48: CA | D48: HUMBOLDT | E48: 1 | F48: 20 | G48: 0.88 | H48: 1.37 | I48: 39.21705128 | J48: 42910 | K48: [1] NORTH COAST DRAINAGE - EUREKA WFO WOODLEY IS
A49: 40161 | B49: [2] SACRAMENTO DRNG. - ALTURAS | C49: CA | D49: MODOC | E49: 2 | F49: 4400 | G49: 0.5 | H49: 0.72 | I49: 12.32358798 | J49: 40161 | K49: [2] SACRAMENTO DRNG. - ALTURAS
A50: 48873 | B50: [3] NORTHEAST INTER. BASINS - TERMO 1 E | C50: CA | D50: LASSEN | E50: 3 | F50: 5300 | G50: 0.49 | H50: 0.8 | I50: 10.03302054 | J50: 48873 | K50: [3] NORTHEAST INTER. BASINS - TERMO 1 E
A51: 43257 | B51: [5] SAN JOAQUIN DRNG. - FRESNO YOSEMITE INT'L | C51: CA | D51: FRESNO | E51: 5 | F51: 333 | G51: 0.68 | H51: 0.97 | I51: 10.9055695 | J51: 43257 | K51: [5] SAN JOAQUIN DRNG. - FRESNO YOSEMITE INT'L
A52: 44232 | B52: [7] SOUTHEAST DESERT BASIN - INDEPENDENCE | C52: CA | D52: INYO | E52: 7 | F52: 3950 | G52: 0.7 | H52: 1.3 | I52: 4.839608514 | J52: 44232 | K52: [7] SOUTHEAST DESERT BASIN - INDEPENDENCE
A53: 53477 | B53: [1] ARKANSAS DRAINAGE BASIN - GRANADA | C53: CO | D53: PROWERS | E53: 1 | F53: 3484 | G53: 0.8 | H53: 1.4 | I53: 14.59144374 | J53: 53477 | K53: [1] ARKANSAS DRAINAGE BASIN - GRANADA
A54: 53488 | B54: [2] COLORADO DRAINAGE BASIN - GRAND JUNCTION WALKER | C54: CO | D54: MESA | E54: 2 | F54: 4858 | G54: 0.42 | H54: 0.61 | I54: 8.467588747 | J54: 53488 | K54: [2] COLORADO DRAINAGE BASIN - GRAND JUNCTION WALKER
A55: 50304 | B55: [3] KANSAS DRAINAGE BASIN - ARAPAHOE | C55: CO | D55: CHEYENNE | E55: 3 | F55: 4020 | G55: 0.8 | H55: 1.3 | I55: 15.48861886 | J55: 50304 | K55: [3] KANSAS DRAINAGE BASIN - ARAPAHOE
A56: 51179 | B56: [4] PLATTE DRAINAGE BASIN - BYERS 5 ENE | C56: CO | D56: ADAMS | E56: 4 | F56: 5100 | G56: 0.7 | H56: 1.2 | I56: 14.50199732 | J56: 51179 | K56: [4] PLATTE DRAINAGE BASIN - BYERS 5 ENE
A57: 57337 | B57: [5] RIO GRANDE DRAINAGE BASIN - SAGUACHE | C57: CO | D57: SAGUACHE | E57: 5 | F57: 7701 | G57: 0.44 | H57: 0.64 | I57: 8.082028391 | J57: 57337 | K57: [5] RIO GRANDE DRAINAGE BASIN - SAGUACHE
A58: 65445 | B58: [1] NORTHWEST - NORFOLK 2 SW | C58: CT | D58: LITCHFIELD | E58: 1 | F58: 1340 | G58: 1.04 | H58: 1.69 | I58: 50.75400247 | J58: 65445 | K58: [1] NORTHWEST - NORFOLK 2 SW
A59: 63456 | B59: [2] CENTRAL - HARTFORD | C59: CT | D59: HARTFORD | E59: 2 | F59: 190 | G59: 1.01 | H59: 1.6 | I59: 44.90737806 | J59: 63456 | K59: [2] CENTRAL - HARTFORD
A60: 60806 | B60: [3] COASTAL - BRIDGEPORT SIKORSKY AP | C60: CT | D60: FAIRFIELD | E60: 3 | F60: 5 | G60: 0.96 | H60: 1.6 | I60: 41.71948633 | J60: 60806 | K60: [3] COASTAL - BRIDGEPORT SIKORSKY AP
A61: 79595 | B61: [1] NORTHERN - WILMINGTON NEW CASTLE | C61: DE | D61: NEW CASTLE | E61: 1 | F61: 79 | G61: 0.99 | H61: 1.62 | I61: 37.71065626 | J61: 79595 | K61: [1] NORTHERN - WILMINGTON NEW CASTLE
A62: 73570 | B62: [2] SOUTHERN - GEORGETOWN 5 SW | C62: DE | D62: SUSSEX | E62: 2 | F62: 45 | G62: 1.1 | H62: 1.7 | I62: 40.02924583 | J62: 73570 | K62: [2] SOUTHERN - GEORGETOWN 5 SW
A63: 80211 | B63: [1] NORTHWEST - APALACHICOLA AP | C63: FL | D63: FRANKLIN | E63: 1 | F63: 20 | G63: 1.4 | H63: 2.39 | I63: 54.87223743 | J63: 80211 | K63: [1] NORTHWEST - APALACHICOLA AP | M63: # of Climate Divisions
A64: 80975 | B64: [2] NORTH - BRANFORD | C64: FL | D64: SUWANNEE | E64: 2 | F64: 30 | G64: 1.29 | H64: 2.2 | I64: 25.83581789 | J64: 80975 | K64: [2] NORTH - BRANFORD | M64: =COUNTA(N27:N62)-1 -> 9
A65: 82158 | B65: [3] NORTH CENTRAL - DAYTONA BEACH INTL AP | C65: FL | D65: VOLUSIA | E65: 3 | F65: 31 | G65: 1.2 | H65: 2.03 | I65: 49.0758504 | J65: 82158 | K65: [3] NORTH CENTRAL - DAYTONA BEACH INTL AP
A66: 85612 | B66: [4] SOUTH CENTRAL - MELBOURNE WFO | C66: FL | D66: BREVARD | E66: 4 | F66: 35 | G66: 1.3 | H66: 2.1 | I66: 48.07370461 | J66: 85612 | K66: [4] SOUTH CENTRAL - MELBOURNE WFO
A67: 83186 | B67: [5] EVERGLADES - FT MYERS PAGE FLD AP | C67: FL | D67: LEE | E67: 5 | F67: 15 | G67: 1.4 | H67: 2.3 | I67: 54.85663636 | J67: 83186 | K67: [5] EVERGLADES - FT MYERS PAGE FLD AP
B68: [7] KEYS - KEY WEST INTL AP | K68: [7] KEYS - KEY WEST INTL AP
A69: 92485 | B69: [1] NORTHWEST - DALLAS 7 NE | C69: GA | D69: PAULDING | E69: 1 | F69: 1100 | G69: 1.2 | H69: 1.98 | I69: 49.32596977 | J69: 92485 | K69: [1] NORTHWEST - DALLAS 7 NE
A70: 91619 | B70: [3] NORTHEAST - CARNESVILLE 4 N | C70: GA | D70: FRANKLIN | E70: 3 | F70: 866 | G70: 1.28 | H70: 1.95 | I70: 46.60810878 | J70: 91619 | K70: [3] NORTHEAST - CARNESVILLE 4 N
A71: 92166 | B71: [4] WEST CENTRAL - COLUMBUS METO AP | C71: GA | D71: MUSCOGEE | E71: 4 | F71: 392 | G71: 1.18 | H71: 1.9 | I71: 48.75544882 | J71: 92166 | K71: [4] WEST CENTRAL - COLUMBUS METO AP
A72: 95443 | B72: [5] CENTRAL - MACON MIDDLE GA AP | C72: GA | D72: BIBB | E72: 5 | F72: 343 | G72: 1.13 | H72: 1.86 | I72: 44.7604157 | J72: 95443 | K72: [5] CENTRAL - MACON MIDDLE GA AP
A73: 90495 | B73: [6] EAST CENTRAL - AUGUSTA BUSH FLD AP | C73: GA | D73: RICHMOND | E73: 6 | F73: 132 | G73: 1.1 | H73: 1.77 | I73: 43.40544461 | J73: 90495 | K73: [6] EAST CENTRAL - AUGUSTA BUSH FLD AP
A74: 93028 | B74: [7] SOUTHWEST - EDISON | C74: GA | D74: CALHOUN | E74: 7 | F74: 294 | G74: 1.3 | H74: 2.15 | I74: 48.33854881 | J74: 93028 | K74: [7] SOUTHWEST - EDISON
A75: 96879 | B75: [8] SOUTH CENTRAL - PEARSON | C75: GA | D75: ATKINSON | E75: 8 | F75: 205 | G75: 1.29 | H75: 2 | I75: 46.51146819 | J75: 96879 | K75: [8] SOUTH CENTRAL - PEARSON
A76: 97847 | B76: [9] SOUTHEAST - SAVANNAH INTL AP | C76: GA | D76: CHATHAM | E76: 9 | F76: 46 | G76: 1.18 | H76: 1.95 | I76: 48.81084705 | J76: 97847 | K76: [9] SOUTHEAST - SAVANNAH INTL AP
A77: 101079 | B77: [1] PANHANDLE - BONNERS FERRY | C77: ID | D77: BOUNDARY | E77: 1 | F77: 2075 | G77: 0.59 | H77: 0.9 | I77: 23.28528983 | J77: 101079 | K77: [1] PANHANDLE - BONNERS FERRY
A78: 105241 | B78: [3] NORTH CENTRAL PRAIRIES - LEWISTON AP | C78: ID | D78: NEZ PERCE | E78: 3 | F78: 1436 | G78: 0.41 | H78: 0.62 | I78: 12.05414158 | J78: 105241 | K78: [3] NORTH CENTRAL PRAIRIES - LEWISTON AP
A79: 103143 | B79: [3] NORTH CENTRAL CANYONS - FENN RS | C79: ID | D79: IDAHO | E79: 3 | F79: 1560 | G79: 0.68 | H79: 1 | I79: 36.40611844 | J79: 103143 | K79: [3] NORTH CENTRAL CANYONS - FENN RS
A80: 107327 | B80: [4] CENTRAL MOUNTAINS - PRAIRIE | C80: ID | D80: ELMORE | E80: 4 | F80: 4780 | G80: 0.68 | H80: 1.05 | I80: 22.16674041 | J80: 107327 | K80: [4] CENTRAL MOUNTAINS - PRAIRIE
A81: 103811 | B81: [6] SOUTHWESTERN HIGHLANDS - GRASMERE 3 S | C81: ID | D81: OWYHEE | E81: 6 | F81: 5140 | G81: 0.5 | H81: 0.8 | I81: 10.92233116 | J81: 103811 | K81: [6] SOUTHWESTERN HIGHLANDS - GRASMERE 3 S
A82: 103677 | B82: [7] CENTRAL PLAINS - GOODING 1 S | C82: ID | D82: GOODING | E82: 7 | F82: 3643 | G82: 0.5 | H82: 0.8 | I82: 10.30963655 | J82: 103677 | K82: [7] CENTRAL PLAINS - GOODING 1 S
A83: 105169 | B83: [8] NORTHEASTERN VALLEYS - LEADORE | C83: ID | D83: LEMHI | E83: 8 | F83: 6000 | G83: 0.4 | H83: 0.6 | I83: 8.473901245 | J83: 105169 | K83: [8] NORTHEASTERN VALLEYS - LEADORE
A84: 107211 | B84: [9] UPPER SNAKE RIVER PLAINS - POCATELLO RGNL AP | C84: ID | D84: POWER | E84: 9 | F84: 4478 | G84: 0.42 | H84: 0.63 | I84: 11.20820082 | J84: 107211 | K84: [9] UPPER SNAKE RIVER PLAINS - POCATELLO RGNL AP
A85: 104456 | B85: [10] EASTERN HIGHLANDS - IDAHO FALLS 16 SE | C85: ID | D85: BONNEVILLE | E85: 10 | F85: 5828 | G85: 0.5 | H85: 0.7 | I85: 16.42038998 | J85: 104456 | K85: [10] EASTERN HIGHLANDS - IDAHO FALLS 16 SE
A86: 115751 | B86: [1] NORTHWEST - MOLINE WSO AP | C86: IL | D86: ROCK ISLAND | E86: 1 | F86: 592 | G86: 0.96 | H86: 1.56 | I86: 36.94095548 | J86: 115751 | K86: [1] NORTHWEST - MOLINE WSO AP
A87: 111577 | B87: [2] NORTHEAST - CHICAGO MIDWAY AP 3SW | C87: IL | D87: COOK | E87: 2 | F87: 620 | G87: 0.9 | H87: 1.5 | I87: 36.36341442 | J87: 111577 | K87: [2] NORTHEAST - CHICAGO MIDWAY AP 3SW
A88: 110082 | B88: [3] WEST - ALEXIS 1 SW | C88: IL | D88: WARREN | E88: 3 | F88: 680 | G88: 0.97 | H88: 1.6 | I88: 33.23871554 | J88: 110082 | K88: [3] WEST - ALEXIS 1 SW
A89: 116711 | B89: [4] CENTRAL - PEORIA GTR PEORIA RGNL | C89: IL | D89: PEORIA | E89: 4 | F89: 650 | G89: 0.93 | H89: 1.47 | I89: 35.29861786 | J89: 116711 | K89: [4] CENTRAL - PEORIA GTR PEORIA RGNL
A90: 114198 | B90: [5] EAST - HOOPESTON 1NE | C90: IL | D90: VERMILION | E90: 5 | F90: 710 | G90: 0.9 | H90: 1.5 | I90: 36.11608242 | J90: 114198 | K90: [5] EAST - HOOPESTON 1NE
A91: 118179 | B91: [6] WEST SOUTHWEST - SPRINGFIELD LINCOLN AP | C91: IL | D91: SANGAMON | E91: 6 | F91: 594 | G91: 0.9 | H91: 1.47 | I91: 34.92312681 | J91: 118179 | K91: [6] WEST SOUTHWEST - SPRINGFIELD LINCOLN AP
A92: 116159 | B92: [7] EAST SOUTHEAST - NEWTON 6 SSE | C92: IL | D92: JASPER | E92: 7 | F92: 510 | G92: 1 | H92: 1.6 | I92: 39.71020639 | J92: 116159 | K92: [7] EAST SOUTHEAST - NEWTON 6 SSE
A93: 115983 | B93: [8] SOUTHWEST - MURPHYSBORO 2 SW | C93: IL | D93: JACKSON | E93: 8 | F93: 550 | G93: 1.1 | H93: 1.74 | I93: 43.9282036 | J93: 115983 | K93: [8] SOUTHWEST - MURPHYSBORO 2 SW
A94: 112353 | B94: [9] SOUTHEAST - DIXON SPRINGS AG CTR | C94: IL | D94: POPE | E94: 9 | F94: 527 | G94: 1.15 | H94: 1.82 | I94: 45.80505836 | J94: 112353 | K94: [9] SOUTHEAST - DIXON SPRINGS AG CTR
A95: 125535 | B95: [1] NORTHWEST - MEDARYVILLE 5 N | C95: IN | D95: PULASKI | E95: 1 | F95: 695 | G95: 0.9 | H95: 1.5 | I95: 36.24643589 | J95: 125535 | K95: [1] NORTHWEST - MEDARYVILLE 5 N
A96: 128187 | B96: [2] NORTH CENTRAL - SOUTH BEND AP | C96: IN | D96: ST. JOSEPH | E96: 2 | F96: 773 | G96: 0.8 | H96: 1.33 | I96: 37.66742095 | J96: 128187 | K96: [2] NORTH CENTRAL - SOUTH BEND AP
A97: 123037 | B97: [3] NORTHEAST - FORT WAYNE AP | C97: IN | D97: ALLEN | E97: 3 | F97: 791 | G97: 0.82 | H97: 1.3 | I97: 36.53760494 | J97: 123037 | K97: [3] NORTHEAST - FORT WAYNE AP
A98: 120922 | B98: [4] WEST CENTRAL - BRAZIL | C98: IN | D98: CLAY | E98: 4 | F98: 680 | G98: 1 | H98: 1.61 | I98: 41.67705059 | J98: 120922 | K98: [4] WEST CENTRAL - BRAZIL
A99: 120132 | B99: [6] EAST CENTRAL - ALPINE 2 NE | C99: IN | D99: FAYETTE | E99: 6 | F99: 850 | G99: 0.92 | H99: 1.46 | I99: 41.05639212 | J99: 120132 | K99: [6] EAST CENTRAL - ALPINE 2 NE
A100: 122738 | B100: [7] SOUTHWEST - EVANSVILLE REGIONAL AP | C100: IN | D100: VANDERBURGH | E100: 7 | F100: 400 | G100: 1.03 | H100: 1.7 | I100: 43.95275952 | J100: 122738 | K100: [7] SOUTHWEST - EVANSVILLE REGIONAL AP
A101: 126580 | B101: [8] SOUTH CENTRAL - OOLITIC PURDUE EX FRM | C101: IN | D101: LAWRENCE | E101: 8 | F101: 650 | G101: 1.05 | H101: 1.6 | I101: 43.56708539 | J101: 126580 | K101: [8] SOUTH CENTRAL - OOLITIC PURDUE EX FRM
A102: 120482 | B102: [9] SOUTHEAST - BATESVILLE WTR WKS | C102: IN | D102: RIPLEY | E102: 9 | F102: 970 | G102: 1 | H102: 1.5 | I102: 43.42327627 | J102: 120482 | K102: [9] SOUTHEAST - BATESVILLE WTR WKS
A103: 136975 | B103: [1] NORTHWEST - REMSEN | C103: IA | D103: PLYMOUTH | E103: 1 | F103: 1330 | G103: 0.97 | H103: 1.5 | I103: 28.14272723 | J103: 136975 | K103: [1] NORTHWEST - REMSEN
A104: 137602 | B104: [2] NORTH CENTRAL - SHELL ROCK | C104: IA | D104: BUTLER | E104: 2 | F104: 912 | G104: 0.92 | H104: 1.5 | I104: 30.49484019 | J104: 137602 | K104: [2] NORTH CENTRAL - SHELL ROCK
A105: 138009 | B105: [3] NORTHEAST - STRAWBERRY POINT | C105: IA | D105: CLAYTON | E105: 3 | F105: 1200 | G105: 0.93 | H105: 1.52 | I105: 34.40964091 | J105: 138009 | K105: [3] NORTHEAST - STRAWBERRY POINT
A106: 137708 | B106: [4] WEST CENTRAL - SIOUX CITY AP | C106: IA | D106: WOODBURY | E106: 4 | F106: 1095 | G106: 0.87 | H106: 1.35 | I106: 25.88691256 | J106: 137708 | K106: [4] WEST CENTRAL - SIOUX CITY AP
A107: 130608 | B107: [6] EAST CENTRAL - BELLEVUE L&D 12 | C107: IA | D107: JACKSON | E107: 6 | F107: 603 | G107: 0.98 | H107: 1.54 | I107: 33.08087328 | J107: 130608 | K107: [6] EAST CENTRAL - BELLEVUE L&D 12
A108: 131245 | B108: [7] SOUTHWEST - CARSON 3NNE | C108: IA | D108: POTTAWATTAMIE | E108: 7 | F108: 1090 | G108: 1.06 | H108: 1.86 | I108: 32.72117172 | J108: 131245 | K108: [7] SOUTHWEST - CARSON 3NNE
A109: 132195 | B109: [8] SOUTH CENTRAL - DERBY | C109: IA | D109: LUCAS | E109: 8 | F109: 1190 | G109: 1 | H109: 1.63 | I109: 34.18372825 | J109: 132195 | K109: [8] SOUTH CENTRAL - DERBY
A110: 138688 | B110: [9] SOUTHEAST - WASHINGTON | C110: IA | D110: WASHINGTON | E110: 9 | F110: 690 | G110: 1 | H110: 1.6 | I110: 33.87536571 | J110: 138688 | K110: [9] SOUTHEAST - WASHINGTON
A111: 143153 | B111: [1] NORTHWEST - GOODLAND RENNER FLD | C111: KS | D111: SHERMAN | E111: 1 | F111: 3656 | G111: 0.74 | H111: 1.27 | I111: 17.50321145 | J111: 143153 | K111: [1] NORTHWEST - GOODLAND RENNER FLD
A112: 141767 | B112: [2] NORTH CENTRAL - CONCORDIA BLOSSER MUNI | C112: KS | D112: CLOUD | E112: 2 | F112: 1469 | G112: 0.97 | H112: 1.6 | I112: 27.4605794 | J112: 141767 | K112: [2] NORTH CENTRAL - CONCORDIA BLOSSER MUNI
A113: 143810 | B113: [3] NORTHEAST - HORTON | C113: KS | D113: BROWN | E113: 3 | F113: 1030 | G113: 1.1 | H113: 1.9 | I113: 35.44440587 | J113: 143810 | K113: [3] NORTHEAST - HORTON
A114: 141730 | B114: [4] WEST CENTRAL - COLLYER 10 S | C114: KS | D114: TREGO | E114: 4 | F114: 2407 | G114: 0.9 | H114: 1.4 | I114: 19.79478996 | J114: 141730 | K114: [4] WEST CENTRAL - COLLYER 10 S
A115: 144178 | B115: [5] CENTRAL - KANOPOLIS LAKE | C115: KS | D115: ELLSWORTH | E115: 5 | F115: 1492 | G115: 1.07 | H115: 1.7 | I115: 25.54246554 | J115: 144178 | K115: [5] CENTRAL - KANOPOLIS LAKE
A116: 148167 | B116: [6] EAST CENTRAL - TOPEKA BILLARD MUNI AP | C116: KS | D116: SHAWNEE | E116: 6 | F116: 881 | G116: 1.07 | H116: 1.78 | I116: 34.70720579 | J116: 148167 | K116: [6] EAST CENTRAL - TOPEKA BILLARD MUNI AP
A117: 142164 | B117: [7] SOUTHWEST - DODGE CITY RGNL AP | C117: KS | D117: FORD | E117: 7 | F117: 2582 | G117: 0.86 | H117: 1.44 | I117: 20.5420711 | J117: 142164 | K117: [7] SOUTHWEST - DODGE CITY RGNL AP
A118: 148830 | B118: [8] SOUTH CENTRAL - WICHITA MID-CONTINENT | C118: KS | D118: SEDGWICK | E118: 8 | F118: 1321 | G118: 1.1 | H118: 1.76 | I118: 30.23109038 | J118: 148830 | K118: [8] SOUTH CENTRAL - WICHITA MID-CONTINENT
A119: 141351 | B119: [9] SOUTHEAST - CASSODAY 2SW | C119: KS | D119: BUTLER | E119: 9 | F119: 1440 | G119: 1.15 | H119: 1.8 | I119: 32.17986941 | J119: 141351 | K119: [9] SOUTHEAST - CASSODAY 2SW
A120: 151631 | B120: [1] WESTERN - CLINTON 4 S | C120: KY | D120: HICKMAN | E120: 1 | F120: 350 | G120: 1.2 | H120: 1.9 | I120: 46.52415759 | J120: 151631 | K120: [1] WESTERN - CLINTON 4 S
A121: 154954 | B121: [2] CENTRAL - LOUISVILLE INTL AP | C121: KY | D121: JEFFERSON | E121: 2 | F121: 488 | G121: 0.95 | H121: 1.51 | I121: 43.87584067 | J121: 154954 | K121: [2] CENTRAL - LOUISVILLE INTL AP
A122: 154746 | B122: [3] BLUE GRASS - LEXINGTON BLUEGRASS AP | C122: KY | D122: FAYETTE | E122: 3 | F122: 980 | G122: 0.94 | H122: 1.5 | I122: 45.45680717 | J122: 154746 | K122: [3] BLUE GRASS - LEXINGTON BLUEGRASS AP
A123: 151080 | B123: [4] EASTERN - BUCKHORN LAKE | C123: KY | D123: PERRY | E123: 4 | F123: 780 | G123: 0.9 | H123: 1.44 | I123: 45.84906597 | J123: 151080 | K123: [4] EASTERN - BUCKHORN LAKE
A124: 168440 | B124: [1] NORTHWEST - SHREVEPORT AP | C124: LA | D124: CADDO | E124: 1 | F124: 254 | G124: 1.32 | H124: 2.16 | I124: 42.45229315 | J124: 168440 | K124: [1] NORTHWEST - SHREVEPORT AP
A125: 169803 | B125: [2] NORTH CENTRAL - WINNFIELD 3 N | C125: LA | D125: WINN | E125: 2 | F125: 160 | G125: 1.4 | H125: 2.3 | I125: 55.9953092 | J125: 169803 | K125: [2] NORTH CENTRAL - WINNFIELD 3 N
A126: 169806 | B126: [3] NORTHEAST - WINNSBORO 5 SSE | C126: LA | D126: FRANKLIN | E126: 3 | F126: 80 | G126: 1.46 | H126: 2.3 | I126: 53.98896224 | J126: 169806 | K126: [3] NORTHEAST - WINNSBORO 5 SSE
A127: 165266 | B127: [4] WEST CENTRAL - LEESVILLE | C127: LA | D127: VERNON | E127: 4 | F127: 28 | G127: 1.4 | H127: 2.4 | I127: 52.83658504 | J127: 165266 | K127: [4] WEST CENTRAL - LEESVILLE
A128: 169357 | B128: [5] CENTRAL - VIDALIA #2 | C128: LA | D128: CONCORDIA | E128: 5 | F128: 60 | G128: 1.5 | H128: 2.55 | I128: 54.45550894 | J128: 169357 | K128: [5] CENTRAL - VIDALIA #2
A129: 165078 | B129: [7] SOUTHWEST - LAKE CHARLES AP | C129: LA | D129: CALCASIEU | E129: 7 | F129: 9 | G129: 1.47 | H129: 2.55 | I129: 55.64743526 | J129: 165078 | K129: [7] SOUTHWEST - LAKE CHARLES AP
A130: 165021 | B130: [8] SOUTH CENTRAL - LAFAYETTE | C130: LA | D130: LAFAYETTE | E130: 8 | F130: 25 | G130: 1.5 | H130: 2.7 | I130: 60.28362345 | J130: 165021 | K130: [8] SOUTH CENTRAL - LAFAYETTE
A131: 166660 | B131: [9] SOUTHEAST - NEW ORLEANS AP | C131: LA | D131: JEFFERSON | E131: 9 | F131: 4 | G131: 1.44 | H131: 2.4 | I131: 61.29518364 | J131: 166660 | K131: [9] SOUTHEAST - NEW ORLEANS AP
A132: 171175 | B132: [1] NORTHERN - CARIBOU WFO | C132: ME | D132: AROOSTOOK | E132: 1 | F132: 624 | G132: 0.7 | H132: 1.06 | I132: 36.99961294 | J132: 171175 | K132: [1] NORTHERN - CARIBOU WFO
A133: 178641 | B133: [2] SOUTHERN INTERIOR - SWANS FALLS | C133: ME | D133: OXFORD | E133: 2 | F133: 400 | G133: 1 | H133: 1.6 | I133: 43.13902062 | J133: 178641 | K133: [2] SOUTHERN INTERIOR - SWANS FALLS
A134: 176905 | B134: [3] COASTAL - PORTLAND JETPORT | C134: ME | D134: CUMBERLAND | E134: 3 | F134: 45 | G134: 0.97 | H134: 1.62 | I134: 43.69530127 | J134: 176905 | K134: [3] COASTAL - PORTLAND JETPORT
A135: 188005 | B135: [1] SOUTHEASTERN SHORE - SALISBURY FAA AP | C135: MD | D135: WICOMICO | E135: 1 | F135: 48 | G135: 0.92 | H135: 1.86 | I135: 44.14267463 | J135: 188005 | K135: [1] SOUTHEASTERN SHORE - SALISBURY FAA AP
A136: 183090 | B136: [2] CENTRAL EASTERN SHORE - FEDERALSBURG | C136: MD | D136: CAROLINE | E136: 2 | F136: 20 | G136: 1.1 | H136: 1.9 | I136: 43.77162908 | J136: 183090 | K136: [2] CENTRAL EASTERN SHORE - FEDERALSBURG
A137: 186915 | B137: [3] LOWER SOUTHERN - PATUXENT RIVER | C137: MD | D137: ST. MARY'S | E137: 3 | F137: 38 | G137: 1.1 | H137: 2 | I137: 14.32034464 | J137: 186915 | K137: [3] LOWER SOUTHERN - PATUXENT RIVER
A138: 180465 | B138: [4] UPPER SOUTHERN - BALTIMORE WASH INTL AP | C138: MD | D138: ANNE ARUNDEL | E138: 4 | F138: 156 | G138: 0.99 | H138: 1.62 | I138: 41.65482839 | J138: 180465 | K138: [4] UPPER SOUTHERN - BALTIMORE WASH INTL AP
A139: 180470 | B139: [6] NORTHERN CENTRAL - BALTIMORE CITY | C139: MD | D139: BALTIMORE (CITY) | E139: 6 | F139: 14 | G139: 1.05 | H139: 1.72 | I139: 41.18351763 | J139: 180470 | K139: [6] NORTHERN CENTRAL - BALTIMORE CITY
A140: 184030 | B140: [7] APPALACHIAN MOUNTAIN - HANCOCK | C140: MD | D140: WASHINGTON | E140: 7 | F140: 384 | G140: 0.9 | H140: 1.3 | I140: 34.39961687 | J140: 184030 | K140: [7] APPALACHIAN MOUNTAIN - HANCOCK
A141: 188315 | B141: [8] ALLEGHENY PLATEAU - SINES DEEP CREEK | C141: MD | D141: GARRETT | E141: 8 | F141: 2040 | G141: 0.74 | H141: 1.16 | I141: 46.94134707 | J141: 188315 | K141: [8] ALLEGHENY PLATEAU - SINES DEEP CREEK
A142: 193985 | B142: [1] WESTERN - KNIGHTVILLE DAM | C142: MA | D142: HAMPSHIRE | E142: 1 | F142: 630 | G142: 1 | H142: 1.68 | I142: 44.48045636 | J142: 193985 | K142: [1] WESTERN - KNIGHTVILLE DAM
A143: 190736 | B143: [2] CENTRAL - BLUE HILL | C143: MA | D143: NORFOLK | E143: 2 | F143: 625 | G143: 1.08 | H143: 1.75 | I143: 50.20985588 | J143: 190736 | K143: [2] CENTRAL - BLUE HILL
A144: 190770 | B144: [3] COASTAL - BOSTON | C144: MA | D144: SUFFOLK | E144: 3 | F144: 12 | G144: 0.96 | H144: 1.57 | I144: 43.07275554 | J144: 190770 | K144: [3] COASTAL - BOSTON
A145: 204090 | B145: [1] WEST UPPER - IRON MT KINGSFORD WWTP | C145: MI | D145: DICKINSON | E145: 1 | F145: 1071 | G145: 0.79 | H145: 1.2 | I145: 28.26646925 | J145: 204090 | K145: [1] WEST UPPER - IRON MT KINGSFORD WWTP
A146: 207366 | B146: [2] EAST UPPER - SAULT STE MARIE SNDRSN | C146: MI | D146: CHIPPEWA | E146: 2 | F146: 722 | G146: 0.62 | H146: 1.02 | I146: 32.60137184 | J146: 207366 | K146: [2] EAST UPPER - SAULT STE MARIE SNDRSN
A147: 200662 | B147: [3] NORTHWEST - BELLAIRE | C147: MI | D147: ANTRIM | E147: 3 | F147: 625 | G147: 0.7 | H147: 1.1 | I147: 31.16371514 | J147: 200662 | K147: [3] NORTHWEST - BELLAIRE
A148: 200164 | B148: [4] NORTHEAST LOWER - ALPENA CO RGNL AP | C148: MI | D148: ALPENA | E148: 4 | F148: 684 | G148: 0.66 | H148: 1.04 | I148: 27.69866563 | J148: 200164 | K148: [4] NORTHEAST LOWER - ALPENA CO RGNL AP
A149: 205712 | B149: [5] WEST CENTRAL LOWER - MUSKEGON CO AP | C149: MI | D149: MUSKEGON | E149: 5 | F149: 625 | G149: 0.71 | H149: 1.15 | I149: 32.08184542 | J149: 205712 | K149: [5] WEST CENTRAL LOWER - MUSKEGON CO AP
A150: 203170 | B150: [6] CENTRAL LOWER - GLADWIN | C150: MI | D150: GLADWIN | E150: 6 | F150: 775 | G150: 0.8 | H150: 1.4 | I150: 18.30286933 | J150: 203170 | K150: [6] CENTRAL LOWER - GLADWIN
A151: 203580 | B151: [7] EAST CENTRAL LOWER - HARBOR BEACH | C151: MI | D151: HURON | E151: 7 | F151: 600 | G151: 0.7 | H151: 1.1 | I151: 29.47347002 | J151: 203580 | K151: [7] EAST CENTRAL LOWER - HARBOR BEACH
A152: 203333 | B152: [8] SOUTHWEST LOWER - GERALD R FORD INTL AP | C152: MI | D152: KENT | E152: 8 | F152: 803 | G152: 0.82 | H152: 1.33 | I152: 35.82094773 | J152: 203333 | K152: [8] SOUTHWEST LOWER - GERALD R FORD INTL AP
A153: 204155 | B153: [9] SOUTH CENTRAL LOWER - JACKSON 3N | C153: MI | D153: JACKSON | E153: 9 | F153: 950 | G153: 0.8 | H153: 1.26 | I153: 30.62163281 | J153: 204155 | K153: [9] SOUTH CENTRAL LOWER - JACKSON 3N
A154: 202846 | B154: [10] SOUTHEAST LOWER - FLINT BISHOP INTL AP | C154: MI | D154: GENESEE | E154: 10 | F154: 770 | G154: 0.71 | H154: 1.16 | I154: 26.23470647 | J154: 202846 | K154: [10] SOUTHEAST LOWER - FLINT BISHOP INTL AP
A155: 218235 | B155: [1] NORTHWEST - THIEF LAKE REFUGE | C155: MN | D155: MARSHALL | E155: 1 | F155: 1142 | G155: 0.8 | H155: 1.3 | I155: 23.16941477 | J155: 218235 | K155: [1] NORTHWEST - THIEF LAKE REFUGE
A156: 214026 | B156: [2] NORTH CENTRAL - INTERNATIONAL FALLS AP | C156: MN | D156: KOOCHICHING | E156: 2 | F156: 1183 | G156: 0.68 | H156: 1.14 | I156: 24.33325871 | J156: 214026 | K156: [2] NORTH CENTRAL - INTERNATIONAL FALLS AP
A157: 212248 | B157: [3] NORTHEAST - DULUTH INTL AP | C157: MN | D157: ST. LOUIS | E157: 3 | F157: 1433 | G157: 0.79 | H157: 1.31 | I157: 29.44294091 | J157: 212248 | K157: [3] NORTHEAST - DULUTH INTL AP
A158: 210112 | B158: [4] WEST CENTRAL - ALEXANDRIA CHANDLER FLD | C158: MN | D158: DOUGLAS | E158: 4 | F158: 1416 | G158: 0.83 | H158: 1.31 | I158: 11.11612755 | J158: 210112 | K158: [4] WEST CENTRAL - ALEXANDRIA CHANDLER FLD
A159: 217294 | B159: [5] CENTRAL - ST CLOUD MUNI AP | C159: MN | D159: SHERBURNE | E159: 5 | F159: 1018 | G159: 0.83 | H159: 1.39 | I159: 26.68599622 | J159: 217294 | K159: [5] CENTRAL - ST CLOUD MUNI AP
A160: 218323 | B160: [7] SOUTHWEST - TRACY | C160: MN | D160: LYON | E160: 7 | F160: 1403 | G160: 0.9 | H160: 1.4 | I160: 25.17127938 | J160: 218323 | K160: [7] SOUTHWEST - TRACY
A161: 215987 | B161: [8] SOUTH CENTRAL - NORTHFIELD 2 NNE | C161: MN | D161: DAKOTA | E161: 8 | F161: 890 | G161: 0.9 | H161: 1.42 | I161: 29.08130964 | J161: 215987 | K161: [8] SOUTH CENTRAL - NORTHFIELD 2 NNE
A162: 217004 | B162: [9] SOUTHEAST - ROCHESTER INTL AP | C162: MN | D162: OLMSTED | E162: 9 | F162: 1304 | G162: 0.85 | H162: 1.44 | I162: 29.50826891 | J162: 217004 | K162: [9] SOUTHEAST - ROCHESTER INTL AP
A163: 221743 | B163: [1] UPPER DELTA - CLEVELAND 3 N | C163: MS | D163: BOLIVAR | E163: 1 | F163: 140 | G163: 1.4 | H163: 2.3 | I163: 50.42379106 | J163: 221743 | K163: [1] UPPER DELTA - CLEVELAND 3 N
A164: 227815 | B164: [2] NORTH CENTRAL - SARDIS DAM | C164: MS | D164: PANOLA | E164: 2 | F164: 303 | G164: 1.32 | H164: 2.16 | I164: 53.86293566 | J164: 227815 | K164: [2] NORTH CENTRAL - SARDIS DAM
A165: 229003 | B165: [3] NORTHEAST - TUPELO RGNL AP | C165: MS | D165: LEE | E165: 3 | F165: 361 | G165: 1.3 | H165: 2.13 | I165: 54.41947925 | J165: 229003 | K165: [3] NORTHEAST - TUPELO RGNL AP
A166: 228445 | B166: [4] LOWER DELTA - STONEVILLE EXP STN | C166: MS | D166: WASHINGTON | E166: 4 | F166: 127 | G166: 1.4 | H166: 2.1 | I166: 50.03827932 | J166: 228445 | K166: [4] LOWER DELTA - STONEVILLE EXP STN
A167: 225062 | B167: [5] CENTRAL - LEXINGTON | C167: MS | D167: HOLMES | E167: 5 | F167: 285 | G167: 1.4 | H167: 2.23 | I167: 54.05059082 | J167: 225062 | K167: [5] CENTRAL - LEXINGTON
A168: 228374 | B168: [6] EAST CENTRAL - STATE UNIV | C168: MS | D168: OKTIBBEHA | E168: 6 | F168: 185 | G168: 1.3 | H168: 2.11 | I168: 51.8372154 | J168: 228374 | K168: [6] EAST CENTRAL - STATE UNIV
A169: 227714 | B169: [7] SOUTHWEST - RUTH 1 SE | C169: MS | D169: LINCOLN | E169: 7 | F169: 443 | G169: 1.43 | H169: 2.35 | I169: 56.35407665 | J169: 227714 | K169: [7] SOUTHWEST - RUTH 1 SE
A170: 227220 | B170: [8] SOUTH CENTRAL - PURVIS 2N | C170: MS | D170: LAMAR | E170: 8 | F170: 378 | G170: 1.4 | H170: 2.3 | I170: 59.83281391 | J170: 227220 | K170: [8] SOUTH CENTRAL - PURVIS 2N
A171: 225776 | B171: [9] SOUTHEAST - MERIDIAN AP | C171: MS | D171: LAUDERDALE | E171: 9 | F171: 294 | G171: 1.3 | H171: 2.12 | I171: 55.17079059 | J171: 225776 | K171: [9] SOUTHEAST - MERIDIAN AP
A172: 227840 | B172: [10] COASTAL - SAUCIER EXP FOREST | C172: MS | D172: HARRISON | E172: 10 | F172: 229 | G172: 1.5 | H172: 2.5 | I172: 66.87587204 | J172: 227840 | K172: [10] COASTAL - SAUCIER EXP FOREST
A173: 234358 | B173: [1] NORTHWEST PRAIRIE - KANSAS CITY INTL AP | C173: MO | D173: PLATTE | E173: 1 | F173: 1005 | G173: 1.01 | H173: 1.76 | I173: 37.20754327 | J173: 234358 | K173: [1] NORTHWEST PRAIRIE - KANSAS CITY INTL AP
A174: 237455 | B174: [2] NORTHEAST PRAIRIE - ST LOUIS LAMBERT AP | C174: MO | D174: ST. LOUIS | E174: 2 | F174: 531 | G174: 0.96 | H174: 1.57 | I174: 37.23330015 | J174: 237455 | K174: [2] NORTHEAST PRAIRIE - ST LOUIS LAMBERT AP
A175: 235987 | B175: [3] WEST CENTRAL PLAINS - NEVADA WTP | C175: MO | D175: VERNON | E175: 3 | F175: 820 | G175: 1.2 | H175: 1.9 | I175: 39.32503122 | J175: 235987 | K175: [3] WEST CENTRAL PLAINS - NEVADA WTP
A176: 237976 | B176: [4] WEST OZARKS - SPRINGFIELD WSO AP | C176: MO | D176: GREENE | E176: 4 | F176: 1259 | G176: 1.1 | H176: 1.78 | I176: 42.0144393 | J176: 237976 | K176: [4] WEST OZARKS - SPRINGFIELD WSO AP
A177: 238620 | B177: [5] EAST OZARKS - VIENNA 2 WNW | C177: MO | D177: MARIES | E177: 5 | F177: 770 | G177: 1.11 | H177: 1.74 | I177: 41.33414619 | J177: 238620 | K177: [5] EAST OZARKS - VIENNA 2 WNW
A178: 233999 | B178: [6] BOOTHEEL - HORNERSVILLE | C178: MO | D178: DUNKLIN | E178: 6 | F178: 250 | G178: 1.25 | H178: 2.07 | I178: 46.36292707 | J178: 233999 | K178: [6] BOOTHEEL - HORNERSVILLE
A179: 245745 | B179: [1] WESTERN - MISSOULA INTL AP | C179: MT | D179: MISSOULA | E179: 1 | F179: 3192 | G179: 0.41 | H179: 0.64 | I179: 13.19382766 | J179: 245745 | K179: [1] WESTERN - MISSOULA INTL AP
A180: 241309 | B180: [2] SOUTHWESTERN - BUTTE 8 S | C180: MT | D180: SILVER BOW | E180: 2 | F180: 5700 | G180: 0.5 | H180: 0.8 | I180: 14.84655695 | J180: 241309 | K180: [2] SOUTHWESTERN - BUTTE 8 S
A181: 241737 | B181: [3] NORTH CENTRAL - CHOTEAU | C181: MT | D181: TETON | E181: 3 | F181: 3845 | G181: 0.63 | H181: 1 | I181: 10.55889766 | J181: 241737 | K181: [3] NORTH CENTRAL - CHOTEAU
A182: 240807 | B182: [5] SOUTH CENTRAL - BILLINGS INTL AP | C182: MT | D182: YELLOWSTONE | E182: 5 | F182: 3581 | G182: 0.51 | H182: 0.85 | I182: 13.67074874 | J182: 240807 | K182: [5] SOUTH CENTRAL - BILLINGS INTL AP
A183: 241088 | B183: [6] NORTHEASTERN - BREDETTE | C183: MT | D183: ROOSEVELT | E183: 6 | F183: 2638 | G183: 0.65 | H183: 1.02 | I183: 12.26334696 | J183: 241088 | K183: [6] NORTHEASTERN - BREDETTE
A184: 248169 | B184: [7] SOUTHEASTERN - TERRY 21 NNW | C184: MT | D184: PRAIRIE | E184: 7 | F184: 3142 | G184: 0.63 | H184: 1.06 | I184: 13.87486691 | J184: 248169 | K184: [7] SOUTHEASTERN - TERRY 21 NNW
A185: 257665 | B185: [1] PANHANDLE - SCOTTSBLUFF AP | C185: NE | D185: SCOTTS BLUFF | E185: 1 | F185: 3945 | G185: 0.61 | H185: 0.99 | I185: 14.56736408 | J185: 257665 | K185: [1] PANHANDLE - SCOTTSBLUFF AP
A186: 258760 | B186: [2] NORTH CENTRAL - VALENTINE MILLER AP | C186: NE | D186: CHERRY | E186: 2 | F186: 2590 | G186: 0.73 | H186: 1.22 | I186: 18.33720188 | J186: 258760 | K186: [2] NORTH CENTRAL - VALENTINE MILLER AP
A187: 255995 | B187: [3] NORTHEAST - NORFOLK AP | C187: NE | D187: MADISON | E187: 3 | F187: 1551 | G187: 0.88 | H187: 1.48 | I187: 24.81776288 | J187: 255995 | K187: [3] NORTHEAST - NORFOLK AP
A188: 253395 | B188: [5] CENTRAL - GRAND ISLAND CTR NE AP | C188: NE | D188: HALL | E188: 5 | F188: 1840 | G188: 0.88 | H188: 1.45 | I188: 23.87603585 | J188: 253395 | K188: [5] CENTRAL - GRAND ISLAND CTR NE AP
A189: 254795 | B189: [6] EAST CENTRAL - LINCOLN AP | C189: NE | D189: LANCASTER | E189: 6 | F189: 1190 | G189: 0.94 | H189: 1.55 | I189: 17.80231373 | J189: 254795 | K189: [6] EAST CENTRAL - LINCOLN AP
A190: 256065 | B190: [7] SOUTHWEST - NORTH PLATTE RGNL AP | C190: NE | D190: LINCOLN | E190: 7 | F190: 2778 | G190: 0.81 | H190: 1.25 | I190: 19.38333762 | J190: 256065 | K190: [7] SOUTHWEST - NORTH PLATTE RGNL AP
A191: 252560 | B191: [8] SOUTH CENTRAL - EDISON | C191: NE | D191: FURNAS | E191: 8 | F191: 2120 | G191: 0.9 | H191: 1.41 | I191: 21.21189896 | J191: 252560 | K191: [8] SOUTH CENTRAL - EDISON
A192: 258395 | B192: [9] SOUTHEAST - SYRACUSE | C192: NE | D192: OTOE | E192: 9 | F192: 1100 | G192: 1 | H192: 1.7 | I192: 29.95078781 | J192: 258395 | K192: [9] SOUTHEAST - SYRACUSE
A193: 269171 | B193: [1] NORTHWESTERN - WINNEMUCCA AP | C193: NV | D193: HUMBOLDT | E193: 1 | F193: 4296 | G193: 0.39 | H193: 0.58 | I193: 7.948998069 | J193: 269171 | K193: [1] NORTHWESTERN - WINNEMUCCA AP
A194: 262631 | B194: [2] NORTHEASTERN - ELY AIRPORT | C194: NV | D194: WHITE PINE | E194: 2 | F194: 6262 | G194: 0.44 | H194: 0.63 | I194: 9.088861395 | J194: 262631 | K194: [2] NORTHEASTERN - ELY AIRPORT
A195: 268170 | B195: [3] SOUTH CENTRAL - TONOPAH AIRPORT | C195: NV | D195: NYE | E195: 3 | F195: 5395 | G195: 0.42 | H195: 0.63 | I195: 2.272766096 | J195: 268170 | K195: [3] SOUTH CENTRAL - TONOPAH AIRPORT
A196: 264436 | B196: [4] EXTREME SOUTHERN - LAS VEGAS AP | C196: NV | D196: CLARK | E196: 4 | F196: 2131 | G196: 0.58 | H196: 0.88 | I196: 4.195456145 | J196: 264436 | K196: [4] EXTREME SOUTHERN - LAS VEGAS AP
A197: 275639 | B197: [1] NORTHERN - MT WASHINGTON | C197: NH | D197: COOS | E197: 1 | F197: 6267 | G197: 1.02 | H197: 1.77 | I197: 92.17109944 | J197: 275639 | K197: [1] NORTHERN - MT WASHINGTON
A198: 271683 | B198: [2] SOUTHERN - CONCORD ASOS | C198: NH | D198: MERRIMACK | E198: 2 | F198: 346 | G198: 0.85 | H198: 1.33 | I198: 38.06102262 | J198: 271683 | K198: [2] SOUTHERN - CONCORD ASOS
A199: 286026 | B199: [1] NORTHERN - NEWARK INTL AP | C199: NJ | D199: ESSEX | E199: 1 | F199: 7 | G199: 0.99 | H199: 1.61 | I199: 43.98673075 | J199: 286026 | K199: [1] NORTHERN - NEWARK INTL AP
A200: 280311 | B200: [2] SOUTHERN - ATLANTIC CITY INTL AP | C200: NJ | D200: ATLANTIC | E200: 2 | F200: 60 | G200: 1.01 | H200: 1.63 | I200: 41.18544369 | J200: 280311 | K200: [2] SOUTHERN - ATLANTIC CITY INTL AP
... 148 more rows

Sheet Dispersion Data (hidden)
A1: Station | B1: Imp to Perv | C1: Infiltration rate | D1: Amendment | E1: ET Capture % | F1: Infil Capture % | W1: Station Identifier | Y1: Station | Z1: Perv to Imperv | AA1: Infiltration rate | AB1: Amendment | AC1: ET Capture % | AD1: Infil Capture % | AE1: Total % Capture | AI1: VRA 1 ET % Capture
A2: 10063 | B2: 50 | C2: 1e-06 | D2: 0 | E2: 5.51602405e-05 | F2: 0 | W2: =MATCH(VLOOKUP('Project Location'!$P$11,'Rain Gage Summary'!B2:J348,9,FALSE),'Dispersion Data'!A2:A109761,0) -> 79681 | X2: 1 | Y2: =INDIRECT("A"&$W$2+$X2) -> 356751 | Z2: =1/INDIRECT("B"&$W$2+$X2) -> 0.02 | AA2: =INDIRECT("C"&$W$2+$X2) -> 1e-06 | AB2: =INDIRECT("D"&$W$2+$X2) -> 0 | AC2: =INDIRECT("E"&$W$2+$X2) -> 0.0002278509855 | AD2: =INDIRECT("F"&$W$2+$X2) -> 0 | AE2: =AD2+AC2 -> 0.0002278509855 | AF2: Amendment | AG2: 12
A3: 10063 | B3: 50 | C3: 1e-06 | D3: 3 | E3: 0.001572066854 | F3: 0 | W3: Amendment Depth Identifier for VRA 1 | X3: =X2+1 -> 2 | Y3: 356751 | Z3: =1/INDIRECT("B"&$W$2+$X3) -> 0.02 | AA3: 1e-06 | AB3: 3 | AC3: 0.002886112482 | AD3: =INDIRECT("F"&$W$2+$X3) -> 0 | AE3: =AD3+AC3 -> 0.002886112482
A4: 10063 | B4: 50 | C4: 1e-06 | D4: 6 | E4: 0.002068509019 | F4: 2.758012025e-05 | W4: ='Project Design'!B33 -> 12 | X4: =X3+1 -> 3 | Y4: 356751 | Z4: 0.02 | AA4: 1e-06 | AB4: 6 | AC4: 0.003911441917 | AD4: 3.797516424e-05 | AE4: 0.003949417081 | AF4: Sum of ET Capture % | AG4: Column Labels
A5: 10063 | B5: 50 | C5: 1e-06 | D5: 12 | E5: 0.002096089139 | F5: 0 | X5: 4 | Y5: 356751 | Z5: 0.02 | AA5: 1e-06 | AB5: 12 | AC5: 0.004670945202 | AD5: 0 | AE5: 0.004670945202 | AF5: Row Labels | AG5: 0.02 | AH5: 0.05 | AI5: 0.1 | AJ5: 0.2 | AK5: 0.4 | AL5: 1 | AM5: 2 | AN5: 4 | AO5: Grand Total
A6: 10063 | B6: 50 | C6: 1e-06 | D6: 24 | E6: 0.001544486734 | F6: 0 | X6: 5 | Y6: 356751 | Z6: 0.02 | AA6: 1e-06 | AB6: 24 | AC6: 0.004215243231 | AD6: 3.797516424e-05 | AE6: 0.004253218395 | AF6: 1e-06 | AG6: 0.004670945202 | AH6: 0.01101279763 | AI6: 0.0198610109 | AJ6: 0.0338738465 | AK6: 0.05388675806 | AL6: 0.08236813124 | AM6: 0.09816579957 | AN6: 0.1133938404 | AO6: 0.4172331295
A7: 10063 | B7: 50 | C7: 0.01 | D7: 0 | E7: 5.51602405e-05 | F7: 0.0003585415632 | X7: 6 | Y7: 356751 | Z7: 0.02 | AA7: 0.01 | AB7: 0 | AC7: 0.0002278509855 | AD7: 0.002544336004 | AE7: 0.00277218699 | AF7: 0.01 | AG7: 0.004670945202 | AH7: 0.01101279763 | AI7: 0.0198610109 | AJ7: 0.0338738465 | AK7: 0.05388675806 | AL7: 0.08236813124 | AM7: 0.09816579957 | AN7: 0.1133938404 | AO7: 0.4172331295
A8: 10063 | B8: 50 | C8: 0.01 | D8: 3 | E8: 0.001572066854 | F8: 0.006343427657 | X8: 7 | Y8: 356751 | Z8: 0.02 | AA8: 0.01 | AB8: 3 | AC8: 0.002886112482 | AD8: 0.01583564349 | AE8: 0.01872175597 | AF8: 0.05 | AG8: 0.004557019709 | AH8: 0.01070899632 | AI8: 0.01925340827 | AJ8: 0.03269661641 | AK8: 0.05221585083 | AL8: 0.08107697566 | AM8: 0.09569741389 | AN8: 0.1111153306 | AO8: 0.4073216117
A9: 10063 | B9: 50 | C9: 0.01 | D9: 6 | E9: 0.002068509019 | F9: 0.0111699487 | X9: 8 | Y9: 356751 | Z9: 0.02 | AA9: 0.01 | AB9: 6 | AC9: 0.003911441917 | AD9: 0.02122811681 | AE9: 0.02513955873 | AF9: 0.1 | AG9: 0.004253218395 | AH9: 0.01002544336 | AI9: 0.0177344017 | AJ9: 0.03041810656 | AK9: 0.04841833441 | AL9: 0.0773174344 | AM9: 0.09057076672 | AN9: 0.1030266206 | AO9: 0.3817643261
A10: 10063 | B10: 50 | C10: 0.01 | D10: 12 | E10: 0.002096089139 | F10: 0.01674113299 | X10: 9 | Y10: 356751 | Z10: 0.02 | AA10: 0.01 | AB10: 12 | AC10: 0.004670945202 | AD10: 0.02749401891 | AE10: 0.03216496411 | AF10: 0.2 | AG10: 0.00402536741 | AH10: 0.009455815896 | AI10: 0.01682299776 | AJ10: 0.02886112482 | AK10: 0.04587399841 | AL10: 0.07370979379 | AM10: 0.08700110128 | AN10: 0.09869745187 | AO10: 0.3644476512
A11: 10063 | B11: 50 | C11: 0.01 | D11: 24 | E11: 0.001544486734 | F11: 0.02142975343 | X11: 10 | Y11: 356751 | Z11: 0.02 | AA11: 0.01 | AB11: 24 | AC11: 0.004215243231 | AD11: 0.03444347397 | AE11: 0.0386587172 | AF11: 0.5 | AG11: 0.003873466753 | AH11: 0.00903808909 | AI11: 0.01606349447 | AJ11: 0.02745604375 | AK11: 0.0438613147 | AL11: 0.07067178066 | AM11: 0.08495044241 | AN11: 0.09660881783 | AO11: 0.3525234497
A12: 10063 | B12: 50 | C12: 0.05 | D12: 0 | E12: 5.51602405e-05 | F12: 0.007060510784 | X12: 11 | Y12: 356751 | Z12: 0.02 | AA12: 0.05 | AB12: 0 | AC12: 0.0002278509855 | AD12: 0.03197508829 | AE12: 0.03220293928 | AF12: 1 | AG12: 0.003835491589 | AH12: 0.008848213269 | AI12: 0.01579766832 | AJ12: 0.02696236661 | AK12: 0.04306383625 | AL12: 0.06957050089 | AM12: 0.08422891429 | AN12: 0.09584931455 | AO12: 0.3481563058
A13: 10063 | B13: 50 | C13: 0.05 | D13: 3 | E13: 0.001572066854 | F13: 0.02115395223 | X13: 12 | Y13: 356751 | Z13: 0.02 | AA13: 0.05 | AB13: 3 | AC13: 0.002620286333 | AD13: 0.06884897277 | AE13: 0.0714692591 | AF13: 2 | AG13: 0.00375954126 | AH13: 0.00877226294 | AI13: 0.01564576767 | AJ13: 0.02669654046 | AK13: 0.04260813428 | AL13: 0.06896289826 | AM13: 0.08373523715 | AN13: 0.09543158774 | AO13: 0.3456119698
A14: 10063 | B14: 50 | C14: 0.05 | D14: 6 | E14: 0.002068509019 | F14: 0.03135859672 | X14: 13 | Y14: 356751 | Z14: 0.02 | AA14: 0.05 | AB14: 6 | AC14: 0.003645615767 | AD14: 0.08779857973 | AE14: 0.0914441955 | AF14: Grand Total | AG14: 0.03364599552 | AH14: 0.07887441613 | AI14: 0.14103976 | AJ14: 0.2408384916 | AK14: 0.383814985 | AL14: 0.6060456461 | AM14: 0.7225154749 | AN14: 0.827516804 | AO14: 3.034291573
A15: 10063 | B15: 50 | C15: 0.05 | D15: 12 | E15: 0.002096089139 | F15: 0.04696894478 | X15: 14 | Y15: 356751 | Z15: 0.02 | AA15: 0.05 | AB15: 12 | AC15: 0.004557019709 | AD15: 0.1124824365 | AE15: 0.1170394562 | AG15: 0 | AH15: =AG5 -> 0.02 | AI15: 0.05 | AJ15: 0.1 | AK15: 0.2 | AL15: 0.4 | AM15: 1 | AN15: 2 | AO15: 4
A16: 10063 | B16: 50 | C16: 0.05 | D16: 24 | E16: 0.001544486734 | F16: 0.06817805726 | X16: 15 | Y16: 356751 | Z16: 0.02 | AA16: 0.05 | AB16: 24 | AC16: 0.004519044545 | AD16: 0.1422549653 | AE16: 0.1467740098 | AF16: =AF6 -> 1e-06 | AG16: 0 | AH16: 0.004670945202 | AI16: 0.01101279763 | AJ16: 0.0198610109 | AK16: 0.0338738465 | AL16: 0.05388675806 | AM16: 0.08236813124 | AN16: 0.09816579957 | AO16: 0.1133938404
A17: 10063 | B17: 50 | C17: 0.1 | D17: 0 | E17: 5.51602405e-05 | F17: 0.01850626069 | X17: 16 | Y17: 356751 | Z17: 0.02 | AA17: 0.1 | AB17: 0 | AC17: 0.0002278509855 | AD17: 0.06748186686 | AE17: 0.06770971784 | AF17: =AF7 -> 0.01 | AG17: 0 | AH17: 0.004670945202 | AI17: 0.01101279763 | AJ17: 0.0198610109 | AK17: 0.0338738465 | AL17: 0.05388675806 | AM17: 0.08236813124 | AN17: 0.09816579957 | AO17: 0.1133938404
A18: 10063 | B18: 50 | C18: 0.1 | D18: 3 | E18: 0.001213525291 | F18: 0.04131502013 | X18: 17 | Y18: 356751 | Z18: 0.02 | AA18: 0.1 | AB18: 3 | AC18: 0.002316485019 | AD18: 0.123001557 | AE18: 0.125318042 | AF18: 0.05 | AG18: 0 | AH18: 0.004557019709 | AI18: 0.01070899632 | AJ18: 0.01925340827 | AK18: 0.03269661641 | AL18: 0.05221585083 | AM18: 0.08107697566 | AN18: 0.09569741389 | AO18: 0.1111153306
A19: 10063 | B19: 50 | C19: 0.1 | D19: 6 | E19: 0.001875448177 | F19: 0.058028573 | X19: 18 | Y19: 356751 | Z19: 0.02 | AA19: 0.1 | AB19: 6 | AC19: 0.003227888961 | AD19: 0.1527361106 | AE19: 0.1559639995 | AF19: 0.1 | AG19: 0 | AH19: 0.004253218395 | AI19: 0.01002544336 | AJ19: 0.0177344017 | AK19: 0.03041810656 | AL19: 0.04841833441 | AM19: 0.0773174344 | AN19: 0.09057076672 | AO19: 0.1030266206
A20: 10063 | B20: 50 | C20: 0.1 | D20: 12 | E20: 0.0021788295 | F20: 0.08075459209 | X20: 19 | Y20: 356751 | Z20: 0.02 | AA20: 0.1 | AB20: 12 | AC20: 0.004253218395 | AD20: 0.1930277598 | AE20: 0.1972809782 | AF20: 0.2 | AG20: 0 | AH20: 0.00402536741 | AI20: 0.009455815896 | AJ20: 0.01682299776 | AK20: 0.02886112482 | AL20: 0.04587399841 | AM20: 0.07370979379 | AN20: 0.08700110128 | AO20: 0.09869745187
A21: 10063 | B21: 50 | C21: 0.1 | D21: 24 | E21: 0.001847868057 | F21: 0.1113685256 | X21: 20 | Y21: 356751 | Z21: 0.02 | AA21: 0.1 | AB21: 24 | AC21: 0.004708920366 | AD21: 0.242091672 | AE21: 0.2468005924 | AF21: 0.5 | AG21: 0 | AH21: 0.003873466753 | AI21: 0.00903808909 | AJ21: 0.01606349447 | AK21: 0.02745604375 | AL21: 0.0438613147 | AM21: 0.07067178066 | AN21: 0.08495044241 | AO21: 0.09660881783
A22: 10063 | B22: 50 | C22: 0.2 | D22: 0 | E22: 5.51602405e-05 | F22: 0.03872248883 | X22: 21 | Y22: 356751 | Z22: 0.02 | AA22: 0.2 | AB22: 0 | AC22: 0.0002278509855 | AD22: 0.1231914328 | AE22: 0.1234192838 | AF22: 1 | AG22: 0 | AH22: 0.003835491589 | AI22: 0.008848213269 | AJ22: 0.01579766832 | AK22: 0.02696236661 | AL22: 0.04306383625 | AM22: 0.06957050089 | AN22: 0.08422891429 | AO22: 0.09584931455
A23: 10063 | B23: 50 | C23: 0.2 | D23: 3 | E23: 0.0009653042087 | F23: 0.06972254399 | X23: 22 | Y23: 356751 | Z23: 0.02 | AA23: 0.2 | AB23: 3 | AC23: 0.002088634033 | AD23: 0.193293586 | AE23: 0.19538222 | AF23: 2 | AG23: 0 | AH23: 0.00375954126 | AI23: 0.00877226294 | AJ23: 0.01564576767 | AK23: 0.02669654046 | AL23: 0.04260813428 | AM23: 0.06896289826 | AN23: 0.08373523715 | AO23: 0.09543158774
A24: 10063 | B24: 50 | C24: 0.2 | D24: 6 | E24: 0.001709967455 | F24: 0.0901594131 | X24: 23 | Y24: 356751 | Z24: 0.02 | AA24: 0.2 | AB24: 6 | AC24: 0.003000037975 | AD24: 0.2315345764 | AE24: 0.2345346144
A25: 10063 | B25: 50 | C25: 0.2 | D25: 12 | E25: 0.002151249379 | F25: 0.1165535882 | X25: 24 | Y25: 356751 | Z25: 0.02 | AA25: 0.2 | AB25: 12 | AC25: 0.00402536741 | AD25: 0.2847757567 | AE25: 0.2888011241
A26: 10063 | B26: 50 | C26: 0.2 | D26: 24 | E26: 0.001985768658 | F26: 0.1494290915 | X26: 25 | Y26: 356751 | Z26: 0.02 | AA26: 0.2 | AB26: 24 | AC26: 0.004708920366 | AD26: 0.3499791137 | AE26: 0.354688034
A27: 10063 | B27: 50 | C27: 0.5 | D27: 0 | E27: 5.51602405e-05 | F27: 0.09032489382 | X27: 26 | Y27: 356751 | Z27: 0.02 | AA27: 0.5 | AB27: 0 | AC27: 0.0002278509855 | AD27: 0.2587627691 | AE27: 0.2589906201
A28: 10063 | B28: 50 | C28: 0.5 | D28: 3 | E28: 0.0008549837277 | F28: 0.1264272712 | X28: 27 | Y28: 356751 | Z28: 0.02 | AA28: 0.5 | AB28: 3 | AC28: 0.001974708541 | AD28: 0.3343713212 | AE28: 0.3363460297
A29: 10063 | B29: 50 | C29: 0.5 | D29: 6 | E29: 0.001572066854 | F29: 0.1479949253 | X29: 28 | Y29: 356751 | Z29: 0.02 | AA29: 0.5 | AB29: 6 | AC29: 0.002848137318 | AD29: 0.3782326359 | AE29: 0.3810807732
A30: 10063 | B30: 50 | C30: 0.5 | D30: 12 | E30: 0.002068509019 | F30: 0.1719620498 | X30: 29 | Y30: 356751 | Z30: 0.02 | AA30: 0.5 | AB30: 12 | AC30: 0.003873466753 | AD30: 0.4347017051 | AE30: 0.4385751718
A31: 10063 | B31: 50 | C31: 0.5 | D31: 24 | E31: 0.002096089139 | F31: 0.1982734845 | X31: 30 | Y31: 356751 | Z31: 0.02 | AA31: 0.5 | AB31: 24 | AC31: 0.004632970038 | AD31: 0.4991075836 | AE31: 0.5037405537
A32: 10063 | B32: 50 | C32: 1 | D32: 0 | E32: 5.51602405e-05 | F32: 0.1402449115 | X32: 31 | Y32: 356751 | Z32: 0.02 | AA32: 1 | AB32: 0 | AC32: 0.0002278509855 | AD32: 0.414574868 | AE32: 0.414802719
A33: 10063 | B33: 50 | C33: 1 | D33: 3 | E33: 0.0007998234872 | F33: 0.1790501407 | X33: 32 | Y33: 356751 | Z33: 0.02 | AA33: 1 | AB33: 3 | AC33: 0.001936733376 | AD33: 0.4882846618 | AE33: 0.4902213952
A34: 10063 | B34: 50 | C34: 1 | D34: 6 | E34: 0.001516906614 | F34: 0.1960394947 | X34: 33 | Y34: 356751 | Z34: 0.02 | AA34: 1 | AB34: 6 | AC34: 0.00277218699 | AD34: 0.524171192 | AE34: 0.526943379
A35: 10063 | B35: 50 | C35: 1 | D35: 12 | E35: 0.002040928898 | F35: 0.2130012687 | X35: 34 | Y35: 356751 | Z35: 0.02 | AA35: 1 | AB35: 12 | AC35: 0.003835491589 | AD35: 0.5631337106 | AE35: 0.5669692021
A36: 10063 | B36: 50 | C36: 1 | D36: 24 | E36: 0.002096089139 | F36: 0.2262121463 | X36: 35 | Y36: 356751 | Z36: 0.02 | AA36: 1 | AB36: 24 | AC36: 0.004632970038 | AD36: 0.597463259 | AE36: 0.6020962291
A37: 10063 | B37: 50 | C37: 2 | D37: 0 | E37: 5.51602405e-05 | F37: 0.2107672789 | X37: 36 | Y37: 356751 | Z37: 0.02 | AA37: 2 | AB37: 0 | AC37: 0.0002278509855 | AD37: 0.5788554285 | AE37: 0.5790832795
A38: 10063 | B38: 50 | C38: 2 | D38: 3 | E38: 0.0007446632467 | F38: 0.2361134095 | X38: 37 | Y38: 356751 | Z38: 0.02 | AA38: 2 | AB38: 3 | AC38: 0.001898758212 | AD38: 0.6363878024 | AE38: 0.6382865606
A39: 10063 | B39: 50 | C39: 2 | D39: 6 | E39: 0.001489326493 | F39: 0.2365546914 | X39: 38 | Y39: 356751 | Z39: 0.02 | AA39: 2 | AB39: 6 | AC39: 0.00277218699 | AD39: 0.6359321004 | AE39: 0.6387042874
A40: 10063 | B40: 50 | C40: 2 | D40: 12 | E40: 0.002013348778 | F40: 0.2365822715 | X40: 39 | Y40: 356751 | Z40: 0.02 | AA40: 2 | AB40: 12 | AC40: 0.00375954126 | AD40: 0.6350586716 | AE40: 0.6388182129
A41: 10063 | B41: 50 | C41: 2 | D41: 24 | E41: 0.002151249379 | F41: 0.2365271113 | X41: 40 | Y41: 356751 | Z41: 0.02 | AA41: 2 | AB41: 24 | AC41: 0.004594994873 | AD41: 0.6342611932 | AE41: 0.6388561881
A42: 10063 | B42: 20 | C42: 1e-06 | D42: 0 | E42: 0.0001930608417 | F42: 0 | X42: 41 | Y42: 356751 | Z42: 0.05 | AA42: 1e-06 | AB42: 0 | AC42: 0.0006835529564 | AD42: 0 | AE42: 0.0006835529564
A43: 10063 | B43: 20 | C43: 1e-06 | D43: 3 | E43: 0.003971537316 | F43: 3.062008452e-17 | X43: 42 | Y43: 356751 | Z43: 0.05 | AA43: 1e-06 | AB43: 3 | AC43: 0.006417802757 | AD43: 5.059308205e-17 | AE43: 0.006417802757
A44: 10063 | B44: 20 | C44: 1e-06 | D44: 6 | E44: 0.005240222847 | F44: 3.368209298e-17 | X44: 43 | Y44: 356751 | Z44: 0.05 | AA44: 1e-06 | AB44: 6 | AC44: 0.009152014582 | AD44: 3.797516424e-05 | AE44: 0.009189989747
A45: 10063 | B45: 20 | C45: 1e-06 | D45: 12 | E45: 0.005102322246 | F45: 2.758012025e-05 | X45: 44 | Y45: 356751 | Z45: 0.05 | AA45: 1e-06 | AB45: 12 | AC45: 0.01101279763 | AD45: 4.216090171e-18 | AE45: 0.01101279763
A46: 10063 | B46: 20 | C46: 1e-06 | D46: 24 | E46: 0.003778476474 | F46: 0 | X46: 45 | Y46: 356751 | Z46: 0.05 | AA46: 1e-06 | AB46: 24 | AC46: 0.01017734402 | AD46: 5.059308205e-17 | AE46: 0.01017734402
A47: 10063 | B47: 20 | C47: 0.01 | D47: 0 | E47: 0.0001930608417 | F47: 0.001048044569 | X47: 46 | Y47: 356751 | Z47: 0.05 | AA47: 0.01 | AB47: 0 | AC47: 0.0006835529564 | AD47: 0.007708958341 | AE47: 0.008392511298
A48: 10063 | B48: 20 | C48: 0.01 | D48: 3 | E48: 0.003971537316 | F48: 0.01605162999 | X48: 47 | Y48: 356751 | Z48: 0.05 | AA48: 0.01 | AB48: 3 | AC48: 0.006417802757 | AD48: 0.03531690275 | AE48: 0.0417347055
A49: 10063 | B49: 20 | C49: 0.01 | D49: 6 | E49: 0.005240222847 | F49: 0.02694577748 | X49: 48 | Y49: 356751 | Z49: 0.05 | AA49: 0.01 | AB49: 6 | AC49: 0.009152014582 | AD49: 0.04773478145 | AE49: 0.05688679604
A50: 10063 | B50: 20 | C50: 0.01 | D50: 12 | E50: 0.005102322246 | F50: 0.04048761653 | X50: 49 | Y50: 356751 | Z50: 0.05 | AA50: 0.01 | AB50: 12 | AC50: 0.01101279763 | AD50: 0.06315269814 | AE50: 0.07416549577
A51: 10063 | B51: 20 | C51: 0.01 | D51: 24 | E51: 0.003778476474 | F51: 0.05240222847 | X51: 50 | Y51: 356751 | Z51: 0.05 | AA51: 0.01 | AB51: 24 | AC51: 0.01017734402 | AD51: 0.08016557172 | AE51: 0.09034291573
A52: 10063 | B52: 20 | C52: 0.05 | D52: 0 | E52: 0.0001930608417 | F52: 0.01916818357 | X52: 51 | Y52: 356751 | Z52: 0.05 | AA52: 0.05 | AB52: 0 | AC52: 0.0006835529564 | AD52: 0.07021607868 | AE52: 0.07089963164
A53: 10063 | B53: 20 | C53: 0.05 | D53: 3 | E53: 0.003971537316 | F53: 0.05345027304 | X53: 52 | Y53: 356751 | Z53: 0.05 | AA53: 0.05 | AB53: 3 | AC53: 0.005696274636 | AD53: 0.152128508 | AE53: 0.1578247826
A54: 10063 | B54: 20 | C54: 0.05 | D54: 6 | E54: 0.005240222847 | F54: 0.07672789453 | X54: 53 | Y54: 356751 | Z54: 0.05 | AA54: 0.05 | AB54: 6 | AC54: 0.008392511298 | AD54: 0.1936733376 | AE54: 0.2020658489
A55: 10063 | B55: 20 | C55: 0.05 | D55: 12 | E55: 0.005102322246 | F55: 0.1112582051 | X55: 54 | Y55: 356751 | Z55: 0.05 | AA55: 0.05 | AB55: 12 | AC55: 0.01070899632 | AD55: 0.24854745 | AE55: 0.2592564463
A56: 10063 | B56: 20 | C56: 0.05 | D56: 24 | E56: 0.003778476474 | F56: 0.1615091842 | X56: 55 | Y56: 356751 | Z56: 0.05 | AA56: 0.05 | AB56: 24 | AC56: 0.01078494664 | AD56: 0.3133330802 | AE56: 0.3241180268
A57: 10063 | B57: 20 | C57: 0.1 | D57: 0 | E57: 0.0001930608417 | F57: 0.04727232611 | X57: 56 | Y57: 356751 | Z57: 0.05 | AA57: 0.1 | AB57: 0 | AC57: 0.0006835529564 | AD57: 0.1400903809 | AE57: 0.1407739338
A58: 10063 | B58: 20 | C58: 0.1 | D58: 3 | E58: 0.003116553588 | F58: 0.1020188648 | X58: 57 | Y58: 356751 | Z58: 0.05 | AA58: 0.1 | AB58: 3 | AC58: 0.004860821023 | AD58: 0.2589146698 | AE58: 0.2637754908 | AI58: VRA 1 Infiltration % Capture
A59: 10063 | B59: 20 | C59: 0.1 | D59: 6 | E59: 0.004771360803 | F59: 0.1374593193 | X59: 58 | Y59: 356751 | Z59: 0.05 | AA59: 0.1 | AB59: 6 | AC59: 0.007367181863 | AD59: 0.3193331561 | AE59: 0.326700338
A60: 10063 | B60: 20 | C60: 0.1 | D60: 12 | E60: 0.005405703569 | F60: 0.1888962436 | X60: 59 | Y60: 356751 | Z60: 0.05 | AA60: 0.1 | AB60: 12 | AC60: 0.01002544336 | AD60: 0.3990050507 | AE60: 0.4090304941 | AF60: Amendment | AG60: 12
A61: 10063 | B61: 20 | C61: 0.1 | D61: 24 | E61: 0.004495559601 | F61: 0.2598874731 | X61: 60 | Y61: 356751 | Z61: 0.05 | AA61: 0.1 | AB61: 24 | AC61: 0.01120267345 | AD61: 0.4918543273 | AE61: 0.5030570007
A62: 10063 | B62: 20 | C62: 0.2 | D62: 0 | E62: 0.0001930608417 | F62: 0.09473771306 | W62: Amendment Depth Identifier for VRA 1 | X62: 61 | Y62: 356751 | Z62: 0.05 | AA62: 0.2 | AB62: 0 | AC62: 0.0006835529564 | AD62: 0.2584209927 | AE62: 0.2591045456 | AF62: Sum of Infil Capture % | AG62: Column Labels
A63: 10063 | B63: 20 | C63: 0.2 | D63: 3 | E63: 0.002537371063 | F63: 0.1661150643 | W63: ='Project Design'!B33 -> 12 | X63: 62 | Y63: 356751 | Z63: 0.05 | AA63: 0.2 | AB63: 3 | AC63: 0.004443094216 | AD63: 0.3919416701 | AE63: 0.3963847644 | AF63: Row Labels | AG63: 0.02 | AH63: 0.05 | AI63: 0.1 | AJ63: 0.2 | AK63: 0.4 | AL63: 1 | AM63: 2 | AN63: 4 | AO63: Grand Total
A64: 10063 | B64: 20 | C64: 0.2 | D64: 6 | E64: 0.004357658999 | F64: 0.209636494 | X64: 63 | Y64: 356751 | Z64: 0.05 | AA64: 0.2 | AB64: 6 | AC64: 0.006721604071 | AD64: 0.4611324194 | AE64: 0.4678540235 | AF64: 1e-06 | AG64: 0 | AH64: 4.216090171e-18 | AI64: 3.797516424e-05 | AJ64: 0 | AK64: 0 | AL64: 7.595032849e-05 | AM64: 0.0001139254927 | AN64: 0.0002658261497 | AO64: 0.0004936771352
A65: 10063 | B65: 20 | C65: 0.2 | D65: 12 | E65: 0.005378123449 | F65: 0.269264714 | X65: 64 | Y65: 356751 | Z65: 0.05 | AA65: 0.2 | AB65: 12 | AC65: 0.009455815896 | AD65: 0.5504120305 | AE65: 0.5598678464 | AF65: 0.01 | AG65: 0.02749401891 | AH65: 0.06315269814 | AI65: 0.1149508222 | AJ65: 0.1977746554 | AK65: 0.3052443702 | AL65: 0.4459043785 | AM65: 0.5366650211 | AN65: 0.5913492576 | AO65: 2.282535222
A66: 10063 | B66: 20 | C66: 0.2 | D66: 24 | E66: 0.004881681284 | F66: 0.3433173369 | X66: 65 | Y66: =INDIRECT("A"&$W$2+$X66) -> 356751 | Z66: 0.05 | AA66: =INDIRECT("C"&$W$2+$X66) -> 0.2 | AB66: =INDIRECT("D"&$W$2+$X66) -> 24 | AC66: =INDIRECT("E"&$W$2+$X66) -> 0.01112672312 | AD66: 0.6478183268 | AE66: 0.6589450499 | AF66: 0.05 | AG66: 0.1124824365 | AH66: 0.24854745 | AI66: 0.4197394904 | AJ66: 0.6246534766 | AK66: 0.7800478487 | AL66: 0.8614286257 | AM66: 0.8783655489 | AN66: 0.8754034861 | AO66: 4.800668363
A67: 10063 | B67: 20 | C67: 0.5 | D67: 0 | E67: 0.0001930608417 | F67: 0.2018864802 | X67: 66 | Y67: 356751 | Z67: =1/INDIRECT("B"&$W$2+$X67) -> 0.05 | AA67: 0.5 | AB67: 0 | AC67: 0.0006835529564 | AD67: =INDIRECT("F"&$W$2+$X67) -> 0.4981961797 | AE67: =AD67+AC67 -> 0.4988797327 | AF67: 0.1 | AG67: 0.1930277598 | AH67: 0.3990050507 | AI67: 0.6178559222 | AJ67: 0.804162078 | AK67: 0.8960619755 | AL67: 0.9145558805 | AM67: 0.9080241522 | AN67: 0.8969733794 | AO67: 5.629666198
A68: 10063 | B68: 20 | C68: 0.5 | D68: 3 | E68: 0.0021788295 | F68: 0.2837994374 | X68: =X67+1 -> 67 | Y68: 356751 | Z68: 0.05 | AA68: 0.5 | AB68: 3 | AC68: 0.004215243231 | AD68: 0.6175521209 | AE68: 0.6217673641 | AF68: 0.2 | AG68: 0.2847757567 | AH68: 0.5504120305 | AI68: 0.7710857099 | AJ68: 0.903353207 | AK68: 0.9408346941 | AL68: 0.9258724794 | AM68: 0.9129988987 | AN68: 0.9013025481 | AO68: 6.190635324
A69: 10063 | B69: 20 | C69: 0.5 | D69: 6 | E69: 0.003971537316 | F69: 0.328672293 | X69: 68 | Y69: 356751 | Z69: 0.05 | AA69: 0.5 | AB69: 6 | AC69: 0.0062659021 | AD69: 0.6758819732 | AE69: 0.6821478753 | AF69: 0.5 | AG69: 0.4347017051 | AH69: 0.7415410322 | AI69: 0.9042646109 | AJ69: 0.9600121521 | AK69: 0.9558728592 | AL69: 0.9293282193 | AM69: 0.9150495576 | AN69: 0.9033911822 | AO69: 6.744161318
A70: 10063 | B70: 20 | C70: 0.5 | D70: 12 | E70: 0.005240222847 | F70: 0.3810745215 | X70: 69 | Y70: 356751 | Z70: 0.05 | AA70: 0.5 | AB70: 12 | AC70: 0.00903808909 | AD70: 0.7415410322 | AE70: 0.7505791213 | AF70: 1 | AG70: 0.5631337106 | AH70: 0.8493525234 | AI70: 0.9543158774 | AJ70: 0.9707970987 | AK70: 0.9568222383 | AL70: 0.9304294991 | AM70: 0.9157710857 | AN70: 0.9041506855 | AO70: 7.044772719
A71: 10063 | B71: 20 | C71: 0.5 | D71: 24 | E71: 0.005129902366 | F71: 0.4381929505 | X71: 70 | Y71: 356751 | Z71: 0.05 | AA71: 0.5 | AB71: 24 | AC71: 0.01097482247 | AD71: 0.8019215433 | AE71: 0.8128963658 | AF71: 2 | AG71: 0.6350586716 | AH71: 0.8898720237 | AI71: 0.9654805757 | AJ71: 0.9716705275 | AK71: 0.9572779402 | AL71: 0.9310371017 | AM71: 0.9162647628 | AN71: 0.9045684123 | AO71: 7.171230016
A72: 10063 | B72: 20 | C72: 1 | D72: 0 | E72: 0.0001930608417 | F72: 0.3081251034 | X72: 71 | Y72: 356751 | Z72: 0.05 | AA72: 1 | AB72: 0 | AC72: 0.0006835529564 | AD72: 0.7047810732 | AE72: 0.7054646261 | AF72: Grand Total | AG72: 2.250674059 | AH72: 3.741882809 | AI72: 4.747730984 | AJ72: 5.432423195 | AK72: 5.792161926 | AL72: 5.938632135 | AM72: 5.983252953 | AN72: 5.977404777 | AO72: 39.86416284
A73: 10063 | B73: 20 | C73: 1 | D73: 3 | E73: 0.002040928898 | F73: 0.3912515859 | X73: 72 | Y73: 356751 | Z73: 0.05 | AA73: 1 | AB73: 3 | AC73: 0.004139292902 | AD73: 0.789123913 | AE73: 0.7932632059 | AG73: =AG63 -> 0.02 | AH73: 0.05 | AI73: 0.1 | AJ73: 0.2 | AK73: 0.4 | AL73: 1 | AM73: 2 | AN73: 4
A74: 10063 | B74: 20 | C74: 1 | D74: 6 | E74: 0.003833636715 | F74: 0.4246235314 | X74: 73 | Y74: 356751 | Z74: 0.05 | AA74: 1 | AB74: 6 | AC74: 0.006151976607 | AD74: 0.8215926784 | AE74: 0.827744655 | AF74: 0 | AG74: 0 | AH74: 0 | AI74: 0 | AJ74: 0 | AK74: 0 | AL74: 0 | AM74: 0 | AN74: 0
A75: 10063 | B75: 20 | C75: 1 | D75: 12 | E75: 0.005157482487 | F75: 0.4608638094 | X75: 74 | Y75: 356751 | Z75: 0.05 | AA75: 1 | AB75: 12 | AC75: 0.008848213269 | AD75: 0.8493525234 | AE75: 0.8582007367 | AF75: =AF64 -> 1e-06 | AG75: 0 | AH75: 4.216090171e-18 | AI75: 3.797516424e-05 | AJ75: 0 | AK75: 0 | AL75: 7.595032849e-05 | AM75: 0.0001139254927 | AN75: 0.0002658261497
A76: 10063 | B76: 20 | C76: 1 | D76: 24 | E76: 0.005212642727 | F76: 0.4889403718 | X76: 75 | Y76: 356751 | Z76: 0.05 | AA76: 1 | AB76: 24 | AC76: 0.01089887214 | AD76: 0.8712641932 | AE76: 0.8821630654 | AF76: 0.01 | AG76: 0.02749401891 | AH76: 0.06315269814 | AI76: 0.1149508222 | AJ76: 0.1977746554 | AK76: 0.3052443702 | AL76: 0.4459043785 | AM76: 0.5366650211 | AN76: 0.5913492576
A77: 10063 | B77: 20 | C77: 2 | D77: 0 | E77: 0.0001930608417 | F77: 0.4761707761 | X77: 76 | Y77: 356751 | Z77: 0.05 | AA77: 2 | AB77: 0 | AC77: 0.0006835529564 | AD77: 0.8636691604 | AE77: 0.8643527133 | AF77: 0.05 | AG77: 0.1124824365 | AH77: 0.24854745 | AI77: 0.4197394904 | AJ77: 0.6246534766 | AK77: 0.7800478487 | AL77: 0.8614286257 | AM77: 0.8783655489 | AN77: 0.8754034861
A78: 10063 | B78: 20 | C78: 2 | D78: 3 | E78: 0.001985768658 | F78: 0.5047989409 | X78: 77 | Y78: 356751 | Z78: 0.05 | AA78: 2 | AB78: 3 | AC78: 0.004101317738 | AD78: 0.8938594159 | AE78: 0.8979607337 | AF78: 0.1 | AG78: 0.1930277598 | AH78: 0.3990050507 | AI78: 0.6178559222 | AJ78: 0.804162078 | AK78: 0.8960619755 | AL78: 0.9145558805 | AM78: 0.9080241522 | AN78: 0.8969733794
A79: 10063 | B79: 20 | C79: 2 | D79: 6 | E79: 0.003750896354 | F79: 0.5058745656 | X79: 78 | Y79: 356751 | Z79: 0.05 | AA79: 2 | AB79: 6 | AC79: 0.006038051115 | AD79: 0.8924163597 | AE79: 0.8984544108 | AF79: 0.2 | AG79: 0.2847757567 | AH79: 0.5504120305 | AI79: 0.7710857099 | AJ79: 0.903353207 | AK79: 0.9408346941 | AL79: 0.9258724794 | AM79: 0.9129988987 | AN79: 0.9013025481
A80: 10063 | B80: 20 | C80: 2 | D80: 12 | E80: 0.005102322246 | F80: 0.5060952066 | X80: 79 | Y80: 356751 | Z80: 0.05 | AA80: 2 | AB80: 12 | AC80: 0.00877226294 | AD80: 0.8898720237 | AE80: 0.8986442866 | AF80: 0.5 | AG80: 0.4347017051 | AH80: 0.7415410322 | AI80: 0.9042646109 | AJ80: 0.9600121521 | AK80: 0.9558728592 | AL80: 0.9293282193 | AM80: 0.9150495576 | AN80: 0.9033911822
A81: 10063 | B81: 20 | C81: 2 | D81: 24 | E81: 0.005267802968 | F81: 0.5061503668 | X81: 80 | Y81: 356751 | Z81: 0.05 | AA81: 2 | AB81: 24 | AC81: 0.01086089697 | AD81: 0.8877833897 | AE81: 0.8986442866 | AF81: 1 | AG81: 0.5631337106 | AH81: 0.8493525234 | AI81: 0.9543158774 | AJ81: 0.9707970987 | AK81: 0.9568222383 | AL81: 0.9304294991 | AM81: 0.9157710857 | AN81: 0.9041506855
A82: 10063 | B82: 10 | C82: 1e-06 | D82: 0 | E82: 0.000441281924 | F82: 2.758012025e-05 | X82: 81 | Y82: 356751 | Z82: 0.1 | AA82: 1e-06 | AB82: 0 | AC82: 0.001481031405 | AD82: 3.797516424e-05 | AE82: 0.00151900657 | AF82: 2 | AG82: 0.6350586716 | AH82: 0.8898720237 | AI82: 0.9654805757 | AJ82: 0.9716705275 | AK82: 0.9572779402 | AL82: 0.9310371017 | AM82: 0.9162647628 | AN82: 0.9045684123
A83: 10063 | B83: 10 | C83: 1e-06 | D83: 3 | E83: 0.007998234872 | F83: 7.348820285e-17 | X83: 82 | Y83: 356751 | Z83: 0.1 | AA83: 1e-06 | AB83: 3 | AC83: 0.01131659894 | AD83: 3.797516424e-05 | AE83: 0.01135457411
A84: 10063 | B84: 10 | C84: 1e-06 | D84: 6 | E84: 0.009818522809 | F84: 0 | X84: 83 | Y84: 356751 | Z84: 0.1 | AA84: 1e-06 | AB84: 6 | AC84: 0.01632932062 | AD84: 0 | AE84: 0.01632932062
A85: 10063 | B85: 10 | C85: 1e-06 | D85: 12 | E85: 0.009653042087 | F85: 0 | X85: 84 | Y85: 356751 | Z85: 0.1 | AA85: 1e-06 | AB85: 12 | AC85: 0.0198610109 | AD85: 3.797516424e-05 | AE85: 0.01989898606
A86: 10063 | B86: 10 | C86: 1e-06 | D86: 24 | E86: 0.007170831265 | F86: 2.758012025e-05 | X86: 85 | Y86: 356751 | Z86: 0.1 | AA86: 1e-06 | AB86: 24 | AC86: 0.01887365663 | AD86: 1.686436068e-17 | AE86: 0.01887365663
A87: 10063 | B87: 10 | C87: 0.01 | D87: 0 | E87: 0.000441281924 | F87: 0.002371890341 | X87: 86 | Y87: 356751 | Z87: 0.1 | AA87: 0.01 | AB87: 0 | AC87: 0.001481031405 | AD87: 0.01674704743 | AE87: 0.01822807884
A88: 10063 | B88: 10 | C88: 0.01 | D88: 3 | E88: 0.007998234872 | F88: 0.02909702686 | X88: 87 | Y88: 356751 | Z88: 0.1 | AA88: 0.01 | AB88: 3 | AC88: 0.01131659894 | AD88: 0.06383625109 | AE88: 0.07515285004
A89: 10063 | B89: 10 | C89: 0.01 | D89: 6 | E89: 0.009818522809 | F89: 0.04920293452 | X89: 88 | Y89: 356751 | Z89: 0.1 | AA89: 0.01 | AB89: 6 | AC89: 0.01632932062 | AD89: 0.08692515095 | AE89: 0.1032544716
A90: 10063 | B90: 10 | C90: 0.01 | D90: 12 | E90: 0.009653042087 | F90: 0.07485244636 | X90: 89 | Y90: 356751 | Z90: 0.1 | AA90: 0.01 | AB90: 12 | AC90: 0.0198610109 | AD90: 0.1149508222 | AE90: 0.1348118331
A91: 10063 | B91: 10 | C91: 0.01 | D91: 24 | E91: 0.007170831265 | F91: 0.09975729494 | X91: 90 | Y91: 356751 | Z91: 0.1 | AA91: 0.01 | AB91: 24 | AC91: 0.01887365663 | AD91: 0.1457866555 | AE91: 0.1646603122
A92: 10063 | B92: 10 | C92: 0.05 | D92: 0 | E92: 0.000441281924 | F92: 0.04252854542 | X92: 91 | Y92: 356751 | Z92: 0.1 | AA92: 0.05 | AB92: 0 | AC92: 0.001481031405 | AD92: 0.1249382904 | AE92: 0.1264193218
A93: 10063 | B93: 10 | C93: 0.05 | D93: 3 | E93: 0.007998234872 | F93: 0.1013293618 | X93: 92 | Y93: 356751 | Z93: 0.1 | AA93: 0.05 | AB93: 3 | AC93: 0.009987468196 | AD93: 0.2663957772 | AE93: 0.2763832454
A94: 10063 | B94: 10 | C94: 0.05 | D94: 6 | E94: 0.009818522809 | F94: 0.1397760494 | X94: 93 | Y94: 356751 | Z94: 0.1 | AA94: 0.05 | AB94: 6 | AC94: 0.01492423955 | AD94: 0.3344092963 | AE94: 0.3493335359
A95: 10063 | B95: 10 | C95: 0.05 | D95: 12 | E95: 0.009653042087 | F95: 0.1984665453 | X95: 94 | Y95: 356751 | Z95: 0.1 | AA95: 0.05 | AB95: 12 | AC95: 0.01925340827 | AD95: 0.4197394904 | AE95: 0.4389928986
A96: 10063 | B96: 10 | C96: 0.05 | D96: 24 | E96: 0.007170831265 | F96: 0.2848474819 | X96: 95 | Y96: 356751 | Z96: 0.1 | AA96: 0.05 | AB96: 24 | AC96: 0.01989898606 | AD96: 0.5167280598 | AE96: 0.5366270459
A97: 10063 | B97: 10 | C97: 0.1 | D97: 0 | E97: 0.000441281924 | F97: 0.09788184676 | X97: 96 | Y97: 356751 | Z97: 0.1 | AA97: 0.1 | AB97: 0 | AC97: 0.001481031405 | AD97: 0.2406106406 | AE97: 0.242091672
A98: 10063 | B98: 10 | C98: 0.1 | D98: 3 | E98: 0.006315847537 | F98: 0.1856693695 | X98: 97 | Y98: 356751 | Z98: 0.1 | AA98: 0.1 | AB98: 3 | AC98: 0.008354536133 | AD98: 0.4297649337 | AE98: 0.4381194699
A99: 10063 | B99: 10 | C99: 0.1 | D99: 6 | E99: 0.009211760163 | F99: 0.2426223178 | X99: 98 | Y99: 356751 | Z99: 0.1 | AA99: 0.1 | AB99: 6 | AC99: 0.01310143166 | AD99: 0.5159685566 | AE99: 0.5290699882
A100: 10063 | B100: 10 | C100: 0.1 | D100: 12 | E100: 0.01023222461 | F100: 0.3249213967 | X100: 99 | Y100: 356751 | Z100: 0.1 | AA100: 0.1 | AB100: 12 | AC100: 0.0177344017 | AD100: 0.6178559222 | AE100: 0.6355903239
A101: 10063 | B101: 10 | C101: 0.1 | D101: 24 | E101: 0.008549837277 | F101: 0.4353797783 | X101: 100 | Y101: 356751 | Z101: 0.1 | AA101: 0.1 | AB101: 24 | AC101: 0.02024076254 | AD101: 0.7222496487 | AE101: 0.7424904113
A102: 10063 | B102: 10 | C102: 0.2 | D102: 0 | E102: 0.000441281924 | F102: 0.1799327045 | X102: 101 | Y102: 356751 | Z102: 0.1 | AA102: 0.2 | AB102: 0 | AC102: 0.001481031405 | AD102: 0.4298408841 | AE102: 0.4313219155
A103: 10063 | B103: 10 | C103: 0.2 | D103: 3 | E103: 0.005185062607 | F103: 0.2923492746 | X103: 102 | Y103: 356751 | Z103: 0.1 | AA103: 0.2 | AB103: 3 | AC103: 0.007557057684 | AD103: 0.6088558083 | AE103: 0.616412866
A104: 10063 | B104: 10 | C104: 0.2 | D104: 6 | E104: 0.008604997518 | F104: 0.3544872856 | X104: 103 | Y104: 356751 | Z104: 0.1 | AA104: 0.2 | AB104: 6 | AC104: 0.01192420157 | AD104: 0.6858314662 | AE104: 0.6977556678
A105: 10063 | B105: 10 | C105: 0.2 | D105: 12 | E105: 0.01006674389 | F105: 0.4416956258 | X105: 104 | Y105: 356751 | Z105: 0.1 | AA105: 0.2 | AB105: 12 | AC105: 0.01682299776 | AD105: 0.7710857099 | AE105: 0.7879087077
A106: 10063 | B106: 10 | C106: 0.2 | D106: 24 | E106: 0.009239340284 | F106: 0.5453141376 | X106: 105 | Y106: 356751 | Z106: 0.1 | AA106: 0.2 | AB106: 24 | AC106: 0.02005088672 | AD106: 0.8476816162 | AE106: 0.8677325029
A107: 10063 | B107: 10 | C107: 0.5 | D107: 0 | E107: 0.000441281924 | F107: 0.3561696729 | X107: 106 | Y107: 356751 | Z107: 0.1 | AA107: 0.5 | AB107: 0 | AC107: 0.001481031405 | AD107: 0.7182622565 | AE107: 0.7197432879
A108: 10063 | B108: 10 | C108: 0.5 | D108: 3 | E108: 0.00444039936 | F108: 0.4635942413 | X108: 107 | Y108: 356751 | Z108: 0.1 | AA108: 0.5 | AB108: 3 | AC108: 0.007063380549 | AD108: 0.8269851517 | AE108: 0.8340485323
A109: 10063 | B109: 10 | C109: 0.5 | D109: 6 | E109: 0.008025814993 | F109: 0.5152242264 | X109: 108 | Y109: 356751 | Z109: 0.1 | AA109: 0.5 | AB109: 6 | AC109: 0.01108874796 | AD109: 0.8673907265 | AE109: 0.8784794744
A110: 10063 | B110: 10 | C110: 0.5 | D110: 12 | E110: 0.009818522809 | F110: 0.5805891114 | X110: 109 | Y110: 356751 | Z110: 0.1 | AA110: 0.5 | AB110: 12 | AC110: 0.01606349447 | AD110: 0.9042646109 | AE110: 0.9203281054
A111: 10063 | B111: 10 | C111: 0.5 | D111: 24 | E111: 0.009680622208 | F111: 0.6402449115 | X111: 110 | Y111: 356751 | Z111: 0.1 | AA111: 0.5 | AB111: 24 | AC111: 0.01978506057 | AD111: 0.9330497854 | AE111: 0.952834846
A112: 10063 | B112: 10 | C112: 1 | D112: 0 | E112: 0.000441281924 | F112: 0.5081361355 | X112: 111 | Y112: 356751 | Z112: 0.1 | AA112: 1 | AB112: 0 | AC112: 0.001481031405 | AD112: 0.8859605818 | AE112: 0.8874416132
A113: 10063 | B113: 10 | C113: 1 | D113: 3 | E113: 0.004192178278 | F113: 0.5833471234 | X113: 112 | Y113: 356751 | Z113: 0.1 | AA113: 1 | AB113: 3 | AC113: 0.006911479892 | AD113: 0.9349105685 | AE113: 0.9418220484
A114: 10063 | B114: 10 | C114: 1 | D114: 6 | E114: 0.00772243367 | F114: 0.6193667604 | X114: 113 | Y114: 356751 | Z114: 0.1 | AA114: 1 | AB114: 6 | AC114: 0.01078494664 | AD114: 0.9472524969 | AE114: 0.9580374435
A115: 10063 | B115: 10 | C115: 1 | D115: 12 | E115: 0.009680622208 | F115: 0.6551381764 | X115: 114 | Y115: 356751 | Z115: 0.1 | AA115: 1 | AB115: 12 | AC115: 0.01579766832 | AD115: 0.9543158774 | AE115: 0.9701135457
A116: 10063 | B116: 10 | C116: 1 | D116: 24 | E116: 0.009818522809 | F116: 0.6788294997 | X116: 115 | Y116: 356751 | Z116: 0.1 | AA116: 1 | AB116: 24 | AC116: 0.01967113508 | AD116: 0.9573918657 | AE116: 0.9770630008
A117: 10063 | B117: 10 | C117: 2 | D117: 0 | E117: 0.000441281924 | F117: 0.6621435269 | X117: 116 | Y117: 356751 | Z117: 0.1 | AA117: 2 | AB117: 0 | AC117: 0.001481031405 | AD117: 0.9620248358 | AE117: 0.9635058672
A118: 10063 | B118: 10 | C118: 2 | D118: 3 | E118: 0.004054277677 | F118: 0.6891720448 | X118: 117 | Y118: 356751 | Z118: 0.1 | AA118: 2 | AB118: 3 | AC118: 0.006797554399 | AD118: 0.9739870125 | AE118: 0.9807845669
A119: 10063 | B119: 10 | C119: 2 | D119: 6 | E119: 0.007556952948 | F119: 0.6901925092 | X119: 118 | Y119: 356751 | Z119: 0.1 | AA119: 2 | AB119: 6 | AC119: 0.01063304599 | AD119: 0.9704553222 | AE119: 0.9810883682
A120: 10063 | B120: 10 | C120: 2 | D120: 12 | E120: 0.009625461967 | F120: 0.6901925092 | X120: 119 | Y120: 356751 | Z120: 0.1 | AA120: 2 | AB120: 12 | AC120: 0.01564576767 | AD120: 0.9654805757 | AE120: 0.9811263434
A121: 10063 | B121: 10 | C121: 2 | D121: 24 | E121: 0.00990126317 | F121: 0.69035799 | X121: 120 | Y121: 356751 | Z121: 0.1 | AA121: 2 | AB121: 24 | AC121: 0.01959518475 | AD121: 0.9615311586 | AE121: 0.9811263434
A122: 10063 | B122: 5 | C122: 1e-06 | D122: 0 | E122: 0.00113078493 | F122: 0 | X122: 121 | Y122: 356751 | Z122: 0.2 | AA122: 1e-06 | AB122: 0 | AC122: 0.003151938632 | AD122: 3.797516424e-05 | AE122: 0.003189913796
A123: 10063 | B123: 5 | C123: 1e-06 | D123: 3 | E123: 0.01461746373 | F123: 0 | X123: 122 | Y123: 356751 | Z123: 0.2 | AA123: 1e-06 | AB123: 3 | AC123: 0.01917745794 | AD123: 0 | AE123: 0.01917745794
A124: 10063 | B124: 5 | C124: 1e-06 | D124: 6 | E124: 0.01767885708 | F124: 1.224803381e-17 | X124: 123 | Y124: 356751 | Z124: 0.2 | AA124: 1e-06 | AB124: 6 | AC124: 0.02787377055 | AD124: 1.686436068e-17 | AE124: 0.02787377055
A125: 10063 | B125: 5 | C125: 1e-06 | D125: 12 | E125: 0.01767885708 | F125: 0 | X125: 124 | Y125: 356751 | Z125: 0.2 | AA125: 1e-06 | AB125: 12 | AC125: 0.0338738465 | AD125: 0 | AE125: 0.0338738465
A126: 10063 | B126: 5 | C126: 1e-06 | D126: 24 | E126: 0.01359699928 | F126: 0 | X126: 125 | Y126: 356751 | Z126: 0.2 | AA126: 1e-06 | AB126: 24 | AC126: 0.0334561197 | AD126: 3.797516424e-05 | AE126: 0.03349409486
A127: 10063 | B127: 5 | C127: 0.01 | D127: 0 | E127: 0.00113078493 | F127: 0.00557118429 | X127: 126 | Y127: 356751 | Z127: 0.2 | AA127: 0.01 | AB127: 0 | AC127: 0.003151938632 | AD127: 0.03125356017 | AE127: 0.0344054988
A128: 10063 | B128: 5 | C128: 0.01 | D128: 3 | E128: 0.01461746373 | F128: 0.05110596282 | X128: 127 | Y128: 356751 | Z128: 0.2 | AA128: 0.01 | AB128: 3 | AC128: 0.01917745794 | AD128: 0.1114950822 | AE128: 0.1306725402
A129: 10063 | B129: 5 | C129: 0.01 | D129: 6 | E129: 0.01767885708 | F129: 0.08486403001 | X129: 128 | Y129: 356751 | Z129: 0.2 | AA129: 0.01 | AB129: 6 | AC129: 0.02787377055 | AD129: 0.1496601223 | AE129: 0.1775338928
A130: 10063 | B130: 5 | C130: 0.01 | D130: 12 | E130: 0.01767885708 | F130: 0.1328534392 | X130: 129 | Y130: =INDIRECT("A"&$W$2+$X130) -> 356751 | Z130: 0.2 | AA130: =INDIRECT("C"&$W$2+$X130) -> 0.01 | AB130: =INDIRECT("D"&$W$2+$X130) -> 12 | AC130: =INDIRECT("E"&$W$2+$X130) -> 0.0338738465 | AD130: 0.1977746554 | AE130: 0.2316485019
A131: 10063 | B131: 5 | C131: 0.01 | D131: 24 | E131: 0.01359699928 | F131: 0.1830492581 | X131: 130 | Y131: 356751 | Z131: =1/INDIRECT("B"&$W$2+$X131) -> 0.2 | AA131: 0.01 | AB131: 24 | AC131: 0.0334561197 | AD131: =INDIRECT("F"&$W$2+$X131) -> 0.2499905062 | AE131: =AD131+AC131 -> 0.2834466259
A132: 10063 | B132: 5 | C132: 0.05 | D132: 0 | E132: 0.00113078493 | F132: 0.09076617574 | X132: =X131+1 -> 131 | Y132: 356751 | Z132: 0.2 | AA132: 0.05 | AB132: 0 | AC132: 0.003151938632 | AD132: 0.2157369081 | AE132: 0.2188888467
A133: 10063 | B133: 5 | C133: 0.05 | D133: 3 | E133: 0.01461746373 | F133: 0.1800981852 | X133: 132 | Y133: 356751 | Z133: 0.2 | AA133: 0.05 | AB133: 3 | AC133: 0.01689894809 | AD133: 0.4321193939 | AE133: 0.449018342
A134: 10063 | B134: 5 | C134: 0.05 | D134: 6 | E134: 0.01767885708 | F134: 0.2388990016 | X134: 133 | Y134: 356751 | Z134: 0.2 | AA134: 0.05 | AB134: 6 | AC134: 0.02544336004 | AD134: 0.5215888809 | AE134: 0.5470322409
A135: 10063 | B135: 5 | C135: 0.05 | D135: 12 | E135: 0.01767885708 | F135: 0.3314027249 | X135: 134 | Y135: 356751 | Z135: 0.2 | AA135: 0.05 | AB135: 12 | AC135: 0.03269661641 | AD135: 0.6246534766 | AE135: 0.657350093
A136: 10063 | B136: 5 | C136: 0.05 | D136: 24 | E136: 0.01359699928 | F136: 0.4648353467 | X136: 135 | Y136: 356751 | Z136: 0.2 | AA136: 0.05 | AB136: 24 | AC136: 0.03413967265 | AD136: 0.7310219117 | AE136: 0.7651615843
A137: 10063 | B137: 5 | C137: 0.1 | D137: 0 | E137: 0.00113078493 | F137: 0.1823873352 | X137: 136 | Y137: 356751 | Z137: 0.2 | AA137: 0.1 | AB137: 0 | AC137: 0.003151938632 | AD137: 0.4017012874 | AE137: 0.404853226
A138: 10063 | B138: 5 | C138: 0.1 | D138: 3 | E138: 0.01213525291 | F138: 0.3111313365 | X138: 137 | Y138: 356751 | Z138: 0.2 | AA138: 0.1 | AB138: 3 | AC138: 0.01420271143 | AD138: 0.6336535906 | AE138: 0.647856302
A139: 10063 | B139: 5 | C139: 0.1 | D139: 6 | E139: 0.01676871311 | F139: 0.3923823708 | X139: 138 | Y139: 356751 | Z139: 0.2 | AA139: 0.1 | AB139: 6 | AC139: 0.02202559526 | AD139: 0.7198192382 | AE139: 0.7418448335
A140: 10063 | B140: 5 | C140: 0.1 | D140: 12 | E140: 0.01814771912 | F140: 0.511004468 | X140: 139 | Y140: 356751 | Z140: 0.2 | AA140: 0.1 | AB140: 12 | AC140: 0.03041810656 | AD140: 0.804162078 | AE140: 0.8345801846
A141: 10063 | B141: 5 | C141: 0.1 | D141: 24 | E141: 0.01607921011 | F141: 0.6511666391 | X141: 140 | Y141: 356751 | Z141: 0.2 | AA141: 0.1 | AB141: 24 | AC141: 0.03432954848 | AD141: 0.8805301333 | AE141: 0.9148596818
A142: 10063 | B142: 5 | C142: 0.2 | D142: 0 | E142: 0.00113078493 | F142: 0.31879861 | X142: 141 | Y142: 356751 | Z142: 0.2 | AA142: 0.2 | AB142: 0 | AC142: 0.003151938632 | AD142: 0.6397296168 | AE142: 0.6428815555
A143: 10063 | B143: 5 | C143: 0.2 | D143: 3 | E143: 0.01056318606 | F143: 0.4555960064 | X143: 142 | Y143: 356751 | Z143: 0.2 | AA143: 0.2 | AB143: 3 | AC143: 0.01275965519 | AD143: 0.8043139787 | AE143: 0.8170736338
A144: 10063 | B144: 5 | C144: 0.2 | D144: 6 | E144: 0.01561034806 | F144: 0.539439572 | X144: 143 | Y144: 356751 | Z144: 0.2 | AA144: 0.2 | AB144: 6 | AC144: 0.02012683705 | AD144: 0.8566817301 | AE144: 0.8768085672
A145: 10063 | B145: 5 | C145: 0.2 | D145: 12 | E145: 0.0179822384 | F145: 0.6464228584 | X145: 144 | Y145: 356751 | Z145: 0.2 | AA145: 0.2 | AB145: 12 | AC145: 0.02886112482 | AD145: 0.903353207 | AE145: 0.9322143318
A146: 10063 | B146: 5 | C146: 0.2 | D146: 24 | E146: 0.0171548348 | F146: 0.7486623642 | X146: 145 | Y146: 356751 | Z146: 0.2 | AA146: 0.2 | AB146: 24 | AC146: 0.03410169749 | AD146: 0.9362017241 | AE146: 0.9703034216
A147: 10063 | B147: 5 | C147: 0.5 | D147: 0 | E147: 0.00113078493 | F147: 0.5392465111 | X147: 146 | Y147: 356751 | Z147: 0.2 | AA147: 0.5 | AB147: 0 | AC147: 0.003151938632 | AD147: 0.8886568184 | AE147: 0.8918087571
A148: 10063 | B148: 5 | C148: 0.5 | D148: 3 | E148: 0.009156599923 | F148: 0.6510287385 | X148: 147 | Y148: 356751 | Z148: 0.2 | AA148: 0.5 | AB148: 3 | AC148: 0.01181027608 | AD148: 0.9442144837 | AE148: 0.9560247598
A149: 10063 | B149: 5 | C149: 0.5 | D149: 6 | E149: 0.01461746373 | F149: 0.7072646037 | X149: 148 | Y149: 356751 | Z149: 0.2 | AA149: 0.5 | AB149: 6 | AC149: 0.01872175597 | AD149: 0.9556450082 | AE149: 0.9743667641
A150: 10063 | B150: 5 | C150: 0.5 | D150: 12 | E150: 0.01767885708 | F150: 0.7688234321 | X150: 149 | Y150: 356751 | Z150: 0.2 | AA150: 0.5 | AB150: 12 | AC150: 0.02745604375 | AD150: 0.9600121521 | AE150: 0.9874681958
A151: 10063 | B151: 5 | C151: 0.5 | D151: 24 | E151: 0.01767885708 | F151: 0.8141375696 | X151: 150 | Y151: 356751 | Z151: 0.2 | AA151: 0.5 | AB151: 24 | AC151: 0.03368397068 | AD151: 0.9614172331 | AE151: 0.9951012038
A152: 10063 | B152: 5 | C152: 1 | D152: 0 | E152: 0.00113078493 | F152: 0.6937503448 | X152: 151 | Y152: 356751 | Z152: 0.2 | AA152: 1 | AB152: 0 | AC152: 0.003151938632 | AD152: 0.9718224281 | AE152: 0.9749743668
A153: 10063 | B153: 5 | C153: 1 | D153: 3 | E153: 0.008660157758 | F153: 0.7658999393 | X153: 152 | Y153: 356751 | Z153: 0.2 | AA153: 1 | AB153: 3 | AC153: 0.01150647477 | AD153: 0.9813921695 | AE153: 0.9928986443
A154: 10063 | B154: 5 | C154: 1 | D154: 6 | E154: 0.01417618181 | F154: 0.7962104915 | X154: 153 | Y154: 356751 | Z154: 0.2 | AA154: 1 | AB154: 6 | AC154: 0.01822807884 | AD154: 0.9774807276 | AE154: 0.9957088064
A155: 10063 | B155: 5 | C155: 1 | D155: 12 | E155: 0.01748579624 | F155: 0.820867119 | X155: 154 | Y155: 356751 | Z155: 0.2 | AA155: 1 | AB155: 12 | AC155: 0.02696236661 | AD155: 0.9707970987 | AE155: 0.9977594653
A156: 10063 | B156: 5 | C156: 1 | D156: 24 | E156: 0.01781675768 | F156: 0.8366429478 | X156: 155 | Y156: 356751 | Z156: 0.2 | AA156: 1 | AB156: 24 | AC156: 0.03353207003 | AD156: 0.9648349979 | AE156: 0.9983670679
A157: 10063 | B157: 5 | C157: 2 | D157: 0 | E157: 0.00113078493 | F157: 0.8258867009 | X157: 156 | Y157: 356751 | Z157: 0.2 | AA157: 2 | AB157: 0 | AC157: 0.003151938632 | AD157: 0.9891011279 | AE157: 0.9922530665
A158: 10063 | B158: 5 | C158: 2 | D158: 3 | E158: 0.008439516796 | F158: 0.8437861989 | X158: 157 | Y158: 356751 | Z158: 0.2 | AA158: 2 | AB158: 3 | AC158: 0.01139254927 | AD158: 0.9869745187 | AE158: 0.9983670679
A159: 10063 | B159: 5 | C159: 2 | D159: 6 | E159: 0.01395554085 | F159: 0.8425726736 | X159: 158 | Y159: 356751 | Z159: 0.2 | AA159: 2 | AB159: 6 | AC159: 0.01796225269 | AD159: 0.9804048153 | AE159: 0.9983670679
A160: 10063 | B160: 5 | C160: 2 | D160: 12 | E160: 0.01740305588 | F160: 0.8413591483 | X160: 159 | Y160: 356751 | Z160: 0.2 | AA160: 2 | AB160: 12 | AC160: 0.02669654046 | AD160: 0.9716705275 | AE160: 0.9983670679
A161: 10063 | B161: 5 | C161: 2 | D161: 24 | E161: 0.01792707816 | F161: 0.8411936676 | X161: 160 | Y161: 356751 | Z161: 0.2 | AA161: 2 | AB161: 24 | AC161: 0.03341814453 | AD161: 0.9649489234 | AE161: 0.9983670679
A162: 10063 | B162: 2.5 | C162: 1e-06 | D162: 0 | E162: 0.002785592145 | F162: 0 | X162: 161 | Y162: 356751 | Z162: 0.4 | AA162: 1e-06 | AB162: 0 | AC162: 0.005924125622 | AD162: 2.023723282e-16 | AE162: 0.005924125622
A163: 10063 | B163: 2.5 | C163: 1e-06 | D163: 3 | E163: 0.0246566275 | F163: 0 | X163: 162 | Y163: 356751 | Z163: 0.4 | AA163: 1e-06 | AB163: 3 | AC163: 0.03064595754 | AD163: 3.797516424e-05 | AE163: 0.03068393271
A164: 10063 | B164: 2.5 | C164: 1e-06 | D164: 6 | E164: 0.02989685035 | F164: 7.348820285e-17 | X164: 163 | Y164: 356751 | Z164: 0.4 | AA164: 1e-06 | AB164: 6 | AC164: 0.04450689249 | AD164: 0 | AE164: 0.04450689249
A165: 10063 | B165: 2.5 | C165: 1e-06 | D165: 12 | E165: 0.031193116 | F165: 0 | X165: 164 | Y165: 356751 | Z165: 0.4 | AA165: 1e-06 | AB165: 12 | AC165: 0.05388675806 | AD165: 0 | AE165: 0.05388675806
A166: 10063 | B166: 2.5 | C166: 1e-06 | D166: 24 | E166: 0.02534613051 | F166: 0 | X166: 165 | Y166: 356751 | Z166: 0.4 | AA166: 1e-06 | AB166: 24 | AC166: 0.05286142863 | AD166: 0 | AE166: 0.05286142863
A167: 10063 | B167: 2.5 | C167: 0.01 | D167: 0 | E167: 0.002785592145 | F167: 0.01354183904 | X167: 166 | Y167: 356751 | Z167: 0.4 | AA167: 0.01 | AB167: 0 | AC167: 0.005924125622 | AD167: 0.05513993848 | AE167: 0.0610640641
A168: 10063 | B168: 2.5 | C168: 0.01 | D168: 3 | E168: 0.0246566275 | F168: 0.08359534448 | X168: 167 | Y168: 356751 | Z168: 0.4 | AA168: 0.01 | AB168: 3 | AC168: 0.03064595754 | AD168: 0.1820529374 | AE168: 0.2126988949
A169: 10063 | B169: 2.5 | C169: 0.01 | D169: 6 | E169: 0.02989685035 | F169: 0.1381764024 | X169: 168 | Y169: 356751 | Z169: 0.4 | AA169: 0.01 | AB169: 6 | AC169: 0.04450689249 | AD169: 0.2380663046 | AE169: 0.2825731971
A170: 10063 | B170: 2.5 | C170: 0.01 | D170: 12 | E170: 0.031193116 | F170: 0.2168624855 | X170: 169 | Y170: 356751 | Z170: 0.4 | AA170: 0.01 | AB170: 12 | AC170: 0.05388675806 | AD170: 0.3052443702 | AE170: 0.3591311282
A171: 10063 | B171: 2.5 | C171: 0.01 | D171: 24 | E171: 0.02534613051 | F171: 0.3082078438 | X171: 170 | Y171: 356751 | Z171: 0.4 | AA171: 0.01 | AB171: 24 | AC171: 0.05286142863 | AD171: 0.3882201041 | AE171: 0.4410815327
A172: 10063 | B172: 2.5 | C172: 0.05 | D172: 0 | E172: 0.002785592145 | F172: 0.1743339401 | X172: 171 | Y172: 356751 | Z172: 0.4 | AA172: 0.05 | AB172: 0 | AC172: 0.005924125622 | AD172: 0.360915961 | AE172: 0.3668400866
A173: 10063 | B173: 2.5 | C173: 0.05 | D173: 3 | E173: 0.0246566275 | F173: 0.2924871752 | X173: 172 | Y173: 356751 | Z173: 0.4 | AA173: 0.05 | AB173: 3 | AC173: 0.02681046596 | AD173: 0.6070330004 | AE173: 0.6338434664
A174: 10063 | B174: 2.5 | C174: 0.05 | D174: 6 | E174: 0.02989685035 | F174: 0.374317392 | X174: 173 | Y174: 356751 | Z174: 0.4 | AA174: 0.05 | AB174: 6 | AC174: 0.0406714009 | AD174: 0.6935024494 | AE174: 0.7341738503
A175: 10063 | B175: 2.5 | C175: 0.05 | D175: 12 | E175: 0.031193116 | F175: 0.5012686855 | X175: 174 | Y175: 356751 | Z175: 0.4 | AA175: 0.05 | AB175: 12 | AC175: 0.05221585083 | AD175: 0.7800478487 | AE175: 0.8322636995
A176: 10063 | B176: 2.5 | C176: 0.05 | D176: 24 | E176: 0.02534613051 | F176: 0.6628054498 | X176: 175 | Y176: 356751 | Z176: 0.4 | AA176: 0.05 | AB176: 24 | AC176: 0.0537348574 | AD176: 0.8643527133 | AE176: 0.9180875707
A177: 10063 | B177: 2.5 | C177: 0.1 | D177: 0 | E177: 0.002785592145 | F177: 0.3058359534 | X177: 176 | Y177: 356751 | Z177: 0.4 | AA177: 0.1 | AB177: 0 | AC177: 0.005924125622 | AD177: 0.5938556184 | AE177: 0.599779744
A178: 10063 | B178: 2.5 | C178: 0.1 | D178: 3 | E178: 0.0204368691 | F178: 0.4618291136 | X178: 177 | Y178: 356751 | Z178: 0.4 | AA178: 0.1 | AB178: 3 | AC178: 0.02236737174 | AD178: 0.7947822124 | AE178: 0.8171495842
A179: 10063 | B179: 2.5 | C179: 0.1 | D179: 6 | E179: 0.02802140217 | F179: 0.5640961995 | X179: 178 | Y179: 356751 | Z179: 0.4 | AA179: 0.1 | AB179: 6 | AC179: 0.03539285307 | AD179: 0.8514411575 | AE179: 0.8868340106
A180: 10063 | B180: 2.5 | C180: 0.1 | D180: 12 | E180: 0.03141375696 | F180: 0.6955430526 | X180: 179 | Y180: 356751 | Z180: 0.4 | AA180: 0.1 | AB180: 12 | AC180: 0.04841833441 | AD180: 0.8960619755 | AE180: 0.9444803099
A181: 10063 | B181: 2.5 | C181: 0.1 | D181: 24 | E181: 0.02989685035 | F181: 0.8168404214 | X181: 180 | Y181: 356751 | Z181: 0.4 | AA181: 0.1 | AB181: 24 | AC181: 0.05403865872 | AD181: 0.9265940075 | AE181: 0.9806326662
A182: 10063 | B182: 2.5 | C182: 0.2 | D182: 0 | E182: 0.002785592145 | F182: 0.4682001214 | X182: 181 | Y182: 356751 | Z182: 0.4 | AA182: 0.2 | AB182: 0 | AC182: 0.005924125622 | AD182: 0.8184027646 | AE182: 0.8243268902
A183: 10063 | B183: 2.5 | C183: 0.2 | D183: 3 | E183: 0.01765127696 | F183: 0.6318605549 | X183: 182 | Y183: 356751 | Z183: 0.4 | AA183: 0.2 | AB183: 3 | AC183: 0.02012683705 | AD183: 0.9150495576 | AE183: 0.9351763946
A184: 10063 | B184: 2.5 | C184: 0.2 | D184: 6 | E184: 0.02611837388 | F184: 0.7168073253 | X184: 183 | Y184: 356751 | Z184: 0.4 | AA184: 0.2 | AB184: 6 | AC184: 0.03227888961 | AD184: 0.9336194129 | AE184: 0.9658983025
A185: 10063 | B185: 2.5 | C185: 0.2 | D185: 12 | E185: 0.03066909372 | F185: 0.8080975233 | X185: 184 | Y185: 356751 | Z185: 0.4 | AA185: 0.2 | AB185: 12 | AC185: 0.04587399841 | AD185: 0.9408346941 | AE185: 0.9867086925
A186: 10063 | B186: 2.5 | C186: 0.2 | D186: 24 | E186: 0.03072425396 | F186: 0.8833636715 | X186: 185 | Y186: 356751 | Z186: 0.4 | AA186: 0.2 | AB186: 24 | AC186: 0.05407663388 | AD186: 0.9436828314 | AE186: 0.9977594653
A187: 10063 | B187: 2.5 | C187: 0.5 | D187: 0 | E187: 0.002785592145 | F187: 0.7148491367 | X187: 186 | Y187: 356751 | Z187: 0.4 | AA187: 0.5 | AB187: 0 | AC187: 0.005924125622 | AD187: 0.969012266 | AE187: 0.9749363916
A188: 10063 | B188: 2.5 | C188: 0.5 | D188: 3 | E188: 0.01588614926 | F188: 0.8123172817 | X188: 187 | Y188: 356751 | Z188: 0.4 | AA188: 0.5 | AB188: 3 | AC188: 0.01864580564 | AD188: 0.9753161432 | AE188: 0.9939619489
A189: 10063 | B189: 2.5 | C189: 0.5 | D189: 6 | E189: 0.0246566275 | F189: 0.8511225109 | X189: 188 | Y189: 356751 | Z189: 0.4 | AA189: 0.5 | AB189: 6 | AC189: 0.02992442942 | AD189: 0.9676071849 | AE189: 0.9975316143
A190: 10063 | B190: 2.5 | C190: 0.5 | D190: 12 | E190: 0.02989685035 | F190: 0.8906172431 | X190: 189 | Y190: 356751 | Z190: 0.4 | AA190: 0.5 | AB190: 12 | AC190: 0.0438613147 | AD190: 0.9558728592 | AE190: 0.9997341739
A191: 10063 | B191: 2.5 | C191: 0.5 | D191: 24 | E191: 0.031193116 | F191: 0.9175630206 | X191: 190 | Y191: 356751 | Z191: 0.4 | AA191: 0.5 | AB191: 24 | AC191: 0.05369688224 | AD191: 0.9461891923 | AE191: 0.9998860745
A192: 10063 | B192: 2.5 | C192: 1 | D192: 0 | E192: 0.002785592145 | F192: 0.8522532958 | X192: 191 | Y192: 356751 | Z192: 0.4 | AA192: 1 | AB192: 0 | AC192: 0.005924125622 | AD192: 0.9908100103 | AE192: 0.9967341359
A193: 10063 | B193: 2.5 | C193: 1 | D193: 3 | E193: 0.01530696674 | F193: 0.8946715208 | X193: 192 | Y193: 356751 | Z193: 0.4 | AA193: 1 | AB193: 3 | AC193: 0.01819010367 | AD193: 0.9816200205 | AE193: 0.9998101242
A194: 10063 | B194: 2.5 | C194: 1 | D194: 6 | E194: 0.02402228474 | F194: 0.9082409399 | X194: 193 | Y194: =INDIRECT("A"&$W$2+$X194) -> 356751 | Z194: 0.4 | AA194: =INDIRECT("C"&$W$2+$X194) -> 1 | AB194: =INDIRECT("D"&$W$2+$X194) -> 6 | AC194: =INDIRECT("E"&$W$2+$X194) -> 0.02908897581 | AD194: 0.9707970987 | AE194: 0.9998860745
A195: 10063 | B195: 2.5 | C195: 1 | D195: 12 | E195: 0.02953830879 | F195: 0.9195487892 | X195: 194 | Y195: 356751 | Z195: =1/INDIRECT("B"&$W$2+$X195) -> 0.4 | AA195: 1 | AB195: 12 | AC195: 0.04306383625 | AD195: =INDIRECT("F"&$W$2+$X195) -> 0.9568222383 | AE195: =AD195+AC195 -> 0.9998860745
A196: 10063 | B196: 2.5 | C196: 1 | D196: 24 | E196: 0.03124827624 | F196: 0.9254785151 | X196: =X195+1 -> 195 | Y196: 356751 | Z196: 0.4 | AA196: 1 | AB196: 24 | AC196: 0.05343105609 | AD196: 0.9464550184 | AE196: 0.9998860745
A197: 10063 | B197: 2.5 | C197: 2 | D197: 0 | E197: 0.002785592145 | F197: 0.9356831596 | X197: 196 | Y197: 356751 | Z197: 0.4 | AA197: 2 | AB197: 0 | AC197: 0.005924125622 | AD197: 0.9917973645 | AE197: 0.9977214901
A198: 10063 | B198: 2.5 | C198: 2 | D198: 3 | E198: 0.01503116554 | F198: 0.9379998897 | X198: 197 | Y198: 356751 | Z198: 0.4 | AA198: 2 | AB198: 3 | AC198: 0.01800022785 | AD198: 0.9818858467 | AE198: 0.9998860745
A199: 10063 | B199: 2.5 | C199: 2 | D199: 6 | E199: 0.02360858293 | F199: 0.9320425837 | X199: 198 | Y199: 356751 | Z199: 0.4 | AA199: 2 | AB199: 6 | AC199: 0.02863327384 | AD199: 0.9712528007 | AE199: 0.9998860745
A200: 10063 | B200: 2.5 | C200: 2 | D200: 12 | E200: 0.02937282807 | F200: 0.9279055657 | X200: 199 | Y200: 356751 | Z200: 0.4 | AA200: 2 | AB200: 12 | AC200: 0.04260813428 | AD200: 0.9572779402 | AE200: 0.9998860745
... 4300 more rows

Sheet Capture-Flow (hidden)
A1: STATION NUMBER | B1: STATION | C1: TIME | D1: DESINT | E1: CONFIG | F1: CAP | W1: Station Identifier | Y1: Station | Z1: Time of Concentration, min | AA1: Dgn Intensity, in/hr | AB1: Configuration | AC1: %Cap | AF1: Configuration | AG1: Online | AJ1: Interpolation | AS1: StationId | AT1: Closest ASOS Gage | AV1: Closest ASOS Gage | AX1: ASOS GAGE NAME | AY1: ASOS GAGE NUMBER
A2: =VLOOKUP(B2,$AX$2:$AY$41,2,FALSE) -> 1 | B2: KATL | C2: 5 | D2: 0 | E2: Offline | F2: 0 | W2: =MATCH(AV2,'Capture-Flow'!A2:A57201,0) -> 47191 | X2: 1 | Y2: =INDIRECT("B"&$W$2+$X2) -> KPDX | Z2: =INDIRECT("C"&$W$2+$X2) -> 5 | AA2: =INDIRECT("D"&$W$2+$X2) -> 0 | AB2: =INDIRECT("E"&$W$2+$X2) -> Offline | AC2: =INDIRECT("F"&$W$2+$X2) -> 0 | AF2: Time of Concentration, min | AG2: 15 | AJ2: Row Number | AK2: Design Int. | AL2: % Capture | AS2: 14064 | AT2: KBNA | AV2: =VLOOKUP(VLOOKUP('Project Location'!P14,'Capture-Flow'!AS2:AT345,2,FALSE),AX2:AY41,2,FALSE) -> 34 | AX2: KATL | AY2: 1
A3: =VLOOKUP(B3,$AX$2:$AY$41,2,FALSE) -> 1 | B3: KATL | C3: 5 | D3: 0.06 | E3: Offline | F3: 0.22871519 | W3: Online/offline | X3: =X2+1 -> 2 | Y3: =INDIRECT("B"&$W$2+$X3) -> KPDX | Z3: =INDIRECT("C"&$W$2+$X3) -> 5 | AA3: =INDIRECT("D"&$W$2+$X3) -> 0.06 | AB3: =INDIRECT("E"&$W$2+$X3) -> Offline | AC3: =INDIRECT("F"&$W$2+$X3) -> 0.4160713483 | AJ3: =IF('Project Design'!B55<MIN('Capture-Flow'!AF5:AF298),(MATCH(MIN('Capture-Flow'!AF5:AF298),AF5:AF298)),IF('Project Design'!B55>MAX('Capture-Flow'!AF5:AF298),(MATCH(MAX('Capture-Flow'!AF5:AF298),AF5:AF298)),(MATCH('Project Design'!B55,AF5:AF298)))) -> 5 | AK3: =INDEX(AF5:AF298,AJ3) -> 0.14 | AL3: =VLOOKUP(AK3,AF5:AG276,2,FALSE) -> 0.7128993126 | AS3: 10831 | AT3: KATL | AX3: KAUS | AY3: 2
A4: 1 | B4: KATL | C4: 5 | D4: 0.18 | E4: Offline | F4: 0.5371561423 | W4: ='Project Design'!B42 -> Online | X4: =X3+1 -> 3 | Y4: =INDIRECT("B"&$W$2+$X4) -> KPDX | Z4: 5 | AA4: 0.18 | AB4: Offline | AC4: 0.8818686256 | AF4: Row Labels | AG4: Sum of %Cap | AJ4: =AJ3+1 -> 6 | AK4: =INDEX(AF5:AF298,AJ4) -> 0.18 | AL4: =VLOOKUP(AK4,AF5:AG276,2,FALSE) -> 0.8041964326 | AS4: 10063 | AT4: KBNA | AX4: KBFI | AY4: 3
A5: 1 | B5: KATL | C5: 5 | D5: 0.3 | E5: Offline | F5: 0.6584757412 | X5: 4 | Y5: KPDX | Z5: 5 | AA5: 0.3 | AB5: Offline | AC5: 0.9448712765 | AF5: 0 | AG5: 0 | AN5: =IF(AF5="Grand Total","",IF(AF5="","",AF5)) -> 0 | AO5: =IF(AF5="Grand Total","",IF(AF5="","",AG5)) -> 0 | AS5: 14209 | AT5: KATL | AX5: KBHM | AY5: 4
A6: 1 | B6: KATL | C6: 5 | D6: 0.42 | E6: Offline | F6: 0.7260169362 | W6: Tc | X6: 5 | Y6: KPDX | Z6: 5 | AA6: 0.42 | AB6: Offline | AC6: 0.9641348789 | AF6: 0.02 | AG6: 0 | AJ6: Capture | AN6: =IF(AF6="Grand Total","",IF(AF6="","",AF6)) -> 0.02 | AO6: =IF(AF6="Grand Total","",IF(AF6="","",AG6)) -> 0 | AS6: 12124 | AT6: KATL | AX6: KBIL | AY6: 5
A7: 1 | B7: KATL | C7: 5 | D7: 0.54 | E7: Offline | F7: 0.7709284369 | W7: ='Project Design'!B43 -> 15 | X7: 6 | Y7: KPDX | Z7: 5 | AA7: 0.54 | AB7: Offline | AC7: 0.9735139507 | AF7: 0.06 | AG7: 0.290447949 | AJ7: =IF(AK3=MAX(AF5:AF298),AL3,(AL4-AL3)/(AK4-AK3)*('Project Design'!B55-'Capture-Flow'!AK3)+'Capture-Flow'!AL3) -> 0.8014055122 | AN7: 0.06 | AO7: 0.290447949 | AS7: 15550 | AT7: KATL | AX7: KBIS | AY7: 6
A8: 1 | B8: KATL | C8: 5 | D8: 0.66 | E8: Offline | F8: 0.8047244896 | X8: 7 | Y8: KPDX | Z8: 5 | AA8: 0.66 | AB8: Offline | AC8: 0.9790852316 | AF8: 0.1 | AG8: 0.5558026688 | AN8: 0.1 | AO8: 0.5558026688 | AS8: 10140 | AT8: KBHM | AX8: KBNA | AY8: 7
A9: 1 | B9: KATL | C9: 5 | D9: 0.78 | E9: Offline | F9: 0.8314949005 | X9: 8 | Y9: KPDX | Z9: 5 | AA9: 0.78 | AB9: Offline | AC9: 0.9827133037 | AF9: 0.14 | AG9: 0.7128993126 | AN9: 0.14 | AO9: 0.7128993126 | AS9: 15478 | AT9: KNEW | AX9: KBOI | AY9: 8
A10: 1 | B10: KATL | C10: 5 | D10: 0.9 | E10: Offline | F10: 0.8532845724 | X10: 9 | Y10: KPDX | Z10: 5 | AA10: 0.9 | AB10: Offline | AC10: 0.9851956688 | AF10: 0.18 | AG10: 0.8041964326 | AN10: 0.18 | AO10: 0.8041964326 | AS10: 24645 | AT10: KLAS | AX10: KBOS | AY10: 9
A11: 1 | B11: KATL | C11: 5 | D11: 1.02 | E11: Offline | F11: 0.8712050503 | X11: 10 | Y11: KPDX | Z11: 5 | AA11: 1.02 | AB11: Offline | AC11: 0.987015321 | AF11: 0.22 | AG11: 0.8609201599 | AN11: 0.22 | AO11: 0.8609201599 | AS11: 29439 | AT11: KPHX | AX11: KBUF | AY11: 10
A12: 1 | B12: KATL | C12: 5 | D12: 1.14 | E12: Offline | F12: 0.8861896923 | X12: 11 | Y12: KPDX | Z12: 5 | AA12: 1.14 | AB12: Offline | AC12: 0.9884643034 | AF12: 0.26 | AG12: 0.8935391113 | AN12: 0.26 | AO12: 0.8935391113 | AS12: 20487 | AT12: KPHX | AX12: KCHS | AY12: 11
A13: 1 | B13: KATL | C13: 5 | D13: 1.26 | E13: Offline | F13: 0.8990360955 | X13: 12 | Y13: KPDX | Z13: 5 | AA13: 1.26 | AB13: Offline | AC13: 0.9895875455 | AF13: 0.3 | AG13: 0.9152401492 | AN13: 0.3 | AO13: 0.9152401492 | AS13: 26323 | AT13: KPHX | AX13: KCOU | AY13: 12
A14: 1 | B14: KATL | C14: 5 | D14: 1.38 | E14: Offline | F14: 0.9100921479 | X14: 13 | Y14: KPDX | Z14: 5 | AA14: 1.38 | AB14: Offline | AC14: 0.9904412095 | AF14: 0.34 | AG14: 0.9301568046 | AN14: 0.34 | AO14: 0.9301568046 | AS14: 29660 | AT14: KPHX | AX14: KCRQ | AY14: 13
A15: 1 | B15: KATL | C15: 5 | D15: 1.5 | E15: Offline | F15: 0.9196293719 | X15: 14 | Y15: KPDX | Z15: 5 | AA15: 1.5 | AB15: Offline | AC15: 0.9911825493 | AF15: 0.38 | AG15: 0.9428943703 | AN15: 0.38 | AO15: 0.9428943703 | AS15: 26481 | AT15: KPHX | AX15: KCRW | AY15: 14
A16: 1 | B16: KATL | C16: 5 | D16: 1.62 | E16: Offline | F16: 0.9279362601 | X16: 15 | Y16: KPDX | Z16: 5 | AA16: 1.62 | AB16: Offline | AC16: 0.9918227973 | AF16: 0.42 | AG16: 0.9503077683 | AN16: 0.42 | AO16: 0.9503077683 | AS16: 28820 | AT16: KPHX | AX16: KDAL | AY16: 15
A17: 1 | B17: KATL | C17: 5 | D17: 1.74 | E17: Offline | F17: 0.9352928199 | X17: 16 | Y17: KPDX | Z17: 5 | AA17: 1.74 | AB17: Offline | AC17: 0.9923844184 | AF17: 0.46 | AG17: 0.9564856 | AN17: 0.46 | AO17: 0.9564856 | AS17: 32356 | AT17: KLIT | AX17: KDCA | AY17: 16
A18: 1 | B18: KATL | C18: 5 | D18: 1.86 | E18: Offline | F18: 0.9417584469 | X18: 17 | Y18: KPDX | Z18: 5 | AA18: 1.86 | AB18: Offline | AC18: 0.9929235746 | AF18: 0.5 | AG18: 0.9605292717 | AN18: 0.5 | AO18: 0.9605292717 | AS18: 32794 | AT18: KLIT | AX18: KDEN | AY18: 17
A19: 1 | B19: KATL | C19: 5 | D19: 1.98 | E19: Offline | F19: 0.9473925365 | X19: 18 | Y19: KPDX | Z19: 5 | AA19: 1.98 | AB19: Offline | AC19: 0.9934290336 | AF19: 0.54 | AG19: 0.9654940019 | AN19: 0.54 | AO19: 0.9654940019 | AS19: 30458 | AT19: KLIT | AX19: KDLS | AY19: 18
A20: 1 | B20: KATL | C20: 5 | D20: 2.1 | E20: Offline | F20: 0.9524581262 | X20: 19 | Y20: KPDX | Z20: 5 | AA20: 2.1 | AB20: Offline | AC20: 0.9938446331 | AF20: 0.58 | AG20: 0.9689535876 | AN20: 0.58 | AO20: 0.9689535876 | AS20: 32574 | AT20: KLIT | AX20: KHJO | AY20: 19
A21: 1 | B21: KATL | C21: 5 | D21: 2.22 | E21: Offline | F21: 0.9570315814 | X21: 20 | Y21: KPDX | Z21: 5 | AA21: 2.22 | AB21: Offline | AC21: 0.9942040706 | AF21: 0.62 | AG21: 0.9719863414 | AN21: 0.62 | AO21: 0.9719863414 | AS21: 34248 | AT21: KLIT | AX21: KLAS | AY21: 20
A22: 1 | B22: KATL | C22: 5 | D22: 2.34 | E22: Offline | F22: 0.9611298726 | X22: 21 | Y22: KPDX | Z22: 5 | AA22: 2.34 | AB22: Offline | AC22: 0.9945410433 | AF22: 0.66 | AG22: 0.9745024037 | AN22: 0.66 | AO22: 0.9745024037 | AS22: 36920 | AT22: KLIT | AX22: KLAX | AY22: 21
A23: 1 | B23: KATL | C23: 5 | D23: 2.46 | E23: Offline | F23: 0.9648208801 | X23: 22 | Y23: KPDX | Z23: 5 | AA23: 2.46 | AB23: Offline | AC23: 0.9948218538 | AF23: 0.7 | AG23: 0.976030013 | AN23: 0.7 | AO23: 0.976030013 | AS23: 32810 | AT23: KLIT | AX23: KLBB | AY23: 22
A24: 1 | B24: KATL | C24: 5 | D24: 2.58 | E24: Offline | F24: 0.9680961189 | X24: 23 | Y24: KPDX | Z24: 5 | AA24: 2.58 | AB24: Offline | AC24: 0.9950465022 | AF24: 0.74 | AG24: 0.9768387474 | AN24: 0.74 | AO24: 0.9768387474 | AS24: 30220 | AT24: KLIT | AX24: KLGA | AY24: 23
A25: 1 | B25: KATL | C25: 5 | D25: 2.7 | E25: Offline | F25: 0.9710404399 | X25: 24 | Y25: KPDX | Z25: 5 | AA25: 2.7 | AB25: Offline | AC25: 0.9952486858 | AF25: 0.78 | AG25: 0.9772655794 | AN25: 0.78 | AO25: 0.9772655794 | AS25: 35754 | AT25: KLIT | AX25: KLIT | AY25: 24
A26: 1 | B26: KATL | C26: 5 | D26: 2.82 | E26: Offline | F26: 0.9737386936 | X26: 25 | Y26: KPDX | Z26: 5 | AA26: 2.82 | AB26: Offline | AC26: 0.9954284045 | AF26: 0.82 | AG26: 0.9777148762 | AN26: 0.82 | AO26: 0.9777148762 | AS26: 42910 | AT26: KRDD | AX26: KLNK | AY26: 25
A27: 1 | B27: KATL | C27: 5 | D27: 2.94 | E27: Offline | F27: 0.9762078504 | X27: 26 | Y27: KPDX | Z27: 5 | AA27: 2.94 | AB27: Offline | AC27: 0.9955856584 | AF27: 0.86 | AG27: 0.979601923 | AN27: 0.86 | AO27: 0.979601923 | AS27: 40161 | AT27: KRDD | AX27: KLVK | AY27: 26
A28: 1 | B28: KATL | C28: 5 | D28: 3.06 | E28: Offline | F28: 0.9784563952 | X28: 27 | Y28: KPDX | Z28: 5 | AA28: 3.06 | AB28: Offline | AC28: 0.9957316799 | AF28: 0.9 | AG28: 0.979601923 | AN28: 0.9 | AO28: 0.979601923 | AS28: 48873 | AT28: KRDD | AX28: KLXV | AY28: 27
A29: 1 | B29: KATL | C29: 5 | D29: 3.18 | E29: Offline | F29: 0.9804928131 | X29: 28 | Y29: KPDX | Z29: 5 | AA29: 3.18 | AB29: Offline | AC29: 0.9958440041 | AF29: 0.94 | AG29: 0.9806353057 | AN29: 0.94 | AO29: 0.9806353057 | AS29: 47769 | AT29: KSFO | AX29: KMIA | AY29: 28
A30: 1 | B30: KATL | C30: 10 | D30: 0 | E30: Offline | F30: 0 | X30: 29 | Y30: KPDX | Z30: 10 | AA30: 0 | AB30: Offline | AC30: 0 | AF30: 0.98 | AG30: 0.9822527744 | AN30: 0.98 | AO30: 0.9822527744 | AS30: 43257 | AT30: KHJO | AX30: KMSO | AY30: 29
A31: 1 | B31: KATL | C31: 10 | D31: 0.03 | E31: Offline | F31: 0.1446196141 | X31: 30 | Y31: KPDX | Z31: 10 | AA31: 0.03 | AB31: Offline | AC31: 0.3133396235 | AF31: 1.02 | AG31: 0.9822527744 | AN31: 1.02 | AO31: 0.9822527744 | AS31: 45114 | AT31: KLAX | AX31: KNEW | AY31: 30
A32: 1 | B32: KATL | C32: 10 | D32: 0.09 | E32: Offline | F32: 0.3709335279 | X32: 31 | Y32: KPDX | Z32: 10 | AA32: 0.09 | AB32: Offline | AC32: 0.7291638586 | AF32: 1.06 | AG32: 0.9828368603 | AN32: 1.06 | AO32: 0.9828368603 | AS32: 47740 | AT32: KCRQ | AX32: KONT | AY32: 31
A33: 1 | B33: KATL | C33: 10 | D33: 0.15 | E33: Offline | F33: 0.5032497836 | X33: 32 | Y33: KPDX | Z33: 10 | AA33: 0.15 | AB33: Offline | AC33: 0.8683672552 | AF33: 1.1 | AG33: 0.9840499618 | AN33: 1.1 | AO33: 0.9840499618 | AS33: 44232 | AT33: KHJO | AX33: KORD | AY33: 32
A34: 1 | B34: KATL | C34: 10 | D34: 0.21 | E34: Offline | F34: 0.5886266058 | X34: 33 | Y34: KPDX | Z34: 10 | AA34: 0.21 | AB34: Offline | AC34: 0.9213730512 | AF34: 1.14 | AG34: 0.9840499618 | AN34: 1.14 | AO34: 0.9840499618 | AS34: 53477 | AT34: KDEN | AX34: KORH | AY34: 33
A35: 1 | B35: KATL | C35: 10 | D35: 0.27 | E35: Offline | F35: 0.6483869873 | X35: 34 | Y35: KPDX | Z35: 10 | AA35: 0.27 | AB35: Offline | AC35: 0.946432583 | AF35: 1.18 | AG35: 0.9847014422 | AN35: 1.18 | AO35: 0.9847014422 | AS35: 53488 | AT35: KLXV | AX35: KPDX | AY35: 34
A36: 1 | B36: KATL | C36: 10 | D36: 0.33 | E36: Offline | F36: 0.6926281671 | X36: 35 | Y36: KPDX | Z36: 10 | AA36: 0.33 | AB36: Offline | AC36: 0.9601922991 | AF36: 1.22 | AG36: 0.9847014422 | AN36: 1.22 | AO36: 0.9847014422 | AS36: 50304 | AT36: KDEN | AX36: KPHX | AY36: 35
A37: 1 | B37: KATL | C37: 10 | D37: 0.39 | E37: Offline | F37: 0.7271878765 | X37: 36 | Y37: KPDX | Z37: 10 | AA37: 0.39 | AB37: Offline | AC37: 0.9685155232 | AF37: 1.26 | AG37: 0.9853978524 | AN37: 1.26 | AO37: 0.9853978524 | AS37: 51179 | AT37: KDEN | AX37: KPIR | AY37: 36
A38: 1 | B38: KATL | C38: 10 | D38: 0.45 | E38: Offline | F38: 0.7552989292 | X38: 37 | Y38: KPDX | Z38: 10 | AA38: 0.45 | AB38: Offline | AC38: 0.9740418745 | AF38: 1.3 | AG38: 0.9853978524 | AN38: 1.3 | AO38: 0.9853978524 | AS38: 57337 | AT38: KLXV | AX38: KRDD | AY38: 37
A39: 1 | B39: KATL | C39: 10 | D39: 0.51 | E39: Offline | F39: 0.7788195564 | X39: 38 | Y39: KPDX | Z39: 10 | AA39: 0.51 | AB39: Offline | AC39: 0.9778272004 | AF39: 1.34 | AG39: 0.9853978524 | AN39: 1.34 | AO39: 0.9853978524 | AS39: 65445 | AT39: KLGA | AX39: KSEA | AY39: 38
A40: 1 | B40: KATL | C40: 10 | D40: 0.57 | E40: Offline | F40: 0.7989206985 | X40: 39 | Y40: KPDX | Z40: 10 | AA40: 0.57 | AB40: Offline | AC40: 0.9807027003 | AF40: 1.38 | AG40: 0.986161657 | AN40: 1.38 | AO40: 0.986161657 | AS40: 63456 | AT40: KORH | AX40: KSFO | AY40: 39
A41: 1 | B41: KATL | C41: 10 | D41: 0.63 | E41: Offline | F41: 0.8164508629 | X41: 40 | Y41: KPDX | Z41: 10 | AA41: 0.63 | AB41: Offline | AC41: 0.9829828818 | AF41: 1.42 | AG41: 0.986161657 | AN41: 1.42 | AO41: 0.986161657 | AS41: 60806 | AT41: KLGA | AX41: KSLC | AY41: 40
A42: 1 | B42: KATL | C42: 10 | D42: 0.69 | E42: Offline | F42: 0.8317324826 | X42: 41 | Y42: KPDX | Z42: 10 | AA42: 0.69 | AB42: Offline | AC42: 0.9847576043 | AF42: 1.46 | AG42: 0.986161657 | AN42: 1.46 | AO42: 0.986161657 | AS42: 79595 | AT42: KDCA
A43: 1 | B43: KATL | C43: 10 | D43: 0.75 | E43: Offline | F43: 0.8452152663 | X43: 42 | Y43: KPDX | Z43: 10 | AA43: 0.75 | AB43: Offline | AC43: 0.9861054949 | AF43: 1.5 | AG43: 0.986161657 | AN43: 1.5 | AO43: 0.986161657 | AS43: 73570 | AT43: KDCA | AY43: These ASOS gages not used due to proximity of other gages to NCDC gage
A44: 1 | B44: KATL | C44: 10 | D44: 0.81 | E44: Offline | F44: 0.8572216471 | X44: 43 | Y44: KPDX | Z44: 10 | AA44: 0.81 | AB44: Offline | AC44: 0.9871501101 | AF44: 1.54 | AG44: 0.987015321 | AN44: 1.54 | AO44: 0.987015321 | AS44: 80211 | AT44: KATL
A45: 1 | B45: KATL | C45: 10 | D45: 0.87 | E45: Offline | F45: 0.8678534458 | X45: 44 | Y45: KPDX | Z45: 10 | AA45: 0.87 | AB45: Offline | AC45: 0.9879925417 | AF45: 1.58 | AG45: 0.987015321 | AN45: 1.58 | AO45: 0.987015321 | AS45: 80975 | AT45: KATL
A46: 1 | B46: KATL | C46: 10 | D46: 0.93 | E46: Offline | F46: 0.8774246101 | X46: 45 | Y46: KPDX | Z46: 10 | AA46: 0.93 | AB46: Offline | AC46: 0.9887114166 | AF46: 1.62 | AG46: 0.987015321 | AN46: 1.62 | AO46: 0.987015321 | AS46: 82158 | AT46: KMIA
A47: 1 | B47: KATL | C47: 10 | D47: 0.99 | E47: Offline | F47: 0.8861896923 | X47: 46 | Y47: KPDX | Z47: 10 | AA47: 0.99 | AB47: Offline | AC47: 0.9893853619 | AF47: 1.66 | AG47: 0.9888574381 | AN47: 1.66 | AO47: 0.9888574381 | AS47: 85612 | AT47: KMIA
A48: 1 | B48: KATL | C48: 10 | D48: 1.05 | E48: Offline | F48: 0.8942505133 | X48: 47 | Y48: KPDX | Z48: 10 | AA48: 1.05 | AB48: Offline | AC48: 0.9900256099 | AF48: 1.7 | AG48: 0.9898009615 | AN48: 1.7 | AO48: 0.9898009615 | AS48: 83186 | AT48: KMIA
A49: 1 | B49: KATL | C49: 10 | D49: 1.11 | E49: Offline | F49: 0.9017343493 | X49: 48 | Y49: KPDX | Z49: 10 | AA49: 1.11 | AB49: Offline | AC49: 0.9906096958 | AF49: 1.74 | AG49: 0.9907669497 | AN49: 1.74 | AO49: 0.9907669497 | AS49: 85663 | AT49: KMIA
A50: 1 | B50: KATL | C50: 10 | D50: 1.17 | E50: Offline | F50: 0.9085308942 | X50: 49 | Y50: KPDX | Z50: 10 | AA50: 1.17 | AB50: Offline | AC50: 0.9911263872 | AF50: 1.78 | AG50: 0.9907669497 | AN50: 1.78 | AO50: 0.9907669497 | AS50: 84570 | AT50: KMIA
A51: 1 | B51: KATL | C51: 10 | D51: 1.23 | E51: Offline | F51: 0.914640148 | X51: 50 | Y51: KPDX | Z51: 10 | AA51: 1.23 | AB51: Offline | AC51: 0.9916093813 | AF51: 1.82 | AG51: 0.9907669497 | AN51: 1.82 | AO51: 0.9907669497 | AS51: 92485 | AT51: KATL
A52: 1 | B52: KATL | C52: 10 | D52: 1.29 | E52: Offline | F52: 0.9201893869 | X52: 51 | Y52: KPDX | Z52: 10 | AA52: 1.29 | AB52: Offline | AC52: 0.9920362133 | AF52: 1.86 | AG52: 0.9918003325 | AN52: 1.86 | AO52: 0.9918003325 | AS52: 90451 | AT52: KATL
A53: 1 | B53: KATL | C53: 10 | D53: 1.35 | E53: Offline | F53: 0.9252464914 | X53: 52 | Y53: KPDX | Z53: 10 | AA53: 1.35 | AB53: Offline | AC53: 0.9924068832 | AF53: 1.9 | AG53: 0.9918003325 | AN53: 1.9 | AO53: 0.9918003325 | AS53: 91619 | AT53: KATL
A54: 1 | B54: KATL | C54: 10 | D54: 1.41 | E54: Offline | F54: 0.9299302527 | X54: 53 | Y54: KPDX | Z54: 10 | AA54: 1.41 | AB54: Offline | AC54: 0.9927550883 | AF54: 1.94 | AG54: 0.9928786449 | AN54: 1.94 | AO54: 0.9928786449 | AS54: 92166 | AT54: KATL
A55: 1 | B55: KATL | C55: 10 | D55: 1.47 | E55: Offline | F55: 0.9342915811 | X55: 54 | Y55: KPDX | Z55: 10 | AA55: 1.47 | AB55: Offline | AC55: 0.9930808285 | AF55: 1.98 | AG55: 0.9928786449 | AN55: 1.98 | AO55: 0.9928786449 | AS55: 95443 | AT55: KATL
A56: 1 | B56: KATL | C56: 10 | D56: 1.53 | E56: Offline | F56: 0.9383813871 | X56: 55 | Y56: KPDX | Z56: 10 | AA56: 1.53 | AB56: Offline | AC56: 0.9933841039 | AF56: 2.02 | AG56: 0.9928786449 | AN56: 2.02 | AO56: 0.9928786449 | AS56: 90495 | AT56: KCHS
A57: 1 | B57: KATL | C57: 10 | D57: 1.59 | E57: Offline | F57: 0.9422675514 | X57: 56 | Y57: KPDX | Z57: 10 | AA57: 1.59 | AB57: Offline | AC57: 0.9936761468 | AF57: 2.06 | AG57: 0.9928786449 | AN57: 2.06 | AO57: 0.9928786449 | AS57: 93028 | AT57: KATL
A58: 1 | B58: KATL | C58: 10 | D58: 1.65 | E58: Offline | F58: 0.9459585589 | X58: 57 | Y58: KPDX | Z58: 10 | AA58: 1.65 | AB58: Offline | AC58: 0.9939457249 | AF58: 2.1 | AG58: 0.9928786449 | AN58: 2.1 | AO58: 0.9928786449 | AS58: 96879 | AT58: KATL
A59: 1 | B59: KATL | C59: 10 | D59: 1.71 | E59: Offline | F59: 0.9494119843 | X59: 58 | Y59: KPDX | Z59: 10 | AA59: 1.71 | AB59: Offline | AC59: 0.9941816058 | AF59: 2.14 | AG59: 0.9940692816 | AN59: 2.14 | AO59: 0.9940692816 | AS59: 97847 | AT59: KCHS
A60: 1 | B60: KATL | C60: 10 | D60: 1.77 | E60: Offline | F60: 0.9525854023 | X60: 59 | Y60: KPDX | Z60: 10 | AA60: 1.77 | AB60: Offline | AC60: 0.9944062542 | AF60: 2.18 | AG60: 0.9940692816 | AN60: 2.18 | AO60: 0.9940692816 | AS60: 101079 | AT60: KMSO
A61: 1 | B61: KATL | C61: 10 | D61: 1.83 | E61: Offline | F61: 0.9555382083 | X61: 60 | Y61: KPDX | Z61: 10 | AA61: 1.83 | AB61: Offline | AC61: 0.9946196702 | AF61: 2.22 | AG61: 0.9940692816 | AN61: 2.22 | AO61: 0.9940692816 | AS61: 105241 | AT61: KBOI
A62: 1 | B62: KATL | C62: 10 | D62: 1.89 | E62: Offline | F62: 0.9583297979 | X62: 61 | Y62: KPDX | Z62: 10 | AA62: 1.89 | AB62: Offline | AC62: 0.9948106214 | AF62: 2.26 | AG62: 0.9940692816 | AN62: 2.26 | AO62: 0.9940692816 | AS62: 103143 | AT62: KMSO
A63: 1 | B63: KATL | C63: 10 | D63: 1.95 | E63: Offline | F63: 0.9609856263 | X63: 62 | Y63: KPDX | Z63: 10 | AA63: 1.95 | AB63: Offline | AC63: 0.9949903401 | AF63: 2.3 | AG63: 0.9940692816 | AN63: 2.3 | AO63: 0.9940692816 | AS63: 107327 | AT63: KBOI
A64: 1 | B64: KATL | C64: 10 | D64: 2.01 | E64: Offline | F64: 0.9635056935 | X64: 63 | Y64: KPDX | Z64: 10 | AA64: 2.01 | AB64: Offline | AC64: 0.9951588264 | AF64: 2.34 | AG64: 0.9940692816 | AN64: 2.34 | AO64: 0.9940692816 | AS64: 101022 | AT64: KBOI
A65: 1 | B65: KATL | C65: 10 | D65: 2.07 | E65: Offline | F65: 0.965839089 | X65: 64 | Y65: KPDX | Z65: 10 | AA65: 2.07 | AB65: Offline | AC65: 0.9953160803 | AF65: 2.38 | AG65: 0.9940692816 | AN65: 2.38 | AO65: 0.9940692816 | AS65: 103811 | AT65: KBOI
A66: 1 | B66: KATL | C66: 10 | D66: 2.13 | E66: Offline | F66: 0.9680027831 | X66: 65 | Y66: KPDX | Z66: 10 | AA66: 2.13 | AB66: Offline | AC66: 0.9954733342 | AF66: 2.42 | AG66: 0.9940692816 | AN66: 2.42 | AO66: 0.9940692816 | AS66: 103677 | AT66: KBOI
A67: =VLOOKUP(B67,$AX$2:$AY$41,2,FALSE) -> 1 | B67: KATL | C67: 10 | D67: 2.19 | E67: Offline | F67: 0.9700052607 | X67: 66 | Y67: =INDIRECT("B"&$W$2+$X67) -> KPDX | Z67: =INDIRECT("C"&$W$2+$X67) -> 10 | AA67: =INDIRECT("D"&$W$2+$X67) -> 2.19 | AB67: =INDIRECT("E"&$W$2+$X67) -> Offline | AC67: =INDIRECT("F"&$W$2+$X67) -> 0.9956305881 | AF67: 2.46 | AG67: 0.9940692816 | AN67: 2.46 | AO67: 0.9940692816 | AS67: 105169 | AT67: KMSO
A68: 1 | B68: KATL | C68: 10 | D68: 2.25 | E68: Offline | F68: 0.971855007 | X68: =X67+1 -> 67 | Y68: KPDX | Z68: 10 | AA68: 2.25 | AB68: Offline | AC68: 0.9957766096 | AF68: 2.5 | AG68: 0.9940692816 | AN68: 2.5 | AO68: 0.9940692816 | AS68: 107211 | AT68: KSLC
A69: 1 | B69: KATL | C69: 10 | D69: 2.31 | E69: Offline | F69: 0.9735435369 | X69: 68 | Y69: KPDX | Z69: 10 | AA69: 2.31 | AB69: Offline | AC69: 0.9959113987 | AF69: 2.54 | AG69: 0.9940692816 | AN69: 2.54 | AO69: 0.9940692816 | AS69: 104456 | AT69: KSLC
A70: 1 | B70: KATL | C70: 10 | D70: 2.37 | E70: Offline | F70: 0.9751132757 | X70: 69 | Y70: KPDX | Z70: 10 | AA70: 2.37 | AB70: Offline | AC70: 0.9960461877 | AF70: 2.58 | AG70: 0.9955070315 | AN70: =IF(AF70="Grand Total","",IF(AF70="","",AF70)) -> 2.58 | AO70: =IF(AF70="Grand Total","",IF(AF70="","",AG70)) -> 0.9955070315 | AS70: 115751 | AT70: KORD
A71: 1 | B71: KATL | C71: 10 | D71: 2.43 | E71: Offline | F71: 0.9766066489 | X71: 70 | Y71: KPDX | Z71: 10 | AA71: 2.43 | AB71: Offline | AC71: 0.9961809768 | AF71: 2.62 | AG71: 0.9955070315 | AN71: 2.62 | AO71: 0.9955070315 | AS71: 111577 | AT71: KORD
A72: 1 | B72: KATL | C72: 10 | D72: 2.49 | E72: Offline | F72: 0.9780066862 | X72: 71 | Y72: KPDX | Z72: 10 | AA72: 2.49 | AB72: Offline | AC72: 0.9963157658 | AF72: 2.66 | AG72: 0.9955070315 | AN72: 2.66 | AO72: 0.9955070315 | AS72: 110082 | AT72: KCOU
A73: 1 | B73: KATL | C73: 10 | D73: 2.55 | E73: Offline | F73: 0.9793049027 | X73: 72 | Y73: KPDX | Z73: 10 | AA73: 2.55 | AB73: Offline | AC73: 0.9964393225 | AF73: 2.7 | AG73: 0.9955070315 | AN73: 2.7 | AO73: 0.9955070315 | AS73: 116711 | AT73: KORD
A74: 1 | B74: KATL | C74: 10 | D74: 2.61 | E74: Offline | F74: 0.9805097833 | X74: 73 | Y74: KPDX | Z74: 10 | AA74: 2.61 | AB74: Offline | AC74: 0.9965516467 | AF74: 2.74 | AG74: 0.9955070315 | AN74: 2.74 | AO74: 0.9955070315 | AS74: 114198 | AT74: KORD
A75: 1 | B75: KATL | C75: 10 | D75: 2.67 | E75: Offline | F75: 0.9816637535 | X75: 74 | Y75: KPDX | Z75: 10 | AA75: 2.67 | AB75: Offline | AC75: 0.9966639709 | AF75: 2.78 | AG75: 0.9955070315 | AN75: 2.78 | AO75: 0.9955070315 | AS75: 118179 | AT75: KCOU
A76: 1 | B76: KATL | C76: 10 | D76: 2.73 | E76: Offline | F76: 0.9827922684 | X76: 75 | Y76: KPDX | Z76: 10 | AA76: 2.73 | AB76: Offline | AC76: 0.9967762951 | AF76: 2.82 | AG76: 0.9955070315 | AN76: 2.82 | AO76: 0.9955070315 | AS76: 116159 | AT76: KORD
A77: 1 | B77: KATL | C77: 10 | D77: 2.79 | E77: Offline | F77: 0.983886843 | X77: 76 | Y77: KPDX | Z77: 10 | AA77: 2.79 | AB77: Offline | AC77: 0.9968886193 | AF77: 2.86 | AG77: 0.9955070315 | AN77: 2.86 | AO77: 0.9955070315 | AS77: 115983 | AT77: KCOU
A78: 1 | B78: KATL | C78: 10 | D78: 2.85 | E78: Offline | F78: 0.9849220222 | X78: 77 | Y78: KPDX | Z78: 10 | AA78: 2.85 | AB78: Offline | AC78: 0.9970009435 | AF78: 2.9 | AG78: 0.9955070315 | AN78: 2.9 | AO78: 0.9955070315 | AS78: 112353 | AT78: KBNA
A79: 1 | B79: KATL | C79: 10 | D79: 2.91 | E79: Offline | F79: 0.9858893207 | X79: 78 | Y79: KPDX | Z79: 10 | AA79: 2.91 | AB79: Offline | AC79: 0.9971132677 | AF79: 2.94 | AG79: 0.9955070315 | AN79: 2.94 | AO79: 0.9955070315 | AS79: 125535 | AT79: KORD
A80: 1 | B80: KATL | C80: 10 | D80: 2.97 | E80: Offline | F80: 0.9868057088 | X80: 79 | Y80: KPDX | Z80: 10 | AA80: 2.97 | AB80: Offline | AC80: 0.9972143595 | AF80: 2.98 | AG80: 0.9955070315 | AN80: 2.98 | AO80: 0.9955070315 | AS80: 128187 | AT80: KORD
A81: 1 | B81: KATL | C81: 10 | D81: 3.03 | E81: Offline | F81: 0.9876627013 | X81: 80 | Y81: KPDX | Z81: 10 | AA81: 3.03 | AB81: Offline | AC81: 0.9973042189 | AF81: 3.02 | AG81: 0.9955070315 | AN81: 3.02 | AO81: 0.9955070315 | AS81: 123037 | AT81: KORD
A82: 1 | B82: KATL | C82: 10 | D82: 3.09 | E82: Offline | F82: 0.9884518133 | X82: 81 | Y82: KPDX | Z82: 10 | AA82: 3.09 | AB82: Offline | AC82: 0.9973940783 | AS82: 120922 | AT82: KORD
A83: 1 | B83: KATL | C83: 15 | D83: 0 | E83: Offline | F83: 0 | X83: 82 | Y83: KPDX | Z83: 15 | AA83: 0 | AB83: Offline | AC83: 0 | AS83: 124259 | AT83: KORD
A84: 1 | B84: KATL | C84: 15 | D84: 0.02 | E84: Offline | F84: 0.1154479271 | X84: 83 | Y84: KPDX | Z84: 15 | AA84: 0.02 | AB84: Offline | AC84: 0.2624342903 | AS84: 120132 | AT84: KORD
A85: 1 | B85: KATL | C85: 15 | D85: 0.06 | E85: Offline | F85: 0.3063705941 | X85: 84 | Y85: KPDX | Z85: 15 | AA85: 0.06 | AB85: Offline | AC85: 0.6420788965 | AS85: 122738 | AT85: KBNA
A86: 1 | B86: KATL | C86: 15 | D86: 0.1 | E86: Offline | F86: 0.4332648871 | X86: 85 | Y86: KPDX | Z86: 15 | AA86: 0.1 | AB86: Offline | AC86: 0.8101608483 | AS86: 126580 | AT86: KBNA
A87: 1 | B87: KATL | C87: 15 | D87: 0.14 | E87: Offline | F87: 0.5216708809 | X87: 86 | Y87: KPDX | Z87: 15 | AA87: 0.14 | AB87: Offline | AC87: 0.8857213461 | AS87: 120482 | AT87: KBNA
A88: 1 | B88: KATL | C88: 15 | D88: 0.18 | E88: Offline | F88: 0.5867089789 | X88: 87 | Y88: KPDX | Z88: 15 | AA88: 0.18 | AB88: Offline | AC88: 0.92368693 | AS88: 136975 | AT88: KLNK
A89: 1 | B89: KATL | C89: 15 | D89: 0.22 | E89: Offline | F89: 0.6366775841 | X89: 88 | Y89: KPDX | Z89: 15 | AA89: 0.22 | AB89: Offline | AC89: 0.9445680011 | AS89: 137602 | AT89: KCOU
A90: 1 | B90: KATL | C90: 15 | D90: 0.26 | E90: Offline | F90: 0.676158637 | X90: 89 | Y90: KPDX | Z90: 15 | AA90: 0.26 | AB90: Offline | AC90: 0.9570584535 | AS90: 138009 | AT90: KORD
A91: 1 | B91: KATL | C91: 15 | D91: 0.3 | E91: Offline | F91: 0.7079097867 | X91: 90 | Y91: KPDX | Z91: 15 | AA91: 0.3 | AB91: Offline | AC91: 0.9652805859 | AS91: 137708 | AT91: KLNK
A92: 1 | B92: KATL | C92: 15 | D92: 0.34 | E92: Offline | F92: 0.7339674513 | X92: 91 | Y92: KPDX | Z92: 15 | AA92: 0.34 | AB92: Offline | AC92: 0.9710203531 | AS92: 132203 | AT92: KCOU
A93: 1 | B93: KATL | C93: 15 | D93: 0.38 | E93: Offline | F93: 0.7560201605 | X93: 92 | Y93: KPDX | Z93: 15 | AA93: 0.38 | AB93: Offline | AC93: 0.9751201869 | AS93: 130608 | AT93: KORD
A94: 1 | B94: KATL | C94: 15 | D94: 0.42 | E94: Offline | F94: 0.7750606683 | X94: 93 | Y94: KPDX | Z94: 15 | AA94: 0.42 | AB94: Offline | AC94: 0.9781417082 | AS94: 131245 | AT94: KLNK
A95: 1 | B95: KATL | C95: 15 | D95: 0.46 | E95: Offline | F95: 0.791827176 | X95: 94 | Y95: KPDX | Z95: 15 | AA95: 0.46 | AB95: Offline | AC95: 0.9805117491 | AS95: 132195 | AT95: KCOU
A96: 1 | B96: KATL | C96: 15 | D96: 0.5 | E96: Offline | F96: 0.8068542434 | X96: 95 | Y96: KPDX | Z96: 15 | AA96: 0.5 | AB96: Offline | AC96: 0.9824324931 | AS96: 138688 | AT96: KCOU
A97: 1 | B97: KATL | C97: 15 | D97: 0.54 | E97: Offline | F97: 0.8203455122 | X97: 96 | Y97: KPDX | Z97: 15 | AA97: 0.54 | AB97: Offline | AC97: 0.9839937997 | AS97: 143153 | AT97: KDEN
A98: 1 | B98: KATL | C98: 15 | D98: 0.58 | E98: Offline | F98: 0.8324791691 | X98: 97 | Y98: KPDX | Z98: 15 | AA98: 0.58 | AB98: Offline | AC98: 0.9852405985 | AS98: 141767 | AT98: KLNK
A99: 1 | B99: KATL | C99: 15 | D99: 0.62 | E99: Offline | F99: 0.843475826 | X99: 98 | Y99: KPDX | Z99: 15 | AA99: 0.62 | AB99: Offline | AC99: 0.9862627488 | AS99: 143810 | AT99: KLNK
A100: 1 | B100: KATL | C100: 15 | D100: 0.66 | E100: Offline | F100: 0.8535051844 | X100: 99 | Y100: KPDX | Z100: 15 | AA100: 0.66 | AB100: Offline | AC100: 0.9871051804 | AS100: 141730 | AT100: KLNK
A101: 1 | B101: KATL | C101: 15 | D101: 0.7 | E101: Offline | F101: 0.8627369457 | X101: 100 | Y101: KPDX | Z101: 15 | AA101: 0.7 | AB101: Offline | AC101: 0.9878240554 | AS101: 144178 | AT101: KLNK
A102: 1 | B102: KATL | C102: 15 | D102: 0.74 | E102: Offline | F102: 0.8713662667 | X102: 101 | Y102: KPDX | Z102: 15 | AA102: 0.74 | AB102: Offline | AC102: 0.9884755358 | AS102: 148167 | AT102: KLNK
A103: 1 | B103: KATL | C103: 15 | D103: 0.78 | E103: Offline | F103: 0.8794440579 | X103: 102 | Y103: KPDX | Z103: 15 | AA103: 0.78 | AB103: Offline | AC103: 0.989093319 | AS103: 142164 | AT103: KLNK
A104: 1 | B104: KATL | C104: 15 | D104: 0.82 | E104: Offline | F104: 0.8869109237 | X104: 103 | Y104: KPDX | Z104: 15 | AA104: 0.82 | AB104: Offline | AC104: 0.9896886373 | AS104: 148830 | AT104: KLNK
A105: 1 | B105: KATL | C105: 15 | D105: 0.86 | E105: Offline | F105: 0.8938092895 | X105: 104 | Y105: KPDX | Z105: 15 | AA105: 0.86 | AB105: Offline | AC105: 0.9902277935 | AS105: 141351 | AT105: KLNK
A106: 1 | B106: KATL | C106: 15 | D106: 0.9 | E106: Offline | F106: 0.9001730955 | X106: 105 | Y106: KPDX | Z106: 15 | AA106: 0.9 | AB106: Offline | AC106: 0.99072202 | AS106: 151631 | AT106: KBNA
A107: 1 | B107: KATL | C107: 15 | D107: 0.94 | E107: Offline | F107: 0.9059684016 | X107: 106 | Y107: KPDX | Z107: 15 | AA107: 0.94 | AB107: Offline | AC107: 0.9911937817 | AS107: 154954 | AT107: KBNA
A108: 1 | B108: KATL | C108: 15 | D108: 0.98 | E108: Offline | F108: 0.9113224838 | X108: 107 | Y108: KPDX | Z108: 15 | AA108: 0.98 | AB108: Offline | AC108: 0.9916093813 | AS108: 154746 | AT108: KBNA
A109: 1 | B109: KATL | C109: 15 | D109: 1.02 | E109: Offline | F109: 0.9163117077 | X109: 108 | Y109: KPDX | Z109: 15 | AA109: 1.02 | AB109: Offline | AC109: 0.9919912836 | AS109: 151080 | AT109: KCRW
A110: 1 | B110: KATL | C110: 15 | D110: 1.06 | E110: Offline | F110: 0.9209360734 | X110: 109 | Y110: KPDX | Z110: 15 | AA110: 1.06 | AB110: Offline | AC110: 0.9923619535 | AS110: 168440 | AT110: KLIT
A111: 1 | B111: KATL | C111: 15 | D111: 1.1 | E111: Offline | F111: 0.9251870959 | X111: 110 | Y111: KPDX | Z111: 15 | AA111: 1.1 | AB111: Offline | AC111: 0.9926989262 | AS111: 169803 | AT111: KLIT
A112: 1 | B112: KATL | C112: 15 | D112: 1.14 | E112: Offline | F112: 0.9290393198 | X112: 111 | Y112: KPDX | Z112: 15 | AA112: 1.14 | AB112: Offline | AC112: 0.993013434 | AS112: 169806 | AT112: KBHM
A113: 1 | B113: KATL | C113: 15 | D113: 1.18 | E113: Offline | F113: 0.9326115363 | X113: 112 | Y113: KPDX | Z113: 15 | AA113: 1.18 | AB113: Offline | AC113: 0.9933167093 | AS113: 165266 | AT113: KNEW
A114: 1 | B114: KATL | C114: 15 | D114: 1.22 | E114: Offline | F114: 0.9360140513 | X114: 113 | Y114: KPDX | Z114: 15 | AA114: 1.22 | AB114: Offline | AC114: 0.9936087523 | AS114: 169357 | AT114: KNEW
A115: 1 | B115: KATL | C115: 15 | D115: 1.26 | E115: Offline | F115: 0.9392553498 | X115: 114 | Y115: KPDX | Z115: 15 | AA115: 1.26 | AB115: Offline | AC115: 0.9938895628 | AS115: 160549 | AT115: KNEW
A116: 1 | B116: KATL | C116: 15 | D116: 1.3 | E116: Offline | F116: 0.9423524021 | X116: 115 | Y116: KPDX | Z116: 15 | AA116: 1.3 | AB116: Offline | AC116: 0.9941591409 | AS116: 165078 | AT116: KNEW
A117: 1 | B117: KATL | C117: 15 | D117: 1.34 | E117: Offline | F117: 0.9453136932 | X117: 116 | Y117: KPDX | Z117: 15 | AA117: 1.34 | AB117: Offline | AC117: 0.9944287191 | AS117: 165021 | AT117: KNEW
A118: 1 | B118: KATL | C118: 15 | D118: 1.38 | E118: Offline | F118: 0.9481392231 | X118: 117 | Y118: KPDX | Z118: 15 | AA118: 1.38 | AB118: Offline | AC118: 0.9946870647 | AS118: 166660 | AT118: KNEW
A119: 1 | B119: KATL | C119: 15 | D119: 1.42 | E119: Offline | F119: 0.950845962 | X119: 118 | Y119: KPDX | Z119: 15 | AA119: 1.42 | AB119: Offline | AC119: 0.994934178 | AS119: 171175 | AT119: KBOS
A120: 1 | B120: KATL | C120: 15 | D120: 1.46 | E120: Offline | F120: 0.9533575441 | X120: 119 | Y120: KPDX | Z120: 15 | AA120: 1.46 | AB120: Offline | AC120: 0.9951812913 | AS120: 178641 | AT120: KBOS
A121: 1 | B121: KATL | C121: 15 | D121: 1.5 | E121: Offline | F121: 0.9557079098 | X121: 120 | Y121: KPDX | Z121: 15 | AA121: 1.5 | AB121: Offline | AC121: 0.9954284045 | AS121: 176905 | AT121: KBOS
A122: 1 | B122: KATL | C122: 15 | D122: 1.54 | E122: Offline | F122: 0.9579564546 | X122: 121 | Y122: KPDX | Z122: 15 | AA122: 1.54 | AB122: Offline | AC122: 0.9956642854 | AS122: 188005 | AT122: KDCA
A123: 1 | B123: KATL | C123: 15 | D123: 1.58 | E123: Offline | F123: 0.9600692382 | X123: 122 | Y123: KPDX | Z123: 15 | AA123: 1.58 | AB123: Offline | AC123: 0.9958889338 | AS123: 183090 | AT123: KDCA
A124: 1 | B124: KATL | C124: 15 | D124: 1.62 | E124: Offline | F124: 0.9620632308 | X124: 123 | Y124: KPDX | Z124: 15 | AA124: 1.62 | AB124: Offline | AC124: 0.9961135822 | AS124: 186915 | AT124: KDCA
A125: 1 | B125: KATL | C125: 15 | D125: 1.66 | E125: Offline | F125: 0.9639723726 | X125: 124 | Y125: KPDX | Z125: 15 | AA125: 1.66 | AB125: Offline | AC125: 0.9963157658 | AS125: 180465 | AT125: KDCA
A126: 1 | B126: KATL | C126: 15 | D126: 1.7 | E126: Offline | F126: 0.9657712084 | X126: 125 | Y126: KPDX | Z126: 15 | AA126: 1.7 | AB126: Offline | AC126: 0.9964842521 | AS126: 180470 | AT126: KDCA
A127: 1 | B127: KATL | C127: 15 | D127: 1.74 | E127: Offline | F127: 0.9674342831 | X127: 126 | Y127: KPDX | Z127: 15 | AA127: 1.74 | AB127: Offline | AC127: 0.9966302736 | AS127: 184030 | AT127: KDCA
A128: 1 | B128: KATL | C128: 15 | D128: 1.78 | E128: Offline | F128: 0.9689615966 | X128: 127 | Y128: KPDX | Z128: 15 | AA128: 1.78 | AB128: Offline | AC128: 0.9967650627 | AS128: 188315 | AT128: KCRW
A129: 1 | B129: KATL | C129: 15 | D129: 1.82 | E129: Offline | F129: 0.9703870891 | X129: 128 | Y129: KPDX | Z129: 15 | AA129: 1.82 | AB129: Offline | AC129: 0.9968998517 | AS129: 193985 | AT129: KORH
A130: 1 | B130: KATL | C130: 15 | D130: 1.86 | E130: Offline | F130: 0.9717531861 | X130: 129 | Y130: KPDX | Z130: 15 | AA130: 1.86 | AB130: Offline | AC130: 0.9970234084 | AS130: 190736 | AT130: KBOS
A131: =VLOOKUP(B131,$AX$2:$AY$41,2,FALSE) -> 1 | B131: KATL | C131: 15 | D131: 1.9 | E131: Offline | F131: 0.9730683727 | X131: 130 | Y131: =INDIRECT("B"&$W$2+$X131) -> KPDX | Z131: =INDIRECT("C"&$W$2+$X131) -> 15 | AA131: =INDIRECT("D"&$W$2+$X131) -> 1.9 | AB131: =INDIRECT("E"&$W$2+$X131) -> Offline | AC131: =INDIRECT("F"&$W$2+$X131) -> 0.9971357326 | AS131: 190770 | AT131: KBOS
A132: 1 | B132: KATL | C132: 15 | D132: 1.94 | E132: Offline | F132: 0.974349619 | X132: =X131+1 -> 131 | Y132: KPDX | Z132: 15 | AA132: 1.94 | AB132: Offline | AC132: 0.9972368244 | AS132: 204090 | AT132: KORD
A133: 1 | B133: KATL | C133: 15 | D133: 1.98 | E133: Offline | F133: 0.9756054101 | X133: 132 | Y133: KPDX | Z133: 15 | AA133: 1.98 | AB133: Offline | AC133: 0.9973266837 | AS133: 207366 | AT133: KORD
A134: 1 | B134: KATL | C134: 15 | D134: 2.02 | E134: Offline | F134: 0.9768018056 | X134: 133 | Y134: KPDX | Z134: 15 | AA134: 2.02 | AB134: Offline | AC134: 0.9974165431 | AN134: =IF(AF134="Grand Total","",IF(AF134="","",AF134)) ->  | AO134: =IF(AF134="Grand Total","",IF(AF134="","",AG134)) ->  | AS134: 200662 | AT134: KORD
A135: 1 | B135: KATL | C135: 15 | D135: 2.06 | E135: Offline | F135: 0.9779218355 | X135: 134 | Y135: KPDX | Z135: 15 | AA135: 2.06 | AB135: Offline | AC135: 0.9975064025 | AS135: 200164 | AT135: KBUF
A136: 1 | B136: KATL | C136: 15 | D136: 2.1 | E136: Offline | F136: 0.9789739848 | X136: 135 | Y136: KPDX | Z136: 15 | AA136: 2.1 | AB136: Offline | AC136: 0.9975962619 | AS136: 205712 | AT136: KORD
A137: 1 | B137: KATL | C137: 15 | D137: 2.14 | E137: Offline | F137: 0.9799667385 | X137: 136 | Y137: KPDX | Z137: 15 | AA137: 2.14 | AB137: Offline | AC137: 0.9976748888 | AS137: 203170 | AT137: KORD
A138: 1 | B138: KATL | C138: 15 | D138: 2.18 | E138: Offline | F138: 0.980925552 | X138: 137 | Y138: KPDX | Z138: 15 | AA138: 2.18 | AB138: Offline | AC138: 0.9977422833 | AS138: 203580 | AT138: KBUF
A139: 1 | B139: KATL | C139: 15 | D139: 2.22 | E139: Offline | F139: 0.9818758803 | X139: 138 | Y139: KPDX | Z139: 15 | AA139: 2.22 | AB139: Offline | AC139: 0.9978096779 | AS139: 203333 | AT139: KORD
A140: 1 | B140: KATL | C140: 15 | D140: 2.26 | E140: Offline | F140: 0.9827752983 | X140: 139 | Y140: KPDX | Z140: 15 | AA140: 2.26 | AB140: Offline | AC140: 0.9978770724 | AS140: 204155 | AT140: KORD
A141: 1 | B141: KATL | C141: 15 | D141: 2.3 | E141: Offline | F141: 0.9835898654 | X141: 140 | Y141: KPDX | Z141: 15 | AA141: 2.3 | AB141: Offline | AC141: 0.9979444669 | AS141: 202846 | AT141: KORD
A142: 1 | B142: KATL | C142: 15 | D142: 2.34 | E142: Offline | F142: 0.9843535222 | X142: 141 | Y142: KPDX | Z142: 15 | AA142: 2.34 | AB142: Offline | AC142: 0.9980118614 | AS142: 218235 | AT142: KBIS
A143: 1 | B143: KATL | C143: 15 | D143: 2.38 | E143: Offline | F143: 0.9850832386 | X143: 142 | Y143: KPDX | Z143: 15 | AA143: 2.38 | AB143: Offline | AC143: 0.998079256 | AS143: 214026 | AT143: KBIS
A144: 1 | B144: KATL | C144: 15 | D144: 2.42 | E144: Offline | F144: 0.9857705296 | X144: 143 | Y144: KPDX | Z144: 15 | AA144: 2.42 | AB144: Offline | AC144: 0.9981466505 | AS144: 212248 | AT144: KORD
A145: 1 | B145: KATL | C145: 15 | D145: 2.46 | E145: Offline | F145: 0.9864238804 | X145: 144 | Y145: KPDX | Z145: 15 | AA145: 2.46 | AB145: Offline | AC145: 0.998214045 | AS145: 210112 | AT145: KPIR
A146: 1 | B146: KATL | C146: 15 | D146: 2.5 | E146: Offline | F146: 0.9870348058 | X146: 145 | Y146: KPDX | Z146: 15 | AA146: 2.5 | AB146: Offline | AC146: 0.9982814395 | AS146: 217294 | AT146: KLNK
A147: 1 | B147: KATL | C147: 15 | D147: 2.54 | E147: Offline | F147: 0.9876033058 | X147: 146 | Y147: KPDX | Z147: 15 | AA147: 2.54 | AB147: Offline | AC147: 0.9983488341 | AS147: 215435 | AT147: KLNK
A148: 1 | B148: KATL | C148: 15 | D148: 2.58 | E148: Offline | F148: 0.9881548356 | X148: 147 | Y148: KPDX | Z148: 15 | AA148: 2.58 | AB148: Offline | AC148: 0.9984049962 | AS148: 218323 | AT148: KLNK
A149: 1 | B149: KATL | C149: 15 | D149: 2.62 | E149: Offline | F149: 0.9886978804 | X149: 148 | Y149: KPDX | Z149: 15 | AA149: 2.62 | AB149: Offline | AC149: 0.9984499259 | AS149: 215987 | AT149: KLNK
A150: 1 | B150: KATL | C150: 15 | D150: 2.66 | E150: Offline | F150: 0.9892324401 | X150: 149 | Y150: KPDX | Z150: 15 | AA150: 2.66 | AB150: Offline | AC150: 0.9984948556 | AS150: 217004 | AT150: KORD
A151: 1 | B151: KATL | C151: 15 | D151: 2.7 | E151: Offline | F151: 0.9897585148 | X151: 150 | Y151: KPDX | Z151: 15 | AA151: 2.7 | AB151: Offline | AC151: 0.9985397852 | AS151: 221743 | AT151: KBHM
A152: 1 | B152: KATL | C152: 15 | D152: 2.74 | E152: Offline | F152: 0.9902676193 | X152: 151 | Y152: KPDX | Z152: 15 | AA152: 2.74 | AB152: Offline | AC152: 0.9985847149 | AS152: 227815 | AT152: KBHM
A153: 1 | B153: KATL | C153: 15 | D153: 2.78 | E153: Offline | F153: 0.9907512685 | X153: 152 | Y153: KPDX | Z153: 15 | AA153: 2.78 | AB153: Offline | AC153: 0.9986296446 | AS153: 229003 | AT153: KBHM
A154: 1 | B154: KATL | C154: 15 | D154: 2.82 | E154: Offline | F154: 0.9912179476 | X154: 153 | Y154: KPDX | Z154: 15 | AA154: 2.82 | AB154: Offline | AC154: 0.9986745743 | AS154: 228445 | AT154: KBHM
A155: 1 | B155: KATL | C155: 15 | D155: 2.86 | E155: Offline | F155: 0.9916422014 | X155: 154 | Y155: KPDX | Z155: 15 | AA155: 2.86 | AB155: Offline | AC155: 0.998719504 | AS155: 225062 | AT155: KBHM
A156: 1 | B156: KATL | C156: 15 | D156: 2.9 | E156: Offline | F156: 0.9920240297 | X156: 155 | Y156: KPDX | Z156: 15 | AA156: 2.9 | AB156: Offline | AC156: 0.9987644337 | AS156: 228374 | AT156: KBHM
A157: 1 | B157: KATL | C157: 15 | D157: 2.94 | E157: Offline | F157: 0.9923888879 | X157: 156 | Y157: KPDX | Z157: 15 | AA157: 2.94 | AB157: Offline | AC157: 0.9988093633 | AS157: 227714 | AT157: KNEW
A158: 1 | B158: KATL | C158: 15 | D158: 2.98 | E158: Offline | F158: 0.9927282909 | X158: 157 | Y158: KPDX | Z158: 15 | AA158: 2.98 | AB158: Offline | AC158: 0.998854293 | AS158: 227220 | AT158: KNEW
A159: 1 | B159: KATL | C159: 15 | D159: 3.02 | E159: Offline | F159: 0.9930422387 | X159: 158 | Y159: KPDX | Z159: 15 | AA159: 3.02 | AB159: Offline | AC159: 0.9988992227 | AS159: 225776 | AT159: KBHM
A160: 1 | B160: KATL | C160: 20 | D160: 0 | E160: Offline | F160: 0 | X160: 159 | Y160: KPDX | Z160: 20 | AA160: 0 | AB160: Offline | AC160: 0 | AS160: 227840 | AT160: KNEW
A161: 1 | B161: KATL | C161: 20 | D161: 0.015 | E161: Offline | F161: 0.09110424763 | X161: 160 | Y161: KPDX | Z161: 20 | AA161: 0.015 | AB161: Offline | AC161: 0.2172125623 | AS161: 234358 | AT161: KLNK
A162: 1 | B162: KATL | C162: 20 | D162: 0.045 | E162: Offline | F162: 0.2468477947 | X162: 161 | Y162: KPDX | Z162: 20 | AA162: 0.045 | AB162: Offline | AC162: 0.5513770948 | AS162: 237455 | AT162: KCOU
A163: 1 | B163: KATL | C163: 20 | D163: 0.075 | E163: Offline | F163: 0.3596314084 | X163: 162 | Y163: KPDX | Z163: 20 | AA163: 0.075 | AB163: Offline | AC163: 0.7299164308 | AS163: 235987 | AT163: KCOU
A164: 1 | B164: KATL | C164: 20 | D164: 0.105 | E164: Offline | F164: 0.4446009469 | X164: 163 | Y164: KPDX | Z164: 20 | AA164: 0.105 | AB164: Offline | AC164: 0.8256391248 | AS164: 237976 | AT164: KCOU
A165: 1 | B165: KATL | C165: 20 | D165: 0.135 | E165: Offline | F165: 0.510665739 | X165: 164 | Y165: KPDX | Z165: 20 | AA165: 0.135 | AB165: Offline | AC165: 0.8799703464 | AS165: 238620 | AT165: KCOU
A166: 1 | B166: KATL | C166: 20 | D166: 0.165 | E166: Offline | F166: 0.5635107845 | X166: 165 | Y166: KPDX | Z166: 20 | AA166: 0.165 | AB166: Offline | AC166: 0.912836411 | AS166: 233999 | AT166: KLIT
A167: 1 | B167: KATL | C167: 20 | D167: 0.195 | E167: Offline | F167: 0.6066149643 | X167: 166 | Y167: KPDX | Z167: 20 | AA167: 0.195 | AB167: Offline | AC167: 0.9339084333 | AS167: 245745 | AT167: KMSO
A168: 1 | B168: KATL | C168: 20 | D168: 0.225 | E168: Offline | F168: 0.6425747111 | X168: 167 | Y168: KPDX | Z168: 20 | AA168: 0.225 | AB168: Offline | AC168: 0.9480500517 | AS168: 241309 | AT168: KMSO
A169: 1 | B169: KATL | C169: 20 | D169: 0.255 | E169: Offline | F169: 0.6729682489 | X169: 168 | Y169: KPDX | Z169: 20 | AA169: 0.255 | AB169: Offline | AC169: 0.9579345824 | AS169: 241737 | AT169: KMSO
A170: 1 | B170: KATL | C170: 20 | D170: 0.285 | E170: Offline | F170: 0.6990004582 | X170: 169 | Y170: KPDX | Z170: 20 | AA170: 0.285 | AB170: Offline | AC170: 0.965044705 | AS170: 244055 | AT170: KMSO
A171: 1 | B171: KATL | C171: 20 | D171: 0.315 | E171: Offline | F171: 0.721681063 | X171: 170 | Y171: KPDX | Z171: 20 | AA171: 0.315 | AB171: Offline | AC171: 0.9702565485 | AS171: 240807 | AT171: KBIL
A172: 1 | B172: KATL | C172: 20 | D172: 0.345 | E172: Offline | F172: 0.7414597723 | X172: 171 | Y172: KPDX | Z172: 20 | AA172: 0.345 | AB172: Offline | AC172: 0.9742552905 | AS172: 241088 | AT172: KBIL
A173: 1 | B173: KATL | C173: 20 | D173: 0.375 | E173: Offline | F173: 0.7588032651 | X173: 172 | Y173: KPDX | Z173: 20 | AA173: 0.375 | AB173: Offline | AC173: 0.9773329739 | AS173: 248169 | AT173: KBIL
A174: 1 | B174: KATL | C174: 20 | D174: 0.405 | E174: Offline | F174: 0.7742885265 | X174: 173 | Y174: KPDX | Z174: 20 | AA174: 0.405 | AB174: Offline | AC174: 0.9797704093 | AS174: 257665 | AT174: KDEN
A175: 1 | B175: KATL | C175: 20 | D175: 0.435 | E175: Offline | F175: 0.7880937431 | X175: 174 | Y175: KPDX | Z175: 20 | AA175: 0.435 | AB175: Offline | AC175: 0.9817248506 | AS175: 258760 | AT175: KPIR
A176: 1 | B176: KATL | C176: 20 | D176: 0.465 | E176: Offline | F176: 0.8005243776 | X176: 175 | Y176: KPDX | Z176: 20 | AA176: 0.465 | AB176: Offline | AC176: 0.9831962978 | AS176: 255995 | AT176: KLNK
A177: 1 | B177: KATL | C177: 20 | D177: 0.495 | E177: Offline | F177: 0.811919833 | X177: 176 | Y177: KPDX | Z177: 20 | AA177: 0.495 | AB177: Offline | AC177: 0.9843083075 | AS177: 253395 | AT177: KLNK
A178: 1 | B178: KATL | C178: 20 | D178: 0.525 | E178: Offline | F178: 0.8223989003 | X178: 177 | Y178: KPDX | Z178: 20 | AA178: 0.525 | AB178: Offline | AC178: 0.985229366 | AS178: 254795 | AT178: KLNK
A179: 1 | B179: KATL | C179: 20 | D179: 0.555 | E179: Offline | F179: 0.8320634005 | X179: 178 | Y179: KPDX | Z179: 20 | AA179: 0.555 | AB179: Offline | AC179: 0.9860493328 | AS179: 256065 | AT179: KPIR
A180: 1 | B180: KATL | C180: 20 | D180: 0.585 | E180: Offline | F180: 0.8409387887 | X180: 179 | Y180: KPDX | Z180: 20 | AA180: 0.585 | AB180: Offline | AC180: 0.9867906726 | AS180: 252560 | AT180: KLNK
A181: 1 | B181: KATL | C181: 20 | D181: 0.615 | E181: Offline | F181: 0.8491777963 | X181: 180 | Y181: KPDX | Z181: 20 | AA181: 0.615 | AB181: Offline | AC181: 0.9874870827 | AS181: 258395 | AT181: KLNK
A182: 1 | B182: KATL | C182: 20 | D182: 0.645 | E182: Offline | F182: 0.8568992143 | X182: 181 | Y182: KPDX | Z182: 20 | AA182: 0.645 | AB182: Offline | AC182: 0.9881160983 | AS182: 269171 | AT182: KBOI
A183: 1 | B183: KATL | C183: 20 | D183: 0.675 | E183: Offline | F183: 0.8641878935 | X183: 182 | Y183: KPDX | Z183: 20 | AA183: 0.675 | AB183: Offline | AC183: 0.9886777194 | AS183: 262631 | AT183: KLAS
A184: 1 | B184: KATL | C184: 20 | D184: 0.705 | E184: Offline | F184: 0.8710098936 | X184: 183 | Y184: KPDX | Z184: 20 | AA184: 0.705 | AB184: Offline | AC184: 0.9892056432 | AS184: 268170 | AT184: KLAS
A185: 1 | B185: KATL | C185: 20 | D185: 0.735 | E185: Offline | F185: 0.8772718788 | X185: 184 | Y185: KPDX | Z185: 20 | AA185: 0.735 | AB185: Offline | AC185: 0.9896998697 | AS185: 264436 | AT185: KLAS
A186: 1 | B186: KATL | C186: 20 | D186: 0.765 | E186: Offline | F186: 0.8830502147 | X186: 185 | Y186: KPDX | Z186: 20 | AA186: 0.765 | AB186: Offline | AC186: 0.9901491666 | AS186: 275639 | AT186: KBOS
A187: 1 | B187: KATL | C187: 20 | D187: 0.795 | E187: Offline | F187: 0.888421267 | X187: 186 | Y187: KPDX | Z187: 20 | AA187: 0.795 | AB187: Offline | AC187: 0.9905535337 | AS187: 271683 | AT187: KBOS
A188: 1 | B188: KATL | C188: 20 | D188: 0.825 | E188: Offline | F188: 0.8934444312 | X188: 187 | Y188: KPDX | Z188: 20 | AA188: 0.825 | AB188: Offline | AC188: 0.9909242036 | AS188: 286026 | AT188: KLGA
A189: 1 | B189: KATL | C189: 20 | D189: 0.855 | E189: Offline | F189: 0.898179103 | X189: 188 | Y189: KPDX | Z189: 20 | AA189: 0.855 | AB189: Offline | AC189: 0.9912611763 | AS189: 280311 | AT189: KLGA
A190: 1 | B190: KATL | C190: 20 | D190: 0.885 | E190: Offline | F190: 0.9026761926 | X190: 189 | Y190: KPDX | Z190: 20 | AA190: 0.885 | AB190: Offline | AC190: 0.9915756841 | AS190: 281351 | AT190: KDCA
A191: 1 | B191: KATL | C191: 20 | D191: 0.915 | E191: Offline | F191: 0.907037521 | X191: 190 | Y191: KPDX | Z191: 20 | AA191: 0.915 | AB191: Offline | AC191: 0.9918789594 | AS191: 293142 | AT191: KLXV
A192: 1 | B192: KATL | C192: 20 | D192: 0.945 | E192: Offline | F192: 0.9112206629 | X192: 191 | Y192: KPDX | Z192: 20 | AA192: 0.945 | AB192: Offline | AC192: 0.9921710024 | AS192: 292837 | AT192: KLXV
A193: 1 | B193: KATL | C193: 20 | D193: 0.975 | E193: Offline | F193: 0.9152341032 | X193: 192 | Y193: KPDX | Z193: 20 | AA193: 0.975 | AB193: Offline | AC193: 0.9924630453 | AS193: 292030 | AT193: KLBB
A194: 1 | B194: KATL | C194: 20 | D194: 1.005 | E194: Offline | F194: 0.9190863272 | X194: 193 | Y194: KPDX | Z194: 20 | AA194: 1.005 | AB194: Offline | AC194: 0.9927438559 | AS194: 292250 | AT194: KLXV
A195: =VLOOKUP(B195,$AX$2:$AY$41,2,FALSE) -> 1 | B195: KATL | C195: 20 | D195: 1.035 | E195: Offline | F195: 0.9227433944 | X195: 194 | Y195: =INDIRECT("B"&$W$2+$X195) -> KPDX | Z195: =INDIRECT("C"&$W$2+$X195) -> 20 | AA195: =INDIRECT("D"&$W$2+$X195) -> 1.035 | AB195: =INDIRECT("E"&$W$2+$X195) -> Offline | AC195: =INDIRECT("F"&$W$2+$X195) -> 0.993013434 | AS195: 290234 | AT195: KLXV
A196: 1 | B196: KATL | C196: 20 | D196: 1.065 | E196: Offline | F196: 0.9261798496 | X196: =X195+1 -> 195 | Y196: KPDX | Z196: 20 | AA196: 1.065 | AB196: Offline | AC196: 0.9932830121 | AS196: 297094 | AT196: KLBB
A197: 1 | B197: KATL | C197: 20 | D197: 1.095 | E197: Offline | F197: 0.9294126631 | X197: 196 | Y197: KPDX | Z197: 20 | AA197: 1.095 | AB197: Offline | AC197: 0.9935525902 | AS197: 290600 | AT197: KLBB
A198: 1 | B198: KATL | C198: 20 | D198: 1.125 | E198: Offline | F198: 0.9325097154 | X198: 197 | Y198: KPDX | Z198: 20 | AA198: 1.125 | AB198: Offline | AC198: 0.9938109359 | AN198: =IF(AF198="Grand Total","",IF(AF198="","",AF198)) ->  | AO198: =IF(AF198="Grand Total","",IF(AF198="","",AG198)) ->  | AS198: 294426 | AT198: KLBB
A199: 1 | B199: KATL | C199: 20 | D199: 1.155 | E199: Offline | F199: 0.9354710065 | X199: 198 | Y199: KPDX | Z199: 20 | AA199: 1.155 | AB199: Offline | AC199: 0.9940468167 | AS199: 303983 | AT199: KBUF
A200: 1 | B200: KATL | C200: 20 | D200: 1.185 | E200: Offline | F200: 0.9383050215 | X200: 199 | Y200: KPDX | Z200: 20 | AA200: 1.185 | AB200: Offline | AC200: 0.9942714652 | AS200: 300687 | AT200: KLGA
... 4300 more rows

Sheet Pollutant Concentrations (hidden)
A1: U.S. EPA Pollutant Group | B1: Pollutant of Concern | C1: Highway Runoff Mean Concentration | D1: Treatment BMPs Mean Effluent Concentrations
D2: Swales | E2: Dry Detention Basin | F2: Bioretention | G2: Sand Filter | H2: PFC Overlay
A3: Pathogens (colonies/100mL) | B3: Escherichia Coli (E. coli) | C3: 8740 | D3: 9000 | E3: 2540 | F3: 1540 | G3: -- | H3: --
B4: Fecal Coliform | C4: 5970 | D4: 36000 | E4: 10000 | F4: -- | G4: 5900 | H4: --
A5: Metals (µg/L) | B5: Total Copper | C5: 47 | D5: 10.1 | E5: 10.6 | F5: 9.72 | G5: 11 | H5: 13.1
B6: Total Lead | C6: 44 | D6: 6.63 | E6: 10.8 | F6: 4.68 | G6: 4.47 | H6: 1.2
B7: Total Zinc | C7: 245 | D7: 36.2 | E7: 60.6 | F7: 27.7 | G7: 40.7 | H7: 26.1
A8: Nutrients (mg/L) | B8: Total Nitrogen | C8: 3.31 | D8: 1.05 | E8: 2.44 | F8: 1.74 | G8: 1.52 | H8: 1.35
B9: Total Phosphorus | C9: 0.44 | D9: 0.277 | E9: 0.373 | F9: 0.47 | G9: 0.143 | H9: 0.066
A10: Sediment (mg/L) | B10: Total Suspended Solids | C10: 151 | D10: 27 | E10: 42.3 | F10: 17.7 | G10: 22.4 | H10: 11.5
B14: Parameter | H14: Bootstrapped Means | I14: Influent Concentration | J14: Calculated Effluent Concentration | K14: Actual Effluent Concentration | L14: Bias Correction Factor
A15: Pollutant | B15: A | C15: B | D15: C | E15: D | F15: E | G15: DL
A16: Total Suspended Solids (mg/L) | B16: 0 | C16: 0 | D16: 0 | E16: 5.738273 | F16: 0.448421 | G16: 0.5 | H16: 138.84 | I16: ='Project Options'!C18 -> 138.84 | J16: =B16+C16*I16+D16*LN(I16)+E16*(I16^F16)+L16 -> 53.77335285 | K16: =MIN(I16,MAX(J16,G16)) -> 53.77335285 | L16: 1.349402
A17: Total Zinc (ug/L) | B17: 0 | C17: 0 | D17: 0 | E17: 2.987955 | F17: 0.558889 | G17: 0.01 | H17: 189.93 | I17: ='Project Options'!C19 -> 189.93 | J17: 57.29437413 | K17: =MIN(I17,MAX(J17,G17)) -> 57.29437413 | L17: 1.208314
A18: Total Lead (ug/L) | B18: 0 | C18: 0 | D18: 0 | E18: 0.656134 | F18: 0.9248 | G18: 3 | H18: 44.08 | I18: ='Project Options'!C20 -> 44.08 | J18: =B18+C18*I18+D18*LN(I18)+E18*(I18^F18)+L18 -> 22.62631334 | K18: 22.62631334 | L18: 0.869907
A19: Total Copper (ug/L) | B19: 0 | C19: 0 | D19: 0 | E19: 0.852645 | F19: 0.88238 | G19: 6 | H19: 41.76 | I19: ='Project Options'!C21 -> 41.76 | J19: =B19+C19*I19+D19*LN(I19)+E19*(I19^F19)+L19 -> 23.87835895 | K19: 23.87835895 | L19: 0.922429
A20: Total Nitrogen (mg/L) | B20: <-- TN = TKN + NO3 --> | H20: =H22+H23 -> 3.38 | I20: ='Project Options'!C22 -> 3.38 | J20: =J22+J23 -> 3.47596134 | K20: =MIN(I20,MAX(J20,G20)) -> 3.38
A21: Total Phosphorus (mg/L) | B21: 0.444286 | C21: 0 | D21: 0.122388 | E21: 0 | F21: 0 | G21: 0.01 | H21: 0.4420194995 | I21: ='Project Options'!C23 -> 0.4420194995 | J21: 0.34436828 | K21: =MAX(K24,MIN(I21,MAX(J21,G21))) -> 0.34436828
A22: Nitrate [NO3] (mg/L) | B22: 0.022144 | C22: 1.069639 | D22: 0 | E22: 0 | F22: 0 | G22: =G23 -> 0.1 | H22: 1.06 | I22: ='Project Options'!C24 -> 1.06 | J22: 1.15596134 | K22: =MIN(I22,MAX(J22,G22)) -> 1.06
A23: Total Kjeldahl Nitrogen [TKN] (mg/L) | B23: 0 | C23: 1 | D23: 0 | E23: 0 | F23: 0 | G23: 0.1 | H23: 2.32 | I23: ='Project Options'!C25 -> 2.32 | J23: 2.32 | K23: 2.32
A24: Dissolved Phosphorus (mg/L) | B24: -0.00575 | C24: 1.413123 | D24: 0 | E24: 0 | F24: 0 | G24: 0.02 | H24: 0.25 | I24: ='Project Options'!C26 -> 0.25 | J24: 0.34753075 | K24: =IF(I21=J21,I24,MIN(I24,MAX(J24,G24))) -> 0.25
A25: Fecal Coliform (col/100mL) | B25: 0 | C25: 1 | D25: 0 | E25: 0 | F25: 0 | G25: 1000 | H25: 8699.89 | I25: ='Project Options'!C27 -> 8699.89 | J25: 8699.89 | K25: 8699.89
A26: Escherichia Coli [E. Coli] (col/100mL) | B26: 0 | C26: 1 | D26: 0 | E26: 0 | F26: 0 | G26: 0 | H26: 6025.22 | I26: ='Project Options'!C28 -> 6025.22 | J26: 6025.22 | K26: 6025.22

Sheet Whole Life Costs (hidden)
A1: Swale
I2: 50-year Total | J2: Per Year | L2: Design Life Maintenance NPV
H3: Capital | I3: =I12 -> 13335.73901 | J3: =I3/50 -> 266.7147802 | L3: =VLOOKUP('Project Options'!B35,'Whole Life Costs'!A12:K62,11,FALSE)-'Whole Life Costs'!I12 -> 32557.93995
H4: O&M | I4: =I11-I12 -> 52688.46298 | J4: =I4/50 -> 1053.76926
A6: Whole Life Costs
A8: Year | B8: Discount Factor | C8: Cost Escalation | D8: Capital & Assoc. Costs | E8: Regular Maint. Costs | F8: Base Corrective Maint. | G8: Escalated Maint. Cost | H8: Total Costs | I8: Present Value of Costs | J8: Cumulative Costs
J10: Cash | K10: Present Value
A11: Cash Sum ($) | H11: =SUM(H12:H62) -> 208676.6602 | I11: =SUM(I12:I62) -> 66024.20198
A12: 0 | B12: =1/((1+Discount/100)^A12) -> 1 | D12: ='Whole Life Costs Summary'!B14 -> 13335.73901 | H12: =D12+E12+G12 -> 13335.73901 | I12: =H12*$B12 -> 13335.73901 | J12: =H12 -> 13335.73901 | K12: =I12 -> 13335.73901
A13: =A12+1 -> 1 | B13: =1/((1+Discount/100)^A13) -> 0.9523809524 | C13: =(1+Escalation/100)^A13 -> 1.03 | D13: 0 | E13: ='Whole Life Costs Summary'!D23 -> 1410 | F13: =IF('Whole Life Costs Summary'!$B$27=0,0,IF($A13/'Whole Life Costs Summary'!$B$27=INT($A13/'Whole Life Costs Summary'!$B$27),'Whole Life Costs Summary'!$C$27,0)) + IF('Whole Life Costs Summary'!$B$28=0,0,IF($A13/'Whole Life Costs Summary'!$B$28=INT($A13/'Whole Life Costs Summary'!$B$28),'Whole Life Costs Summary'!$C$28,0)) + IF('Whole Life Costs Summary'!$B$29=0,0,IF($A13/'Whole Life Costs Summary'!$B$29=INT($A13/'Whole Life Costs Summary'!$B$29),'Whole Life Costs Summary'!$C$29,0)) -> 0 | G13: =(E13+F13)*C13 -> 1452.3 | H13: =G13 -> 1452.3 | I13: =H13*$B13 -> 1383.142857 | J13: =J12+H13 -> 14788.03901 | K13: =K12+I13 -> 14718.88187
A14: =A13+1 -> 2 | B14: 0.9070294785 | C14: 1.0609 | D14: 0 | E14: =$E$13 -> 1410 | F14: =IF('Whole Life Costs Summary'!$B$27=0,0,IF($A14/'Whole Life Costs Summary'!$B$27=INT($A14/'Whole Life Costs Summary'!$B$27),'Whole Life Costs Summary'!$C$27,0)) + IF('Whole Life Costs Summary'!$B$28=0,0,IF($A14/'Whole Life Costs Summary'!$B$28=INT($A14/'Whole Life Costs Summary'!$B$28),'Whole Life Costs Summary'!$C$28,0)) + IF('Whole Life Costs Summary'!$B$29=0,0,IF($A14/'Whole Life Costs Summary'!$B$29=INT($A14/'Whole Life Costs Summary'!$B$29),'Whole Life Costs Summary'!$C$29,0)) -> 0 | G14: =(E14+F14)*C14 -> 1495.869 | H14: =G14 -> 1495.869 | I14: 1356.797279 | J14: =J13+H14 -> 16283.90801 | K14: 16075.67914
A15: 3 | B15: 0.8638375985 | C15: 1.092727 | D15: 0 | E15: 1410 | F15: =IF('Whole Life Costs Summary'!$B$27=0,0,IF($A15/'Whole Life Costs Summary'!$B$27=INT($A15/'Whole Life Costs Summary'!$B$27),'Whole Life Costs Summary'!$C$27,0)) + IF('Whole Life Costs Summary'!$B$28=0,0,IF($A15/'Whole Life Costs Summary'!$B$28=INT($A15/'Whole Life Costs Summary'!$B$28),'Whole Life Costs Summary'!$C$28,0)) + IF('Whole Life Costs Summary'!$B$29=0,0,IF($A15/'Whole Life Costs Summary'!$B$29=INT($A15/'Whole Life Costs Summary'!$B$29),'Whole Life Costs Summary'!$C$29,0)) -> 0 | G15: 1540.74507 | H15: 1540.74507 | I15: 1330.953521 | J15: 17824.65308 | K15: 17406.63267
A16: 4 | B16: 0.8227024748 | C16: 1.12550881 | D16: 0 | E16: 1410 | F16: =IF('Whole Life Costs Summary'!$B$27=0,0,IF($A16/'Whole Life Costs Summary'!$B$27=INT($A16/'Whole Life Costs Summary'!$B$27),'Whole Life Costs Summary'!$C$27,0)) + IF('Whole Life Costs Summary'!$B$28=0,0,IF($A16/'Whole Life Costs Summary'!$B$28=INT($A16/'Whole Life Costs Summary'!$B$28),'Whole Life Costs Summary'!$C$28,0)) + IF('Whole Life Costs Summary'!$B$29=0,0,IF($A16/'Whole Life Costs Summary'!$B$29=INT($A16/'Whole Life Costs Summary'!$B$29),'Whole Life Costs Summary'!$C$29,0)) -> 0 | G16: 1586.967422 | H16: 1586.967422 | I16: 1305.602026 | J16: 19411.6205 | K16: 18712.23469
A17: 5 | B17: 0.7835261665 | C17: 1.159274074 | D17: 0 | E17: 1410 | F17: =IF('Whole Life Costs Summary'!$B$27=0,0,IF($A17/'Whole Life Costs Summary'!$B$27=INT($A17/'Whole Life Costs Summary'!$B$27),'Whole Life Costs Summary'!$C$27,0)) + IF('Whole Life Costs Summary'!$B$28=0,0,IF($A17/'Whole Life Costs Summary'!$B$28=INT($A17/'Whole Life Costs Summary'!$B$28),'Whole Life Costs Summary'!$C$28,0)) + IF('Whole Life Costs Summary'!$B$29=0,0,IF($A17/'Whole Life Costs Summary'!$B$29=INT($A17/'Whole Life Costs Summary'!$B$29),'Whole Life Costs Summary'!$C$29,0)) -> 1280 | G17: 3118.44726 | H17: 3118.44726 | I17: 2443.385027 | J17: 22530.06776 | K17: 21155.61972
A18: 6 | B18: 0.7462153966 | C18: 1.194052297 | D18: 0 | E18: 1410 | F18: =IF('Whole Life Costs Summary'!$B$27=0,0,IF($A18/'Whole Life Costs Summary'!$B$27=INT($A18/'Whole Life Costs Summary'!$B$27),'Whole Life Costs Summary'!$C$27,0)) + IF('Whole Life Costs Summary'!$B$28=0,0,IF($A18/'Whole Life Costs Summary'!$B$28=INT($A18/'Whole Life Costs Summary'!$B$28),'Whole Life Costs Summary'!$C$28,0)) + IF('Whole Life Costs Summary'!$B$29=0,0,IF($A18/'Whole Life Costs Summary'!$B$29=INT($A18/'Whole Life Costs Summary'!$B$29),'Whole Life Costs Summary'!$C$29,0)) -> 0 | G18: 1683.613738 | H18: 1683.613738 | I18: 1256.338493 | J18: 24213.6815 | K18: 22411.95821
A19: 7 | B19: 0.7106813301 | C19: 1.229873865 | D19: 0 | E19: 1410 | F19: =IF('Whole Life Costs Summary'!$B$27=0,0,IF($A19/'Whole Life Costs Summary'!$B$27=INT($A19/'Whole Life Costs Summary'!$B$27),'Whole Life Costs Summary'!$C$27,0)) + IF('Whole Life Costs Summary'!$B$28=0,0,IF($A19/'Whole Life Costs Summary'!$B$28=INT($A19/'Whole Life Costs Summary'!$B$28),'Whole Life Costs Summary'!$C$28,0)) + IF('Whole Life Costs Summary'!$B$29=0,0,IF($A19/'Whole Life Costs Summary'!$B$29=INT($A19/'Whole Life Costs Summary'!$B$29),'Whole Life Costs Summary'!$C$29,0)) -> 0 | G19: 1734.12215 | H19: 1734.12215 | I19: =H19*$B19 -> 1232.408236 | J19: 25947.80365 | K19: 23644.36645
A20: 8 | B20: 0.676839362 | C20: 1.266770081 | D20: 0 | E20: 1410 | F20: =IF('Whole Life Costs Summary'!$B$27=0,0,IF($A20/'Whole Life Costs Summary'!$B$27=INT($A20/'Whole Life Costs Summary'!$B$27),'Whole Life Costs Summary'!$C$27,0)) + IF('Whole Life Costs Summary'!$B$28=0,0,IF($A20/'Whole Life Costs Summary'!$B$28=INT($A20/'Whole Life Costs Summary'!$B$28),'Whole Life Costs Summary'!$C$28,0)) + IF('Whole Life Costs Summary'!$B$29=0,0,IF($A20/'Whole Life Costs Summary'!$B$29=INT($A20/'Whole Life Costs Summary'!$B$29),'Whole Life Costs Summary'!$C$29,0)) -> 0 | G20: 1786.145815 | H20: 1786.145815 | I20: 1208.933794 | J20: 27733.94946 | K20: 24853.30024
A21: 9 | B21: 0.6446089162 | C21: 1.304773184 | D21: 0 | E21: 1410 | F21: =IF('Whole Life Costs Summary'!$B$27=0,0,IF($A21/'Whole Life Costs Summary'!$B$27=INT($A21/'Whole Life Costs Summary'!$B$27),'Whole Life Costs Summary'!$C$27,0)) + IF('Whole Life Costs Summary'!$B$28=0,0,IF($A21/'Whole Life Costs Summary'!$B$28=INT($A21/'Whole Life Costs Summary'!$B$28),'Whole Life Costs Summary'!$C$28,0)) + IF('Whole Life Costs Summary'!$B$29=0,0,IF($A21/'Whole Life Costs Summary'!$B$29=INT($A21/'Whole Life Costs Summary'!$B$29),'Whole Life Costs Summary'!$C$29,0)) -> 0 | G21: 1839.730189 | H21: 1839.730189 | I21: 1185.906483 | J21: 29573.67965 | K21: 26039.20672
A22: 10 | B22: 0.6139132535 | C22: 1.343916379 | D22: 0 | E22: 1410 | F22: =IF('Whole Life Costs Summary'!$B$27=0,0,IF($A22/'Whole Life Costs Summary'!$B$27=INT($A22/'Whole Life Costs Summary'!$B$27),'Whole Life Costs Summary'!$C$27,0)) + IF('Whole Life Costs Summary'!$B$28=0,0,IF($A22/'Whole Life Costs Summary'!$B$28=INT($A22/'Whole Life Costs Summary'!$B$28),'Whole Life Costs Summary'!$C$28,0)) + IF('Whole Life Costs Summary'!$B$29=0,0,IF($A22/'Whole Life Costs Summary'!$B$29=INT($A22/'Whole Life Costs Summary'!$B$29),'Whole Life Costs Summary'!$C$29,0)) -> 1280 | G22: 3615.13506 | H22: 3615.13506 | I22: 2219.379327 | J22: 33188.81471 | K22: 28258.58605
A23: 11 | B23: 0.5846792891 | C23: 1.384233871 | D23: 0 | E23: 1410 | F23: =IF('Whole Life Costs Summary'!$B$27=0,0,IF($A23/'Whole Life Costs Summary'!$B$27=INT($A23/'Whole Life Costs Summary'!$B$27),'Whole Life Costs Summary'!$C$27,0)) + IF('Whole Life Costs Summary'!$B$28=0,0,IF($A23/'Whole Life Costs Summary'!$B$28=INT($A23/'Whole Life Costs Summary'!$B$28),'Whole Life Costs Summary'!$C$28,0)) + IF('Whole Life Costs Summary'!$B$29=0,0,IF($A23/'Whole Life Costs Summary'!$B$29=INT($A23/'Whole Life Costs Summary'!$B$29),'Whole Life Costs Summary'!$C$29,0)) -> 0 | G23: 1951.769758 | H23: 1951.769758 | I23: 1141.159354 | J23: 35140.58447 | K23: 29399.74541
A24: 12 | B24: 0.5568374182 | C24: 1.425760887 | D24: 0 | E24: 1410 | F24: =IF('Whole Life Costs Summary'!$B$27=0,0,IF($A24/'Whole Life Costs Summary'!$B$27=INT($A24/'Whole Life Costs Summary'!$B$27),'Whole Life Costs Summary'!$C$27,0)) + IF('Whole Life Costs Summary'!$B$28=0,0,IF($A24/'Whole Life Costs Summary'!$B$28=INT($A24/'Whole Life Costs Summary'!$B$28),'Whole Life Costs Summary'!$C$28,0)) + IF('Whole Life Costs Summary'!$B$29=0,0,IF($A24/'Whole Life Costs Summary'!$B$29=INT($A24/'Whole Life Costs Summary'!$B$29),'Whole Life Costs Summary'!$C$29,0)) -> 0 | G24: 2010.32285 | H24: 2010.32285 | I24: 1119.422986 | J24: 37150.90732 | K24: 30519.16839
A25: 13 | B25: 0.5303213506 | C25: 1.468533713 | D25: 0 | E25: 1410 | F25: =IF('Whole Life Costs Summary'!$B$27=0,0,IF($A25/'Whole Life Costs Summary'!$B$27=INT($A25/'Whole Life Costs Summary'!$B$27),'Whole Life Costs Summary'!$C$27,0)) + IF('Whole Life Costs Summary'!$B$28=0,0,IF($A25/'Whole Life Costs Summary'!$B$28=INT($A25/'Whole Life Costs Summary'!$B$28),'Whole Life Costs Summary'!$C$28,0)) + IF('Whole Life Costs Summary'!$B$29=0,0,IF($A25/'Whole Life Costs Summary'!$B$29=INT($A25/'Whole Life Costs Summary'!$B$29),'Whole Life Costs Summary'!$C$29,0)) -> 0 | G25: 2070.632536 | H25: 2070.632536 | I25: 1098.100643 | J25: 39221.53986 | K25: 31617.26903
A26: 14 | B26: 0.505067953 | C26: 1.512589725 | D26: 0 | E26: 1410 | F26: =IF('Whole Life Costs Summary'!$B$27=0,0,IF($A26/'Whole Life Costs Summary'!$B$27=INT($A26/'Whole Life Costs Summary'!$B$27),'Whole Life Costs Summary'!$C$27,0)) + IF('Whole Life Costs Summary'!$B$28=0,0,IF($A26/'Whole Life Costs Summary'!$B$28=INT($A26/'Whole Life Costs Summary'!$B$28),'Whole Life Costs Summary'!$C$28,0)) + IF('Whole Life Costs Summary'!$B$29=0,0,IF($A26/'Whole Life Costs Summary'!$B$29=INT($A26/'Whole Life Costs Summary'!$B$29),'Whole Life Costs Summary'!$C$29,0)) -> 0 | G26: 2132.751512 | H26: 2132.751512 | I26: 1077.18444 | J26: 41354.29137 | K26: 32694.45348
A27: 15 | B27: 0.4810170981 | C27: 1.557967417 | D27: 0 | E27: 1410 | F27: =IF('Whole Life Costs Summary'!$B$27=0,0,IF($A27/'Whole Life Costs Summary'!$B$27=INT($A27/'Whole Life Costs Summary'!$B$27),'Whole Life Costs Summary'!$C$27,0)) + IF('Whole Life Costs Summary'!$B$28=0,0,IF($A27/'Whole Life Costs Summary'!$B$28=INT($A27/'Whole Life Costs Summary'!$B$28),'Whole Life Costs Summary'!$C$28,0)) + IF('Whole Life Costs Summary'!$B$29=0,0,IF($A27/'Whole Life Costs Summary'!$B$29=INT($A27/'Whole Life Costs Summary'!$B$29),'Whole Life Costs Summary'!$C$29,0)) -> 1280 | G27: 4190.932351 | H27: 4190.932351 | I27: 2015.910118 | J27: 45545.22372 | K27: 34710.36359
A28: 16 | B28: 0.458111522 | C28: 1.604706439 | D28: 0 | E28: 1410 | F28: =IF('Whole Life Costs Summary'!$B$27=0,0,IF($A28/'Whole Life Costs Summary'!$B$27=INT($A28/'Whole Life Costs Summary'!$B$27),'Whole Life Costs Summary'!$C$27,0)) + IF('Whole Life Costs Summary'!$B$28=0,0,IF($A28/'Whole Life Costs Summary'!$B$28=INT($A28/'Whole Life Costs Summary'!$B$28),'Whole Life Costs Summary'!$C$28,0)) + IF('Whole Life Costs Summary'!$B$29=0,0,IF($A28/'Whole Life Costs Summary'!$B$29=INT($A28/'Whole Life Costs Summary'!$B$29),'Whole Life Costs Summary'!$C$29,0)) -> 0 | G28: 2262.636079 | H28: 2262.636079 | I28: 1036.539658 | J28: 47807.8598 | K28: 35746.90325
A29: 17 | B29: 0.4362966876 | C29: 1.652847632 | D29: 0 | E29: 1410 | F29: =IF('Whole Life Costs Summary'!$B$27=0,0,IF($A29/'Whole Life Costs Summary'!$B$27=INT($A29/'Whole Life Costs Summary'!$B$27),'Whole Life Costs Summary'!$C$27,0)) + IF('Whole Life Costs Summary'!$B$28=0,0,IF($A29/'Whole Life Costs Summary'!$B$28=INT($A29/'Whole Life Costs Summary'!$B$28),'Whole Life Costs Summary'!$C$28,0)) + IF('Whole Life Costs Summary'!$B$29=0,0,IF($A29/'Whole Life Costs Summary'!$B$29=INT($A29/'Whole Life Costs Summary'!$B$29),'Whole Life Costs Summary'!$C$29,0)) -> 0 | G29: 2330.515162 | H29: 2330.515162 | I29: 1016.796045 | J29: 50138.37496 | K29: 36763.6993
A30: 18 | B30: 0.4155206549 | C30: 1.702433061 | D30: 0 | E30: 1410 | F30: =IF('Whole Life Costs Summary'!$B$27=0,0,IF($A30/'Whole Life Costs Summary'!$B$27=INT($A30/'Whole Life Costs Summary'!$B$27),'Whole Life Costs Summary'!$C$27,0)) + IF('Whole Life Costs Summary'!$B$28=0,0,IF($A30/'Whole Life Costs Summary'!$B$28=INT($A30/'Whole Life Costs Summary'!$B$28),'Whole Life Costs Summary'!$C$28,0)) + IF('Whole Life Costs Summary'!$B$29=0,0,IF($A30/'Whole Life Costs Summary'!$B$29=INT($A30/'Whole Life Costs Summary'!$B$29),'Whole Life Costs Summary'!$C$29,0)) -> 0 | G30: 2400.430616 | H30: 2400.430616 | I30: 997.4285017 | J30: =J29+H30 -> 52538.80558 | K30: 37761.1278
A31: 19 | B31: 0.395733957 | C31: 1.753506053 | D31: 0 | E31: 1410 | F31: =IF('Whole Life Costs Summary'!$B$27=0,0,IF($A31/'Whole Life Costs Summary'!$B$27=INT($A31/'Whole Life Costs Summary'!$B$27),'Whole Life Costs Summary'!$C$27,0)) + IF('Whole Life Costs Summary'!$B$28=0,0,IF($A31/'Whole Life Costs Summary'!$B$28=INT($A31/'Whole Life Costs Summary'!$B$28),'Whole Life Costs Summary'!$C$28,0)) + IF('Whole Life Costs Summary'!$B$29=0,0,IF($A31/'Whole Life Costs Summary'!$B$29=INT($A31/'Whole Life Costs Summary'!$B$29),'Whole Life Costs Summary'!$C$29,0)) -> 0 | G31: 2472.443535 | H31: 2472.443535 | I31: 978.4298635 | J31: 55011.24911 | K31: 38739.55766
A32: 20 | B32: 0.3768894829 | C32: 1.806111235 | D32: 0 | E32: 1410 | F32: =IF('Whole Life Costs Summary'!$B$27=0,0,IF($A32/'Whole Life Costs Summary'!$B$27=INT($A32/'Whole Life Costs Summary'!$B$27),'Whole Life Costs Summary'!$C$27,0)) + IF('Whole Life Costs Summary'!$B$28=0,0,IF($A32/'Whole Life Costs Summary'!$B$28=INT($A32/'Whole Life Costs Summary'!$B$28),'Whole Life Costs Summary'!$C$28,0)) + IF('Whole Life Costs Summary'!$B$29=0,0,IF($A32/'Whole Life Costs Summary'!$B$29=INT($A32/'Whole Life Costs Summary'!$B$29),'Whole Life Costs Summary'!$C$29,0)) -> 1280 | G32: 4858.439221 | H32: 4858.439221 | I32: 1831.094646 | J32: 59869.68833 | K32: 40570.65231
A33: 21 | B33: 0.3589423646 | C33: 1.860294572 | D33: 0 | E33: 1410 | F33: =IF('Whole Life Costs Summary'!$B$27=0,0,IF($A33/'Whole Life Costs Summary'!$B$27=INT($A33/'Whole Life Costs Summary'!$B$27),'Whole Life Costs Summary'!$C$27,0)) + IF('Whole Life Costs Summary'!$B$28=0,0,IF($A33/'Whole Life Costs Summary'!$B$28=INT($A33/'Whole Life Costs Summary'!$B$28),'Whole Life Costs Summary'!$C$28,0)) + IF('Whole Life Costs Summary'!$B$29=0,0,IF($A33/'Whole Life Costs Summary'!$B$29=INT($A33/'Whole Life Costs Summary'!$B$29),'Whole Life Costs Summary'!$C$29,0)) -> 0 | G33: 2623.015346 | H33: 2623.015346 | I33: 941.5113308 | J33: 62492.70368 | K33: 41512.16364
A34: 22 | B34: 0.3418498711 | C34: 1.916103409 | D34: 0 | E34: 1410 | F34: =IF('Whole Life Costs Summary'!$B$27=0,0,IF($A34/'Whole Life Costs Summary'!$B$27=INT($A34/'Whole Life Costs Summary'!$B$27),'Whole Life Costs Summary'!$C$27,0)) + IF('Whole Life Costs Summary'!$B$28=0,0,IF($A34/'Whole Life Costs Summary'!$B$28=INT($A34/'Whole Life Costs Summary'!$B$28),'Whole Life Costs Summary'!$C$28,0)) + IF('Whole Life Costs Summary'!$B$29=0,0,IF($A34/'Whole Life Costs Summary'!$B$29=INT($A34/'Whole Life Costs Summary'!$B$29),'Whole Life Costs Summary'!$C$29,0)) -> 0 | G34: 2701.705806 | H34: 2701.705806 | I34: 923.5777817 | J34: 65194.40949 | K34: 42435.74142
A35: 23 | B35: 0.3255713058 | C35: 1.973586511 | D35: 0 | E35: 1410 | F35: =IF('Whole Life Costs Summary'!$B$27=0,0,IF($A35/'Whole Life Costs Summary'!$B$27=INT($A35/'Whole Life Costs Summary'!$B$27),'Whole Life Costs Summary'!$C$27,0)) + IF('Whole Life Costs Summary'!$B$28=0,0,IF($A35/'Whole Life Costs Summary'!$B$28=INT($A35/'Whole Life Costs Summary'!$B$28),'Whole Life Costs Summary'!$C$28,0)) + IF('Whole Life Costs Summary'!$B$29=0,0,IF($A35/'Whole Life Costs Summary'!$B$29=INT($A35/'Whole Life Costs Summary'!$B$29),'Whole Life Costs Summary'!$C$29,0)) -> 0 | G35: 2782.756981 | H35: 2782.756981 | I35: 905.9858239 | J35: 67977.16647 | K35: 43341.72724
A36: 24 | B36: 0.3100679103 | C36: 2.032794106 | D36: 0 | E36: 1410 | F36: =IF('Whole Life Costs Summary'!$B$27=0,0,IF($A36/'Whole Life Costs Summary'!$B$27=INT($A36/'Whole Life Costs Summary'!$B$27),'Whole Life Costs Summary'!$C$27,0)) + IF('Whole Life Costs Summary'!$B$28=0,0,IF($A36/'Whole Life Costs Summary'!$B$28=INT($A36/'Whole Life Costs Summary'!$B$28),'Whole Life Costs Summary'!$C$28,0)) + IF('Whole Life Costs Summary'!$B$29=0,0,IF($A36/'Whole Life Costs Summary'!$B$29=INT($A36/'Whole Life Costs Summary'!$B$29),'Whole Life Costs Summary'!$C$29,0)) -> 0 | G36: 2866.23969 | H36: 2866.23969 | I36: 888.7289511 | J36: 70843.40616 | K36: 44230.45619
A37: 25 | B37: 0.2953027717 | C37: 2.09377793 | D37: 0 | E37: 1410 | F37: =IF('Whole Life Costs Summary'!$B$27=0,0,IF($A37/'Whole Life Costs Summary'!$B$27=INT($A37/'Whole Life Costs Summary'!$B$27),'Whole Life Costs Summary'!$C$27,0)) + IF('Whole Life Costs Summary'!$B$28=0,0,IF($A37/'Whole Life Costs Summary'!$B$28=INT($A37/'Whole Life Costs Summary'!$B$28),'Whole Life Costs Summary'!$C$28,0)) + IF('Whole Life Costs Summary'!$B$29=0,0,IF($A37/'Whole Life Costs Summary'!$B$29=INT($A37/'Whole Life Costs Summary'!$B$29),'Whole Life Costs Summary'!$C$29,0)) -> 1280 | G37: 5632.262631 | H37: 5632.262631 | I37: 1663.222766 | J37: 76475.66879 | K37: 45893.67896
A38: 26 | B38: 0.281240735 | C38: 2.156591268 | D38: 0 | E38: 1410 | F38: =IF('Whole Life Costs Summary'!$B$27=0,0,IF($A38/'Whole Life Costs Summary'!$B$27=INT($A38/'Whole Life Costs Summary'!$B$27),'Whole Life Costs Summary'!$C$27,0)) + IF('Whole Life Costs Summary'!$B$28=0,0,IF($A38/'Whole Life Costs Summary'!$B$28=INT($A38/'Whole Life Costs Summary'!$B$28),'Whole Life Costs Summary'!$C$28,0)) + IF('Whole Life Costs Summary'!$B$29=0,0,IF($A38/'Whole Life Costs Summary'!$B$29=INT($A38/'Whole Life Costs Summary'!$B$29),'Whole Life Costs Summary'!$C$29,0)) -> 0 | G38: 3040.793687 | H38: 3040.793687 | I38: 855.1950514 | J38: 79516.46247 | K38: 46748.87401
A39: 27 | B39: 0.267848319 | C39: 2.221289006 | D39: 0 | E39: 1410 | F39: =IF('Whole Life Costs Summary'!$B$27=0,0,IF($A39/'Whole Life Costs Summary'!$B$27=INT($A39/'Whole Life Costs Summary'!$B$27),'Whole Life Costs Summary'!$C$27,0)) + IF('Whole Life Costs Summary'!$B$28=0,0,IF($A39/'Whole Life Costs Summary'!$B$28=INT($A39/'Whole Life Costs Summary'!$B$28),'Whole Life Costs Summary'!$C$28,0)) + IF('Whole Life Costs Summary'!$B$29=0,0,IF($A39/'Whole Life Costs Summary'!$B$29=INT($A39/'Whole Life Costs Summary'!$B$29),'Whole Life Costs Summary'!$C$29,0)) -> 0 | G39: 3132.017498 | H39: 3132.017498 | I39: 838.9056219 | J39: 82648.47997 | K39: 47587.77963
A40: 28 | B40: 0.2550936371 | C40: 2.287927676 | D40: 0 | E40: 1410 | F40: =IF('Whole Life Costs Summary'!$B$27=0,0,IF($A40/'Whole Life Costs Summary'!$B$27=INT($A40/'Whole Life Costs Summary'!$B$27),'Whole Life Costs Summary'!$C$27,0)) + IF('Whole Life Costs Summary'!$B$28=0,0,IF($A40/'Whole Life Costs Summary'!$B$28=INT($A40/'Whole Life Costs Summary'!$B$28),'Whole Life Costs Summary'!$C$28,0)) + IF('Whole Life Costs Summary'!$B$29=0,0,IF($A40/'Whole Life Costs Summary'!$B$29=INT($A40/'Whole Life Costs Summary'!$B$29),'Whole Life Costs Summary'!$C$29,0)) -> 0 | G40: 3225.978023 | H40: 3225.978023 | I40: 822.9264672 | J40: 85874.45799 | K40: 48410.7061
A41: 29 | B41: 0.2429463211 | C41: 2.356565506 | D41: 0 | E41: 1410 | F41: =IF('Whole Life Costs Summary'!$B$27=0,0,IF($A41/'Whole Life Costs Summary'!$B$27=INT($A41/'Whole Life Costs Summary'!$B$27),'Whole Life Costs Summary'!$C$27,0)) + IF('Whole Life Costs Summary'!$B$28=0,0,IF($A41/'Whole Life Costs Summary'!$B$28=INT($A41/'Whole Life Costs Summary'!$B$28),'Whole Life Costs Summary'!$C$28,0)) + IF('Whole Life Costs Summary'!$B$29=0,0,IF($A41/'Whole Life Costs Summary'!$B$29=INT($A41/'Whole Life Costs Summary'!$B$29),'Whole Life Costs Summary'!$C$29,0)) -> 0 | G41: 3322.757363 | H41: 3322.757363 | I41: 807.2516773 | J41: 89197.21536 | K41: 49217.95778
A42: 30 | B42: 0.2313774487 | C42: 2.427262471 | D42: 0 | E42: 1410 | F42: =IF('Whole Life Costs Summary'!$B$27=0,0,IF($A42/'Whole Life Costs Summary'!$B$27=INT($A42/'Whole Life Costs Summary'!$B$27),'Whole Life Costs Summary'!$C$27,0)) + IF('Whole Life Costs Summary'!$B$28=0,0,IF($A42/'Whole Life Costs Summary'!$B$28=INT($A42/'Whole Life Costs Summary'!$B$28),'Whole Life Costs Summary'!$C$28,0)) + IF('Whole Life Costs Summary'!$B$29=0,0,IF($A42/'Whole Life Costs Summary'!$B$29=INT($A42/'Whole Life Costs Summary'!$B$29),'Whole Life Costs Summary'!$C$29,0)) -> 1280 | G42: 6529.336048 | H42: 6529.336048 | I42: 1510.741116 | J42: 95726.55141 | K42: 50728.69889
A43: 31 | B43: 0.2203594749 | C43: 2.500080345 | D43: 0 | E43: 1410 | F43: =IF('Whole Life Costs Summary'!$B$27=0,0,IF($A43/'Whole Life Costs Summary'!$B$27=INT($A43/'Whole Life Costs Summary'!$B$27),'Whole Life Costs Summary'!$C$27,0)) + IF('Whole Life Costs Summary'!$B$28=0,0,IF($A43/'Whole Life Costs Summary'!$B$28=INT($A43/'Whole Life Costs Summary'!$B$28),'Whole Life Costs Summary'!$C$28,0)) + IF('Whole Life Costs Summary'!$B$29=0,0,IF($A43/'Whole Life Costs Summary'!$B$29=INT($A43/'Whole Life Costs Summary'!$B$29),'Whole Life Costs Summary'!$C$29,0)) -> 0 | G43: 3525.113287 | H43: 3525.113287 | I43: 776.7921129 | J43: 99251.66469 | K43: 51505.49101
A44: 32 | B44: =1/((1+Discount/100)^A44) -> 0.2098661666 | C44: 2.575082756 | D44: 0 | E44: 1410 | F44: =IF('Whole Life Costs Summary'!$B$27=0,0,IF($A44/'Whole Life Costs Summary'!$B$27=INT($A44/'Whole Life Costs Summary'!$B$27),'Whole Life Costs Summary'!$C$27,0)) + IF('Whole Life Costs Summary'!$B$28=0,0,IF($A44/'Whole Life Costs Summary'!$B$28=INT($A44/'Whole Life Costs Summary'!$B$28),'Whole Life Costs Summary'!$C$28,0)) + IF('Whole Life Costs Summary'!$B$29=0,0,IF($A44/'Whole Life Costs Summary'!$B$29=INT($A44/'Whole Life Costs Summary'!$B$29),'Whole Life Costs Summary'!$C$29,0)) -> 0 | G44: 3630.866686 | H44: 3630.866686 | I44: 761.9960727 | J44: 102882.5314 | K44: 52267.48708
A45: 33 | B45: 0.1998725396 | C45: =(1+Escalation/100)^A45 -> 2.652335238 | D45: 0 | E45: 1410 | F45: =IF('Whole Life Costs Summary'!$B$27=0,0,IF($A45/'Whole Life Costs Summary'!$B$27=INT($A45/'Whole Life Costs Summary'!$B$27),'Whole Life Costs Summary'!$C$27,0)) + IF('Whole Life Costs Summary'!$B$28=0,0,IF($A45/'Whole Life Costs Summary'!$B$28=INT($A45/'Whole Life Costs Summary'!$B$28),'Whole Life Costs Summary'!$C$28,0)) + IF('Whole Life Costs Summary'!$B$29=0,0,IF($A45/'Whole Life Costs Summary'!$B$29=INT($A45/'Whole Life Costs Summary'!$B$29),'Whole Life Costs Summary'!$C$29,0)) -> 0 | G45: 3739.792686 | H45: 3739.792686 | I45: 747.4818617 | J45: 106622.3241 | K45: 53014.96894
A46: 34 | B46: 0.1903547996 | C46: 2.731905296 | D46: 0 | E46: =$E$13 -> 1410 | F46: =IF('Whole Life Costs Summary'!$B$27=0,0,IF($A46/'Whole Life Costs Summary'!$B$27=INT($A46/'Whole Life Costs Summary'!$B$27),'Whole Life Costs Summary'!$C$27,0)) + IF('Whole Life Costs Summary'!$B$28=0,0,IF($A46/'Whole Life Costs Summary'!$B$28=INT($A46/'Whole Life Costs Summary'!$B$28),'Whole Life Costs Summary'!$C$28,0)) + IF('Whole Life Costs Summary'!$B$29=0,0,IF($A46/'Whole Life Costs Summary'!$B$29=INT($A46/'Whole Life Costs Summary'!$B$29),'Whole Life Costs Summary'!$C$29,0)) -> 0 | G46: 3851.986467 | H46: 3851.986467 | I46: 733.244112 | J46: =J45+H46 -> 110474.3105 | K46: 53748.21305
A47: 35 | B47: 0.1812902854 | C47: 2.813862454 | D47: 0 | E47: 1410 | F47: =IF('Whole Life Costs Summary'!$B$27=0,0,IF($A47/'Whole Life Costs Summary'!$B$27=INT($A47/'Whole Life Costs Summary'!$B$27),'Whole Life Costs Summary'!$C$27,0)) + IF('Whole Life Costs Summary'!$B$28=0,0,IF($A47/'Whole Life Costs Summary'!$B$28=INT($A47/'Whole Life Costs Summary'!$B$28),'Whole Life Costs Summary'!$C$28,0)) + IF('Whole Life Costs Summary'!$B$29=0,0,IF($A47/'Whole Life Costs Summary'!$B$29=INT($A47/'Whole Life Costs Summary'!$B$29),'Whole Life Costs Summary'!$C$29,0)) -> 1280 | G47: 7569.290002 | H47: 7569.290002 | I47: 1372.238744 | J47: 118043.6005 | K47: 55120.4518
A48: 36 | B48: 0.1726574146 | C48: 2.898278328 | D48: 0 | E48: 1410 | F48: =IF('Whole Life Costs Summary'!$B$27=0,0,IF($A48/'Whole Life Costs Summary'!$B$27=INT($A48/'Whole Life Costs Summary'!$B$27),'Whole Life Costs Summary'!$C$27,0)) + IF('Whole Life Costs Summary'!$B$28=0,0,IF($A48/'Whole Life Costs Summary'!$B$28=INT($A48/'Whole Life Costs Summary'!$B$28),'Whole Life Costs Summary'!$C$28,0)) + IF('Whole Life Costs Summary'!$B$29=0,0,IF($A48/'Whole Life Costs Summary'!$B$29=INT($A48/'Whole Life Costs Summary'!$B$29),'Whole Life Costs Summary'!$C$29,0)) -> 0 | G48: 4086.572442 | H48: 4086.572442 | I48: 705.5770326 | J48: 122130.173 | K48: 55826.02883
A49: 37 | B49: 0.164435633 | C49: 2.985226678 | D49: 0 | E49: 1410 | F49: =IF('Whole Life Costs Summary'!$B$27=0,0,IF($A49/'Whole Life Costs Summary'!$B$27=INT($A49/'Whole Life Costs Summary'!$B$27),'Whole Life Costs Summary'!$C$27,0)) + IF('Whole Life Costs Summary'!$B$28=0,0,IF($A49/'Whole Life Costs Summary'!$B$28=INT($A49/'Whole Life Costs Summary'!$B$28),'Whole Life Costs Summary'!$C$28,0)) + IF('Whole Life Costs Summary'!$B$29=0,0,IF($A49/'Whole Life Costs Summary'!$B$29=INT($A49/'Whole Life Costs Summary'!$B$29),'Whole Life Costs Summary'!$C$29,0)) -> 0 | G49: 4209.169616 | H49: 4209.169616 | I49: 692.1374701 | J49: 126339.3426 | K49: 56518.1663
A50: 38 | B50: 0.1566053647 | C50: 3.074783478 | D50: 0 | E50: 1410 | F50: =IF('Whole Life Costs Summary'!$B$27=0,0,IF($A50/'Whole Life Costs Summary'!$B$27=INT($A50/'Whole Life Costs Summary'!$B$27),'Whole Life Costs Summary'!$C$27,0)) + IF('Whole Life Costs Summary'!$B$28=0,0,IF($A50/'Whole Life Costs Summary'!$B$28=INT($A50/'Whole Life Costs Summary'!$B$28),'Whole Life Costs Summary'!$C$28,0)) + IF('Whole Life Costs Summary'!$B$29=0,0,IF($A50/'Whole Life Costs Summary'!$B$29=INT($A50/'Whole Life Costs Summary'!$B$29),'Whole Life Costs Summary'!$C$29,0)) -> 0 | G50: 4335.444704 | H50: 4335.444704 | I50: 678.9538992 | J50: 130674.7873 | K50: 57197.1202
A51: 39 | B51: 0.1491479664 | C51: 3.167026983 | D51: 0 | E51: 1410 | F51: =IF('Whole Life Costs Summary'!$B$27=0,0,IF($A51/'Whole Life Costs Summary'!$B$27=INT($A51/'Whole Life Costs Summary'!$B$27),'Whole Life Costs Summary'!$C$27,0)) + IF('Whole Life Costs Summary'!$B$28=0,0,IF($A51/'Whole Life Costs Summary'!$B$28=INT($A51/'Whole Life Costs Summary'!$B$28),'Whole Life Costs Summary'!$C$28,0)) + IF('Whole Life Costs Summary'!$B$29=0,0,IF($A51/'Whole Life Costs Summary'!$B$29=INT($A51/'Whole Life Costs Summary'!$B$29),'Whole Life Costs Summary'!$C$29,0)) -> 0 | G51: 4465.508045 | H51: 4465.508045 | I51: 666.021444 | J51: 135140.2953 | K51: 57863.14164
A52: 40 | B52: 0.1420456823 | C52: 3.262037792 | D52: 0 | E52: 1410 | F52: =IF('Whole Life Costs Summary'!$B$27=0,0,IF($A52/'Whole Life Costs Summary'!$B$27=INT($A52/'Whole Life Costs Summary'!$B$27),'Whole Life Costs Summary'!$C$27,0)) + IF('Whole Life Costs Summary'!$B$28=0,0,IF($A52/'Whole Life Costs Summary'!$B$28=INT($A52/'Whole Life Costs Summary'!$B$28),'Whole Life Costs Summary'!$C$28,0)) + IF('Whole Life Costs Summary'!$B$29=0,0,IF($A52/'Whole Life Costs Summary'!$B$29=INT($A52/'Whole Life Costs Summary'!$B$29),'Whole Life Costs Summary'!$C$29,0)) -> 1280 | G52: 8774.88166 | H52: 8774.88166 | I52: 1246.434053 | J52: 143915.177 | K52: 59109.5757
A53: 41 | B53: 0.1352816022 | C53: 3.359898926 | D53: 0 | E53: 1410 | F53: =IF('Whole Life Costs Summary'!$B$27=0,0,IF($A53/'Whole Life Costs Summary'!$B$27=INT($A53/'Whole Life Costs Summary'!$B$27),'Whole Life Costs Summary'!$C$27,0)) + IF('Whole Life Costs Summary'!$B$28=0,0,IF($A53/'Whole Life Costs Summary'!$B$28=INT($A53/'Whole Life Costs Summary'!$B$28),'Whole Life Costs Summary'!$C$28,0)) + IF('Whole Life Costs Summary'!$B$29=0,0,IF($A53/'Whole Life Costs Summary'!$B$29=INT($A53/'Whole Life Costs Summary'!$B$29),'Whole Life Costs Summary'!$C$29,0)) -> 0 | G53: 4737.457485 | H53: 4737.457485 | I53: 640.8908389 | J53: 148652.6345 | K53: 59750.46654
A54: 42 | B54: 0.1288396211 | C54: 3.460695894 | D54: 0 | E54: 1410 | F54: =IF('Whole Life Costs Summary'!$B$27=0,0,IF($A54/'Whole Life Costs Summary'!$B$27=INT($A54/'Whole Life Costs Summary'!$B$27),'Whole Life Costs Summary'!$C$27,0)) + IF('Whole Life Costs Summary'!$B$28=0,0,IF($A54/'Whole Life Costs Summary'!$B$28=INT($A54/'Whole Life Costs Summary'!$B$28),'Whole Life Costs Summary'!$C$28,0)) + IF('Whole Life Costs Summary'!$B$29=0,0,IF($A54/'Whole Life Costs Summary'!$B$29=INT($A54/'Whole Life Costs Summary'!$B$29),'Whole Life Costs Summary'!$C$29,0)) -> 0 | G54: 4879.58121 | H54: 4879.58121 | I54: 628.6833944 | J54: 153532.2157 | K54: 60379.14993
A55: 43 | B55: 0.1227044011 | C55: 3.56451677 | D55: 0 | E55: 1410 | F55: =IF('Whole Life Costs Summary'!$B$27=0,0,IF($A55/'Whole Life Costs Summary'!$B$27=INT($A55/'Whole Life Costs Summary'!$B$27),'Whole Life Costs Summary'!$C$27,0)) + IF('Whole Life Costs Summary'!$B$28=0,0,IF($A55/'Whole Life Costs Summary'!$B$28=INT($A55/'Whole Life Costs Summary'!$B$28),'Whole Life Costs Summary'!$C$28,0)) + IF('Whole Life Costs Summary'!$B$29=0,0,IF($A55/'Whole Life Costs Summary'!$B$29=INT($A55/'Whole Life Costs Summary'!$B$29),'Whole Life Costs Summary'!$C$29,0)) -> 0 | G55: 5025.968646 | H55: 5025.968646 | I55: 616.7084726 | J55: 158558.1843 | K55: 60995.8584
A56: 44 | B56: 0.1168613344 | C56: 3.671452273 | D56: 0 | E56: 1410 | F56: =IF('Whole Life Costs Summary'!$B$27=0,0,IF($A56/'Whole Life Costs Summary'!$B$27=INT($A56/'Whole Life Costs Summary'!$B$27),'Whole Life Costs Summary'!$C$27,0)) + IF('Whole Life Costs Summary'!$B$28=0,0,IF($A56/'Whole Life Costs Summary'!$B$28=INT($A56/'Whole Life Costs Summary'!$B$28),'Whole Life Costs Summary'!$C$28,0)) + IF('Whole Life Costs Summary'!$B$29=0,0,IF($A56/'Whole Life Costs Summary'!$B$29=INT($A56/'Whole Life Costs Summary'!$B$29),'Whole Life Costs Summary'!$C$29,0)) -> 0 | G56: 5176.747706 | H56: 5176.747706 | I56: 604.9616445 | J56: 163734.932 | K56: 61600.82005
A57: 45 | B57: 0.1112965089 | C57: 3.781595842 | D57: 0 | E57: 1410 | F57: =IF('Whole Life Costs Summary'!$B$27=0,0,IF($A57/'Whole Life Costs Summary'!$B$27=INT($A57/'Whole Life Costs Summary'!$B$27),'Whole Life Costs Summary'!$C$27,0)) + IF('Whole Life Costs Summary'!$B$28=0,0,IF($A57/'Whole Life Costs Summary'!$B$28=INT($A57/'Whole Life Costs Summary'!$B$28),'Whole Life Costs Summary'!$C$28,0)) + IF('Whole Life Costs Summary'!$B$29=0,0,IF($A57/'Whole Life Costs Summary'!$B$29=INT($A57/'Whole Life Costs Summary'!$B$29),'Whole Life Costs Summary'!$C$29,0)) -> 1280 | G57: 10172.49281 | H57: 10172.49281 | I57: 1132.162937 | J57: 173907.4249 | K57: 62732.98298
A58: 46 | B58: 0.1059966752 | C58: 3.895043717 | D58: 0 | E58: 1410 | F58: =IF('Whole Life Costs Summary'!$B$27=0,0,IF($A58/'Whole Life Costs Summary'!$B$27=INT($A58/'Whole Life Costs Summary'!$B$27),'Whole Life Costs Summary'!$C$27,0)) + IF('Whole Life Costs Summary'!$B$28=0,0,IF($A58/'Whole Life Costs Summary'!$B$28=INT($A58/'Whole Life Costs Summary'!$B$28),'Whole Life Costs Summary'!$C$28,0)) + IF('Whole Life Costs Summary'!$B$29=0,0,IF($A58/'Whole Life Costs Summary'!$B$29=INT($A58/'Whole Life Costs Summary'!$B$29),'Whole Life Costs Summary'!$C$29,0)) -> 0 | G58: 5492.011641 | H58: 5492.011641 | I58: 582.1349739 | J58: 179399.4365 | K58: 63315.11796
A59: 47 | B59: 0.1009492144 | C59: 4.011895028 | D59: 0 | E59: 1410 | F59: =IF('Whole Life Costs Summary'!$B$27=0,0,IF($A59/'Whole Life Costs Summary'!$B$27=INT($A59/'Whole Life Costs Summary'!$B$27),'Whole Life Costs Summary'!$C$27,0)) + IF('Whole Life Costs Summary'!$B$28=0,0,IF($A59/'Whole Life Costs Summary'!$B$28=INT($A59/'Whole Life Costs Summary'!$B$28),'Whole Life Costs Summary'!$C$28,0)) + IF('Whole Life Costs Summary'!$B$29=0,0,IF($A59/'Whole Life Costs Summary'!$B$29=INT($A59/'Whole Life Costs Summary'!$B$29),'Whole Life Costs Summary'!$C$29,0)) -> 0 | G59: 5656.77199 | H59: 5656.77199 | I59: 571.0466886 | J59: 185056.2085 | K59: 63886.16465
A60: 48 | B60: 0.09614210899 | C60: 4.132251879 | D60: 0 | E60: 1410 | F60: =IF('Whole Life Costs Summary'!$B$27=0,0,IF($A60/'Whole Life Costs Summary'!$B$27=INT($A60/'Whole Life Costs Summary'!$B$27),'Whole Life Costs Summary'!$C$27,0)) + IF('Whole Life Costs Summary'!$B$28=0,0,IF($A60/'Whole Life Costs Summary'!$B$28=INT($A60/'Whole Life Costs Summary'!$B$28),'Whole Life Costs Summary'!$C$28,0)) + IF('Whole Life Costs Summary'!$B$29=0,0,IF($A60/'Whole Life Costs Summary'!$B$29=INT($A60/'Whole Life Costs Summary'!$B$29),'Whole Life Costs Summary'!$C$29,0)) -> 0 | G60: 5826.47515 | H60: 5826.47515 | I60: =H60*$B60 -> 560.1696089 | J60: 190882.6836 | K60: 64446.33426
A61: 49 | B61: 0.09156391332 | C61: 4.256219436 | D61: 0 | E61: 1410 | F61: =IF('Whole Life Costs Summary'!$B$27=0,0,IF($A61/'Whole Life Costs Summary'!$B$27=INT($A61/'Whole Life Costs Summary'!$B$27),'Whole Life Costs Summary'!$C$27,0)) + IF('Whole Life Costs Summary'!$B$28=0,0,IF($A61/'Whole Life Costs Summary'!$B$28=INT($A61/'Whole Life Costs Summary'!$B$28),'Whole Life Costs Summary'!$C$28,0)) + IF('Whole Life Costs Summary'!$B$29=0,0,IF($A61/'Whole Life Costs Summary'!$B$29=INT($A61/'Whole Life Costs Summary'!$B$29),'Whole Life Costs Summary'!$C$29,0)) -> 0 | G61: 6001.269404 | H61: 6001.269404 | I61: =H61*$B61 -> 549.4997115 | J61: =J60+H61 -> 196883.953 | K61: =K60+I61 -> 64995.83397
A62: 50 | B62: 0.08720372697 | C62: 4.383906019 | D62: 1 | E62: 1410 | F62: =IF('Whole Life Costs Summary'!$B$27=0,0,IF($A62/'Whole Life Costs Summary'!$B$27=INT($A62/'Whole Life Costs Summary'!$B$27),'Whole Life Costs Summary'!$C$27,0)) + IF('Whole Life Costs Summary'!$B$28=0,0,IF($A62/'Whole Life Costs Summary'!$B$28=INT($A62/'Whole Life Costs Summary'!$B$28),'Whole Life Costs Summary'!$C$28,0)) + IF('Whole Life Costs Summary'!$B$29=0,0,IF($A62/'Whole Life Costs Summary'!$B$29=INT($A62/'Whole Life Costs Summary'!$B$29),'Whole Life Costs Summary'!$C$29,0)) -> 1280 | G62: 11792.70719 | H62: 11792.70719 | I62: =H62*$B62 -> 1028.368018 | J62: =J61+H62 -> 208676.6602 | K62: =K61+I62 -> 66024.20198
